{"text_format":"1","workbook":"xlsx","n_sheets":64,"sheets":["Лист1","Лист2","самос (2)","Лист32","Лист3","Лист5","Лист4","Лист6","Лист7","Лист8","самос (3)","Лист9","Лист10","Лист11","Лист13","Лист14","Лист15","Лист16","Лист17","Лист18","Лист19","Лист20","Лист21","Лист22","Лист23","Лист24","Лист25","Лист26","І семестр","Лист27","Лист28","Лист29","Лист30","Лист31","Лист33","Лист34","Лист35","Лист12","Лист36","Лист37","Лист38","Лист38 (2)","Лист39","Лист38 (4)","Лист38 (5)","Лист38 (6)","Лист38 (7)","самос","Лист38 (8)","самос (4)","Лист38 (9)","самос (5)","Лист41","Лист38 (10)","самос (6)","Лист38 (11)","Лист40","Лист42","Лист38 (3)","Лист45","Лист46","самос (7)","Лист38 (12)","самос (8)"],"not_rendered":{"charts":0,"images":0,"macros":1,"external_links":0,"defined_names":20,"comments":0,"pivot_tables":0},"unopened":[],"bounds":{"document_bytes":16777216,"sheet_cells":100000,"rows_first":2000,"rows_last":500,"rows_between":2000,"halvings":0,"cell_chars":16384,"cell_head_chars":4096},"cells_cut":0,"cells_raw":0,"read":"whole","date_system":"1900"}

{"sheet":"Лист1","index":0,"n_rows":46,"n_cols":9,"rows_kept":46,"cut":false,"hidden":false,"merged":[]}
[1,"this lesson","зиз  лесон","цей урок",null,1,"this lesson","зиз  лесон","цей урок"]
[2,"count","каунт","рахувати",null,2,"count","каунт","рахувати"]
[3,"do sum","ду сам","робити задачу",null,3,"do sum","ду сам","робити задачу"]
[4,"draw","дро","малювати",null,4,"draw","дро","малювати"]
[5,"use","юз","використовувати",null,5,"use","юз","використовувати"]
[6,"learn word","лон   вод","учити слово",null,6,"learn word","лон   вод","учити слово"]
[7,"make a toy","мейк е той","робити іграшку",null,7,"make a toy","мейк е той","робити іграшку"]
[8,"sing a song","сін е сон","співати пісню",null,8,"sing a song","сін е сон","співати пісню"]
[9,"little ","літл","мало",null,9,"little ","літл","мало"]
[10,"many ","мені","багато",null,10,"many ","мені","багато"]
[]
[]
[1,"this lesson","зиз  лесон","цей урок",null,1,"this lesson","зиз  лесон","цей урок"]
[2,"count","каунт","рахувати",null,2,"count","каунт","рахувати"]
[3,"do sum","ду сам","робити задачу",null,3,"do sum","ду сам","робити задачу"]
[4,"draw","дро","малювати",null,4,"draw","дро","малювати"]
[5,"use","юз","використовувати",null,5,"use","юз","використовувати"]
[6,"learn word","лон   вод","учити слово",null,6,"learn word","лон   вод","учити слово"]
[7,"make a toy","мейк е той","робити іграшку",null,7,"make a toy","мейк е той","робити іграшку"]
[8,"sing a song","сін е сон","співати пісню",null,8,"sing a song","сін е сон","співати пісню"]
[9,"little ","літл","мало",null,9,"little ","літл","мало"]
[10,"many ","мені","багато",null,10,"many ","мені","багато"]
[]
[]
[1,"this lesson","зиз  лесон","цей урок",null,1,"this lesson","зиз  лесон","цей урок"]
[2,"count","каунт","рахувати",null,2,"count","каунт","рахувати"]
[3,"do sum","ду сам","робити задачу",null,3,"do sum","ду сам","робити задачу"]
[4,"draw","дро","малювати",null,4,"draw","дро","малювати"]
[5,"use","юз","використовувати",null,5,"use","юз","використовувати"]
[6,"learn word","лон   вод","учити слово",null,6,"learn word","лон   вод","учити слово"]
[7,"make a toy","мейк е той","робити іграшку",null,7,"make a toy","мейк е той","робити іграшку"]
[8,"sing a song","сін е сон","співати пісню",null,8,"sing a song","сін е сон","співати пісню"]
[9,"little ","літл","мало",null,9,"little ","літл","мало"]
[10,"many ","мені","багато",null,10,"many ","мені","багато"]
[]
[]
[1,"this lesson","зиз  лесон","цей урок",null,1,"this lesson","зиз  лесон","цей урок"]
[2,"count","каунт","рахувати",null,2,"count","каунт","рахувати"]
[3,"do sum","ду сам","робити задачу",null,3,"do sum","ду сам","робити задачу"]
[4,"draw","дро","малювати",null,4,"draw","дро","малювати"]
[5,"use","юз","використовувати",null,5,"use","юз","використовувати"]
[6,"learn word","лон   вод","учити слово",null,6,"learn word","лон   вод","учити слово"]
[7,"make a toy","мейк е той","робити іграшку",null,7,"make a toy","мейк е той","робити іграшку"]
[8,"sing a song","сін е сон","співати пісню",null,8,"sing a song","сін е сон","співати пісню"]
[9,"little ","літл","мало",null,9,"little ","літл","мало"]
[10,"many ","мені","багато",null,10,"many ","мені","багато"]

{"sheet":"Лист2","index":1,"n_rows":43,"n_cols":3,"rows_kept":43,"cut":false,"hidden":false,"merged":[]}
["A bad dog. –",null,"A bad dog. –"]
[" mark. –",null," mark. –"]
["help –",null,"help –"]
["I can swim  –",null,"I can swim  –"]
["I don’t like a bat. –",null,"I don’t like a bat. –"]
["I have a pen. –",null,"I have a pen. –"]
["Our book. –",null,"Our book. –"]
["teacher  –      ",null,"teacher  –      "]
["This is a cat. –",null,"This is a cat. –"]
["you  –",null,"you  –"]
[]
["A bad dog. –",null,"A bad dog. –"]
[" mark. –",null," mark. –"]
["help –",null,"help –"]
["I can swim  –",null,"I can swim  –"]
["I don’t like a bat. –",null,"I don’t like a bat. –"]
["I have a pen. –",null,"I have a pen. –"]
["Our book. –",null,"Our book. –"]
["teacher  –      ",null,"teacher  –      "]
["This is a cat. –",null,"This is a cat. –"]
["you  –",null,"you  –"]
[]
["A bad dog. –",null,"A bad dog. –"]
[" mark. –",null," mark. –"]
["help –",null,"help –"]
["I can swim  –",null,"I can swim  –"]
["I don’t like a bat. –",null,"I don’t like a bat. –"]
["I have a pen. –",null,"I have a pen. –"]
["Our book. –",null,"Our book. –"]
["teacher  –      ",null,"teacher  –      "]
["This is a cat. –",null,"This is a cat. –"]
["you  –",null,"you  –"]
[]
["A bad dog. –",null,"A bad dog. –"]
[" mark. –",null," mark. –"]
["help –",null,"help –"]
["I can swim  –",null,"I can swim  –"]
["I don’t like a bat. –",null,"I don’t like a bat. –"]
["I have a pen. –",null,"I have a pen. –"]
["Our book. –",null,"Our book. –"]
["teacher  –      ",null,"teacher  –      "]
["This is a cat. –",null,"This is a cat. –"]
["you  –",null,"you  –"]

{"sheet":"самос (2)","index":2,"n_rows":54,"n_cols":29,"rows_kept":54,"cut":false,"hidden":false,"merged":[]}
["Name_________________________              Date_______",null,null,null,null,"Name_________________________              Date_______",null,null,null,"Name_________________________              Date_______",null,null,null,"Name_________________________              Date_______"]
[]
[null,{"$f":"S3","v":"this lesson"},1,{"$f":"V3","v":"цей урок"},null,null,{"$f":"S3","v":"this lesson"},1,{"$f":"V3","v":"цей урок"},{"$f":"S16","v":"use"},null,null,null,{"$f":"J3","v":"use"},null,null,null,null,"this lesson",null,1,"цей урок"]
[null,"count",2,"учити слово",null,null,{"$f":"S4","v":"count"},2,{"$f":"V4","v":"учити слово"},{"$f":"S17","v":"this lesson"},null,null,null,{"$f":"J4","v":"this lesson"},null,null,null,null,"count",null,2,"учити слово"]
[null,"do sum",3,"співати пісню",null,null,"do sum",3,"співати пісню","sing a song",null,null,null,"sing a song",null,null,null,null,"do sum",null,3,"співати пісню"]
[null,"draw",4,"робити іграшку",null,null,"draw",4,"робити іграшку","many ",null,null,null,"many ",null,null,null,null,"draw",null,4,"робити іграшку"]
[null,"use",5,"робити задачу",null,null,"use",5,"робити задачу","make a toy",null,null,null,"make a toy",null,null,null,null,"use",null,5,"робити задачу"]
[null,"learn word",6,"рахувати",null,null,"learn word",6,"рахувати","little ",null,null,null,"little ",null,null,null,null,"learn word",null,6,"рахувати"]
[null,"make a toy",7,"малювати",null,null,"make a toy",7,"малювати","learn word",null,null,null,"learn word",null,null,null,null,"make a toy",null,7,"малювати"]
[null,"sing a song",8,"мало",null,null,"sing a song",8,"мало","draw",null,null,null,"draw",null,null,null,null,"sing a song",null,8,"мало"]
[null,"little ",9,"використовувати",null,null,"little ",9,"використовувати","do sum",null,null,null,"do sum",null,null,null,null,"little ",null,9,"використовувати"]
[null,"many ",10,"багато",null,null,"many ",10,"багато","count",null,null,null,"count",null,null,null,null,"many ",null,10,"багато"]
[null,0,11,0,null,null,0,11,0,0,null,null,null,0,null,null,null,null,null,null,11]
[null,null,null,null,null,null,null,null,null,null,null,null,null,null,null,null,null,null,null,null,null,null,null,null,null,null,"this lesson","зиз  лесон","цей урок"]
["Name_________________________              Date_______",null,null,null,null,"Name_________________________              Date_______",null,null,null,"Name_________________________              Date_______",null,null,null,"Name_________________________              Date_______",null,null,null,null,null,null,null,null,null,null,null,null,"count","каунт","рахувати"]
[null,null,null,null,null,null,null,null,null,null,null,null,null,null,null,null,null,null,"use",null,null,null,null,null,null,null,"do sum","ду сам","робити задачу"]
[null,{"$f":"S3","v":"this lesson"},1,{"$f":"V3","v":"цей урок"},null,null,{"$f":"B17","v":"this lesson"},1,{"$f":"D17","v":"цей урок"},{"$f":"J3","v":"use"},null,null,null,{"$f":"J17","v":"use"},null,null,null,null,"this lesson",null,null,null,null,null,null,null,"draw","дро","малювати"]
[null,{"$f":"S4","v":"count"},2,{"$f":"V4","v":"учити слово"},null,null,{"$f":"B18","v":"count"},2,{"$f":"D18","v":"учити слово"},{"$f":"J4","v":"this lesson"},null,null,null,{"$f":"J18","v":"this lesson"},null,null,null,null,"sing a song",null,null,null,null,null,null,null,"use","юз","використовувати"]
[null,"do sum",3,"співати пісню",null,null,"do sum",3,"співати пісню","sing a song",null,null,null,"sing a song",null,null,null,null,"many ",null,null,null,null,null,null,null,"learn word","лон   вод","учити слово"]
[null,"draw",4,"робити іграшку",null,null,"draw",4,"робити іграшку","many ",null,null,null,"many ",null,null,null,null,"make a toy",null,null,null,null,null,null,null,"make a toy","мейк е той","робити іграшку"]
[null,"use",5,"робити задачу",null,null,"use",5,"робити задачу","make a toy",null,null,null,"make a toy",null,null,null,null,"little ",null,null,null,null,null,null,null,"sing a song","сін е сон","співати пісню"]
[null,"learn word",6,"рахувати",null,null,"learn word",6,"рахувати","little ",null,null,null,"little ",null,null,null,null,"learn word",null,null,null,null,null,null,null,"little ","літл","мало"]
[null,"make a toy",7,"малювати",null,null,"make a toy",7,"малювати","learn word",null,null,null,"learn word",null,null,null,null,"draw",null,null,null,null,null,null,null,"many ","мені","багато"]
[null,"sing a song",8,"мало",null,null,"sing a song",8,"мало","draw",null,null,null,"draw",null,null,null,null,"do sum"]
[null,"little ",9,"використовувати",null,null,"little ",9,"використовувати","do sum",null,null,null,"do sum",null,null,null,null,"count"]
[null,"many ",10,"багато",null,null,"many ",10,"багато","count",null,null,null,"count"]
[null,0,11,0,null,null,0,11,0,0,null,null,null,0]
[]
["Name_________________________              Date_______",null,null,null,null,"Name_________________________              Date_______",null,null,null,"Name_________________________              Date_______",null,null,null,"Name_________________________              Date_______"]
[]
[null,{"$f":"B17","v":"this lesson"},1,{"$f":"D17","v":"цей урок"},null,null,{"$f":"B31","v":"this lesson"},1,{"$f":"D31","v":"цей урок"},{"$f":"J17","v":"use"},null,null,null,{"$f":"J31","v":"use"}]
[null,{"$f":"B18","v":"count"},2,{"$f":"D18","v":"учити слово"},null,null,{"$f":"B32","v":"count"},2,{"$f":"D32","v":"учити слово"},{"$f":"J18","v":"this lesson"},null,null,null,{"$f":"J32","v":"this lesson"}]
[null,"do sum",3,"співати пісню",null,null,"do sum",3,"співати пісню","sing a song",null,null,null,"sing a song"]
[null,"draw",4,"робити іграшку",null,null,"draw",4,"робити іграшку","many ",null,null,null,"many "]
[null,"use",5,"робити задачу",null,null,"use",5,"робити задачу","make a toy",null,null,null,"make a toy"]
[null,"learn word",6,"рахувати",null,null,"learn word",6,"рахувати","little ",null,null,null,"little "]
[null,"make a toy",7,"малювати",null,null,"make a toy",7,"малювати","learn word",null,null,null,"learn word"]
[null,"sing a song",8,"мало",null,null,"sing a song",8,"мало","draw",null,null,null,"draw"]
[null,"little ",9,"використовувати",null,null,"little ",9,"використовувати","do sum",null,null,null,"do sum"]
[null,"many ",10,"багато",null,null,"many ",10,"багато","count",null,null,null,"count"]
[null,0,11,0,null,null,0,11,0,0,null,null,null,0]
[]
["Name_________________________              Date_______",null,null,null,null,null,null,null,null,"Name_________________________              Date_______",null,null,null,"Name_________________________              Date_______"]
[]
[null,{"$f":"B31","v":"this lesson"},1,{"$f":"D31","v":"цей урок"},null,null,{"$f":"B39","v":"little "},9,{"$f":"D39","v":"використовувати"},{"$f":"J31","v":"use"},null,null,null,{"$f":"J39","v":"do sum"}]
[null,{"$f":"B32","v":"count"},2,{"$f":"D32","v":"учити слово"},null,null,{"$f":"B40","v":"many "},10,{"$f":"D40","v":"багато"},{"$f":"J32","v":"this lesson"},null,null,null,{"$f":"J40","v":"count"}]
[null,"do sum",3,"співати пісню",null,null,{"$f":"B41","v":0},11,{"$f":"D41","v":0},"sing a song",null,null,null,{"$f":"J41","v":0}]
[null,"draw",4,"робити іграшку",null,null,null,null,null,"many "]
[null,"use",5,"робити задачу",null,null,null,null,null,"make a toy"]
[null,"learn word",6,"рахувати",null,null,null,null,null,"little "]
[null,{"$f":"B37","v":"make a toy"},7,{"$f":"D37","v":"малювати"},null,null,null,null,null,{"$f":"J37","v":"learn word"}]
[null,{"$f":"B38","v":"sing a song"},8,{"$f":"D38","v":"мало"},null,null,null,null,null,{"$f":"J38","v":"draw"}]
[]
[null,7]

{"sheet":"Лист32","index":3,"n_rows":44,"n_cols":9,"rows_kept":44,"cut":false,"hidden":false,"merged":[]}
[1,"break ","брейк","перерва",null,1,"break ","брейк","перерва"]
[2,"now","нау","зараз",null,2,"now","нау","зараз"]
[3,"every","еврі","кожен",null,3,"every","еврі","кожен"]
[4,"subject","сабжект","предмет",null,4,"subject","сабжект","предмет"]
[5,"favourite","фейверіт","улюблений",null,5,"favourite","фейверіт","улюблений"]
[6,"learn","[lɜːn]","вчити",null,6,"learn","[lɜːn]","вчити"]
[7,"say","сей","казати",null,7,"say","сей","казати"]
[8,"classmate","класмейт","однокласник",null,8,"classmate","класмейт","однокласник"]
[]
[1,"break ","брейк","перерва",null,1,"break ","брейк","перерва"]
[2,"now","нау","зараз",null,2,"now","нау","зараз"]
[3,"every","еврі","кожен",null,3,"every","еврі","кожен"]
[4,"subject","сабжект","предмет",null,4,"subject","сабжект","предмет"]
[5,"favourite","фейверіт","улюблений",null,5,"favourite","фейверіт","улюблений"]
[6,"learn","[lɜːn]","вчити",null,6,"learn","[lɜːn]","вчити"]
[7,"say","сей","казати",null,7,"say","сей","казати"]
[8,"classmate","класмейт","однокласник",null,8,"classmate","класмейт","однокласник"]
[]
[1,"break ","брейк","перерва",null,1,"break ","брейк","перерва"]
[2,"now","нау","зараз",null,2,"now","нау","зараз"]
[3,"every","еврі","кожен",null,3,"every","еврі","кожен"]
[4,"subject","сабжект","предмет",null,4,"subject","сабжект","предмет"]
[5,"favourite","фейверіт","улюблений",null,5,"favourite","фейверіт","улюблений"]
[6,"learn","[lɜːn]","вчити",null,6,"learn","[lɜːn]","вчити"]
[7,"say","сей","казати",null,7,"say","сей","казати"]
[8,"classmate","класмейт","однокласник",null,8,"classmate","класмейт","однокласник"]
[]
[1,"break ","брейк","перерва",null,1,"break ","брейк","перерва"]
[2,"now","нау","зараз",null,2,"now","нау","зараз"]
[3,"every","еврі","кожен",null,3,"every","еврі","кожен"]
[4,"subject","сабжект","предмет",null,4,"subject","сабжект","предмет"]
[5,"favourite","фейверіт","улюблений",null,5,"favourite","фейверіт","улюблений"]
[6,"learn","[lɜːn]","вчити",null,6,"learn","[lɜːn]","вчити"]
[7,"say","сей","казати",null,7,"say","сей","казати"]
[8,"classmate","класмейт","однокласник",null,8,"classmate","класмейт","однокласник"]
[]
[1,"break ","брейк","перерва",null,1,"break ","брейк","перерва"]
[2,"now","нау","зараз",null,2,"now","нау","зараз"]
[3,"every","еврі","кожен",null,3,"every","еврі","кожен"]
[4,"subject","сабжект","предмет",null,4,"subject","сабжект","предмет"]
[5,"favourite","фейверіт","улюблений",null,5,"favourite","фейверіт","улюблений"]
[6,"learn","[lɜːn]","вчити",null,6,"learn","[lɜːn]","вчити"]
[7,"say","сей","казати",null,7,"say","сей","казати"]
[8,"classmate","класмейт","однокласник",null,8,"classmate","класмейт","однокласник"]

{"sheet":"Лист3","index":4,"n_rows":44,"n_cols":9,"rows_kept":44,"cut":false,"hidden":false,"merged":[]}
[1,"break ","брейк","перерва",null,1,"break ","брейк","перерва"]
[2,"now","нау","зараз",null,2,"now","нау","зараз"]
[3,"write","райт","писати",null,3,"write","райт","писати"]
[4,"subject","сабжект","предме",null,4,"subject","сабжект","предме"]
[5,"favourite","фейверіт","улюблений",null,5,"favourite","фейверіт","улюблений"]
[6,"І cannot","ай кеннот","я не вмію, не можу",null,6,"І cannot","ай кеннот","я не вмію, не можу"]
[7,"say","сей","казати",null,7,"say","сей","казати"]
[8,"because","бікоос","тому що",null,8,"because","бікоос","тому що"]
[]
[1,"break ","брейк","перерва",null,1,"break ","брейк","перерва"]
[2,"now","нау","зараз",null,2,"now","нау","зараз"]
[3,"write","райт","писати",null,3,"write","райт","писати"]
[4,"subject","сабжект","предме",null,4,"subject","сабжект","предме"]
[5,"favourite","фейверіт","улюблений",null,5,"favourite","фейверіт","улюблений"]
[6,"І cannot","ай кеннот","я не вмію, не можу",null,6,"І cannot","ай кеннот","я не вмію, не можу"]
[7,"say","сей","казати",null,7,"say","сей","казати"]
[8,"because","бікоос","тому що",null,8,"because","бікоос","тому що"]
[]
[1,"break ","брейк","перерва",null,1,"break ","брейк","перерва"]
[2,"now","нау","зараз",null,2,"now","нау","зараз"]
[3,"write","райт","писати",null,3,"write","райт","писати"]
[4,"subject","сабжект","предме",null,4,"subject","сабжект","предме"]
[5,"favourite","фейверіт","улюблений",null,5,"favourite","фейверіт","улюблений"]
[6,"І cannot","ай кеннот","я не вмію, не можу",null,6,"І cannot","ай кеннот","я не вмію, не можу"]
[7,"say","сей","казати",null,7,"say","сей","казати"]
[8,"because","бікоос","тому що",null,8,"because","бікоос","тому що"]
[]
[1,"break ","брейк","перерва",null,1,"break ","брейк","перерва"]
[2,"now","нау","зараз",null,2,"now","нау","зараз"]
[3,"write","райт","писати",null,3,"write","райт","писати"]
[4,"subject","сабжект","предме",null,4,"subject","сабжект","предме"]
[5,"favourite","фейверіт","улюблений",null,5,"favourite","фейверіт","улюблений"]
[6,"І cannot","ай кеннот","я не вмію, не можу",null,6,"І cannot","ай кеннот","я не вмію, не можу"]
[7,"say","сей","казати",null,7,"say","сей","казати"]
[8,"because","бікоос","тому що",null,8,"because","бікоос","тому що"]
[]
[1,"break ","брейк","перерва",null,1,"break ","брейк","перерва"]
[2,"now","нау","зараз",null,2,"now","нау","зараз"]
[3,"write","райт","писати",null,3,"write","райт","писати"]
[4,"subject","сабжект","предме",null,4,"subject","сабжект","предме"]
[5,"favourite","фейверіт","улюблений",null,5,"favourite","фейверіт","улюблений"]
[6,"І cannot","ай кеннот","я не вмію, не можу",null,6,"І cannot","ай кеннот","я не вмію, не можу"]
[7,"say","сей","казати",null,7,"say","сей","казати"]
[8,"because","бікоос","тому що",null,8,"because","бікоос","тому що"]

{"sheet":"Лист5","index":5,"n_rows":35,"n_cols":3,"rows_kept":35,"cut":false,"hidden":false,"merged":[]}
["break ",null,"break "]
["because",null,"because"]
["favourite",null,"favourite"]
["now",null,"now"]
["say",null,"say"]
["subject",null,"subject"]
["write",null,"write"]
["І cannot",null,"І cannot"]
[]
["break ",null,"break "]
["because",null,"because"]
["favourite",null,"favourite"]
["now",null,"now"]
["say",null,"say"]
["subject",null,"subject"]
["write",null,"write"]
["І cannot",null,"І cannot"]
[]
["break ",null,"break "]
["because",null,"because"]
["favourite",null,"favourite"]
["now",null,"now"]
["say",null,"say"]
["subject",null,"subject"]
["write",null,"write"]
["І cannot",null,"І cannot"]
[]
["break ",null,"break "]
["because",null,"because"]
["favourite",null,"favourite"]
["now",null,"now"]
["say",null,"say"]
["subject",null,"subject"]
["write",null,"write"]
["І cannot",null,"І cannot"]

{"sheet":"Лист4","index":6,"n_rows":60,"n_cols":9,"rows_kept":60,"cut":false,"hidden":false,"merged":[]}
[1,"country","кантрі","країна",null,1,"country","кантрі","країна"]
[2,"capital","кепітл","столиця",null,2,"capital","кепітл","столиця"]
[3,"Africa","ефріке","Африка",null,3,"Africa","ефріке","Африка"]
[4,"Australia","остреліе","Австралія",null,4,"Australia","остреліе","Австралія"]
[5,"Europe","юереп","Європа",null,5,"Europe","юереп","Європа"]
[6,"Asia","ейше","Азія",null,6,"Asia","ейше","Азія"]
[7,"America","емеріке","Америка",null,7,"America","емеріке","Америка"]
[8,"short hair","шот хее","коротке волосся",null,8,"short hair","шот хее","коротке волосся"]
[9,"fair hair","фее хее","світле волося",null,9,"fair hair","фее хее","світле волося"]
[10,"glasses","ґласис","окуляри",null,10,"glasses","ґласис","окуляри"]
[]
[]
[1,"country","кантрі","країна",null,1,"country","кантрі","країна"]
[2,"capital","кепітл","столиця",null,2,"capital","кепітл","столиця"]
[3,"Africa","ефріке","Африка",null,3,"Africa","ефріке","Африка"]
[4,"Australia","остреліе","Австралія",null,4,"Australia","остреліе","Австралія"]
[5,"Europe","юереп","Європа",null,5,"Europe","юереп","Європа"]
[6,"Asia","ейше","Азія",null,6,"Asia","ейше","Азія"]
[7,"America","емеріке","Америка",null,7,"America","емеріке","Америка"]
[8,"short hair","шот хее","коротке волосся",null,8,"short hair","шот хее","коротке волосся"]
[9,"fair hair","фее хее","світле волося",null,9,"fair hair","фее хее","світле волося"]
[10,"glasses","ґласис","окуляри",null,10,"glasses","ґласис","окуляри"]
[]
[]
[1,"country","кантрі","країна",null,1,"country","кантрі","країна"]
[2,"capital","кепітл","столиця",null,2,"capital","кепітл","столиця"]
[3,"Africa","ефріке","Африка",null,3,"Africa","ефріке","Африка"]
[4,"Australia","остреліе","Австралія",null,4,"Australia","остреліе","Австралія"]
[5,"Europe","юереп","Європа",null,5,"Europe","юереп","Європа"]
[6,"Asia","ейше","Азія",null,6,"Asia","ейше","Азія"]
[7,"America","емеріке","Америка",null,7,"America","емеріке","Америка"]
[8,"short hair","шот хее","коротке волосся",null,8,"short hair","шот хее","коротке волосся"]
[9,"fair hair","фее хее","світле волося",null,9,"fair hair","фее хее","світле волося"]
[10,"glasses","ґласис","окуляри",null,10,"glasses","ґласис","окуляри"]
[]
[]
[1,"country","кантрі","країна",null,1,"country","кантрі","країна"]
[2,"capital","кепітл","столиця",null,2,"capital","кепітл","столиця"]
[3,"Africa","ефріке","Африка",null,3,"Africa","ефріке","Африка"]
[4,"Australia","остреліе","Австралія",null,4,"Australia","остреліе","Австралія"]
[5,"Europe","юереп","Європа",null,5,"Europe","юереп","Європа"]
[6,"Asia","ейше","Азія",null,6,"Asia","ейше","Азія"]
[7,"America","емеріке","Америка",null,7,"America","емеріке","Америка"]
[8,"short hair","шот хее","коротке волосся",null,8,"short hair","шот хее","коротке волосся"]
[9,"fair hair","фее хее","світле волося",null,9,"fair hair","фее хее","світле волося"]
[10,"glasses","ґласис","окуляри",null,10,"glasses","ґласис","окуляри"]
[]
[]
[]
[]
[1,"country","кантрі","країна"]
[2,"capital","кепітл","столиця"]
[3,"Africa","ефріке","Африка"]
[4,"Australia","остреліе","Австралія"]
[5,"Europe","юереп","Європа"]
[6,"America","емеріке","Америка"]
[]
[8,"short hair","шот хее","коротке волосся"]
[9,"fair hair","фее хее","світле волося"]
[10,"glasses","ґласис","окуляри"]

{"sheet":"Лист6","index":7,"n_rows":94,"n_cols":12,"rows_kept":94,"cut":false,"hidden":false,"merged":[]}
["a)","Africa",null,1,"Австралія",null,null,"a)","Africa",null,1,"Австралія"]
["b)","America",null,2,"Азія",null,null,"b)","America",null,2,"Азія"]
["c)","Asia",null,3,"Америка",null,null,"c)","Asia",null,3,"Америка"]
["d)","Australia",null,4,"Африка",null,null,"d)","Australia",null,4,"Африка"]
["e)","capital",null,5,"Європа",null,null,"e)","capital",null,5,"Європа"]
["f)","country",null,6,"коротке волосся",null,null,"f)","country",null,6,"коротке волосся"]
["g)","Europe",null,7,"країна",null,null,"g)","Europe",null,7,"країна"]
["h)","fair hair",null,8,"окуляри",null,null,"h)","fair hair",null,8,"окуляри"]
["i)","glasses",null,9,"світле волося",null,null,"i)","glasses",null,9,"світле волося"]
["j)","short hair",null,10,"столиця",null,null,"j)","short hair",null,10,"столиця"]
[]
[]
["a)","Africa",null,1,"Австралія",null,null,"a)","Africa",null,1,"Австралія"]
["b)","America",null,2,"Азія",null,null,"b)","America",null,2,"Азія"]
["c)","Asia",null,3,"Америка",null,null,"c)","Asia",null,3,"Америка"]
["d)","Australia",null,4,"Африка",null,null,"d)","Australia",null,4,"Африка"]
["e)","capital",null,5,"Європа",null,null,"e)","capital",null,5,"Європа"]
["f)","country",null,6,"коротке волосся",null,null,"f)","country",null,6,"коротке волосся"]
["g)","Europe",null,7,"країна",null,null,"g)","Europe",null,7,"країна"]
["h)","fair hair",null,8,"окуляри",null,null,"h)","fair hair",null,8,"окуляри"]
["i)","glasses",null,9,"світле волося",null,null,"i)","glasses",null,9,"світле волося"]
["j)","short hair",null,10,"столиця",null,null,"j)","short hair",null,10,"столиця"]
[]
[]
["a)","Africa",null,1,"Австралія",null,null,"a)","Africa",null,1,"Австралія"]
["b)","America",null,2,"Азія",null,null,"b)","America",null,2,"Азія"]
["c)","Asia",null,3,"Америка",null,null,"c)","Asia",null,3,"Америка"]
["d)","Australia",null,4,"Африка",null,null,"d)","Australia",null,4,"Африка"]
["e)","capital",null,5,"Європа",null,null,"e)","capital",null,5,"Європа"]
["f)","country",null,6,"коротке волосся",null,null,"f)","country",null,6,"коротке волосся"]
["g)","Europe",null,7,"країна",null,null,"g)","Europe",null,7,"країна"]
["h)","fair hair",null,8,"окуляри",null,null,"h)","fair hair",null,8,"окуляри"]
["i)","glasses",null,9,"світле волося",null,null,"i)","glasses",null,9,"світле волося"]
["j)","short hair",null,10,"столиця",null,null,"j)","short hair",null,10,"столиця"]
[]
[]
["a)","Africa",null,1,"Австралія",null,null,"a)","Africa",null,1,"Австралія"]
["b)","America",null,2,"Азія",null,null,"b)","America",null,2,"Азія"]
["c)","Asia",null,3,"Америка",null,null,"c)","Asia",null,3,"Америка"]
["d)","Australia",null,4,"Африка",null,null,"d)","Australia",null,4,"Африка"]
["e)","capital",null,5,"Європа",null,null,"e)","capital",null,5,"Європа"]
["f)","country",null,6,"коротке волосся",null,null,"f)","country",null,6,"коротке волосся"]
["g)","Europe",null,7,"країна",null,null,"g)","Europe",null,7,"країна"]
["h)","fair hair",null,8,"окуляри",null,null,"h)","fair hair",null,8,"окуляри"]
["i)","glasses",null,9,"світле волося",null,null,"i)","glasses",null,9,"світле волося"]
["j)","short hair",null,10,"столиця",null,null,"j)","short hair",null,10,"столиця"]
[]
[]
[1,"short hair",null,null,null,null,null,1,"short hair"]
[2,"glasses",null,null,null,null,null,2,"glasses"]
[3,"fair hair",null,null,null,null,null,3,"fair hair"]
[4,"Europe",null,null,null,null,null,4,"Europe"]
[5,"country",null,null,null,null,null,5,"country"]
[6,"capital",null,null,null,null,null,6,"capital"]
[7,"Australia",null,null,null,null,null,7,"Australia"]
[8,"Asia",null,null,null,null,null,8,"Asia"]
[9,"America",null,null,null,null,null,9,"America"]
[10,"Africa",null,null,null,null,null,10,"Africa"]
[]
[]
[1,"short hair",null,null,null,null,null,1,"short hair"]
[2,"glasses",null,null,null,null,null,2,"glasses"]
[3,"fair hair",null,null,null,null,null,3,"fair hair"]
[4,"Europe",null,null,null,null,null,4,"Europe"]
[5,"country",null,null,null,null,null,5,"country"]
[6,"capital",null,null,null,null,null,6,"capital"]
[7,"Australia",null,null,null,null,null,7,"Australia"]
[8,"Asia",null,null,null,null,null,8,"Asia"]
[9,"America",null,null,null,null,null,9,"America"]
[10,"Africa",null,null,null,null,null,10,"Africa"]
[]
[]
[1,"short hair",null,null,null,null,null,1,"short hair"]
[2,"glasses",null,null,null,null,null,2,"glasses"]
[3,"fair hair",null,null,null,null,null,3,"fair hair"]
[4,"Europe",null,null,null,null,null,4,"Europe"]
[5,"country",null,null,null,null,null,5,"country"]
[6,"capital",null,null,null,null,null,6,"capital"]
[7,"Australia",null,null,null,null,null,7,"Australia"]
[8,"Asia",null,null,null,null,null,8,"Asia"]
[9,"America",null,null,null,null,null,9,"America"]
[10,"Africa",null,null,null,null,null,10,"Africa"]
[]
[]
[1,"short hair",null,null,null,null,null,1,"short hair"]
[2,"glasses",null,null,null,null,null,2,"glasses"]
[3,"fair hair",null,null,null,null,null,3,"fair hair"]
[4,"Europe",null,null,null,null,null,4,"Europe"]
[5,"country",null,null,null,null,null,5,"country"]
[6,"capital",null,null,null,null,null,6,"capital"]
[7,"Australia",null,null,null,null,null,7,"Australia"]
[8,"Asia",null,null,null,null,null,8,"Asia"]
[9,"America",null,null,null,null,null,9,"America"]
[10,"Africa",null,null,null,null,null,10,"Africa"]

{"sheet":"Лист7","index":8,"n_rows":44,"n_cols":9,"rows_kept":44,"cut":false,"hidden":false,"merged":[]}
[1,"city","сіті","місто",null,1,"city","сіті","місто"]
[2,"town","таун","містечко",null,2,"town","таун","містечко"]
[3,"village","вілідж","село",null,3,"village","вілідж","село"]
[4,"quite","квайт","спокійний",null,4,"quite","квайт","спокійний"]
[5,"noisy","нойзі","галасливий",null,5,"noisy","нойзі","галасливий"]
[6,"year","єе","рік",null,6,"year","єе","рік"]
[7,"young","ян","молодий",null,7,"young","ян","молодий"]
[8,"aunt","ант","тітка",null,8,"aunt","ант","тітка"]
[9,"daughter","доте","дочка",null,9,"daughter","доте","дочка"]
[]
[]
[1,"city","сіті","місто",null,1,"city","сіті","місто"]
[2,"town","таун","містечко",null,2,"town","таун","містечко"]
[3,"village","вілідж","село",null,3,"village","вілідж","село"]
[4,"quite","квайт","спокійний",null,4,"quite","квайт","спокійний"]
[5,"noisy","нойзі","галасливий",null,5,"noisy","нойзі","галасливий"]
[6,"year","єе","рік",null,6,"year","єе","рік"]
[7,"young","ян","молодий",null,7,"young","ян","молодий"]
[8,"aunt","ант","тітка",null,8,"aunt","ант","тітка"]
[9,"daughter","доте","дочка",null,9,"daughter","доте","дочка"]
[]
[]
[]
[1,"city","сіті","місто",null,1,"city","сіті","місто"]
[2,"town","таун","містечко",null,2,"town","таун","містечко"]
[3,"village","вілідж","село",null,3,"village","вілідж","село"]
[4,"quite","квайт","спокійний",null,4,"quite","квайт","спокійний"]
[5,"noisy","нойзі","галасливий",null,5,"noisy","нойзі","галасливий"]
[6,"year","єе","рік",null,6,"year","єе","рік"]
[7,"young","ян","молодий",null,7,"young","ян","молодий"]
[8,"aunt","ант","тітка",null,8,"aunt","ант","тітка"]
[9,"daughter","доте","дочка",null,9,"daughter","доте","дочка"]
[]
[]
[]
[1,"city","сіті","місто",null,1,"city","сіті","місто"]
[2,"town","таун","містечко",null,2,"town","таун","містечко"]
[3,"village","вілідж","село",null,3,"village","вілідж","село"]
[4,"quite","квайт","спокійний",null,4,"quite","квайт","спокійний"]
[5,"noisy","нойзі","галасливий",null,5,"noisy","нойзі","галасливий"]
[6,"year","єе","рік",null,6,"year","єе","рік"]
[7,"young","ян","молодий",null,7,"young","ян","молодий"]
[8,"aunt","ант","тітка",null,8,"aunt","ант","тітка"]
[9,"daughter","доте","дочка",null,9,"daughter","доте","дочка"]

{"sheet":"Лист8","index":9,"n_rows":44,"n_cols":9,"rows_kept":44,"cut":false,"hidden":false,"merged":[]}
[1,"underground","андеґраунд","метро",null,1,"underground","андеґраунд","метро"]
[2,"museum","м'юзіем","музей",null,2,"museum","м'юзіем","музей"]
[3,"supermarket","сьюпемакет","супемаркет",null,3,"supermarket","сьюпемакет","супемаркет"]
[4,"theatre","сіете","театр",null,4,"theatre","сіете","театр"]
[5,"cinema","сінема","кінотеатр",null,5,"cinema","сінема","кінотеатр"]
[6,"library","лайбрері","бібліотека",null,6,"library","лайбрері","бібліотека"]
[7,"zoo","зуу","зоопарк",null,7,"zoo","зуу","зоопарк"]
[8,"skyscraper","скайскрейпе","хмарочос",null,8,"skyscraper","скайскрейпе","хмарочос"]
[9,"flat","флет","квартира",null,9,"flat","флет","квартира"]
[]
[]
[1,"underground","андеґраунд","метро",null,1,"underground","андеґраунд","метро"]
[2,"museum","м'юзіем","музей",null,2,"museum","м'юзіем","музей"]
[3,"supermarket","сьюпемакет","супемаркет",null,3,"supermarket","сьюпемакет","супемаркет"]
[4,"theatre","сіете","театр",null,4,"theatre","сіете","театр"]
[5,"cinema","сінема","кінотеатр",null,5,"cinema","сінема","кінотеатр"]
[6,"library","лайбрері","бібліотека",null,6,"library","лайбрері","бібліотека"]
[7,"zoo","зуу","зоопарк",null,7,"zoo","зуу","зоопарк"]
[8,"skyscraper","скайскрейпе","хмарочос",null,8,"skyscraper","скайскрейпе","хмарочос"]
[9,"flat","флет","квартира",null,9,"flat","флет","квартира"]
[]
[]
[]
[1,"underground","андеґраунд","метро",null,1,"underground","андеґраунд","метро"]
[2,"museum","м'юзіем","музей",null,2,"museum","м'юзіем","музей"]
[3,"supermarket","сьюпемакет","супемаркет",null,3,"supermarket","сьюпемакет","супемаркет"]
[4,"theatre","сіете","театр",null,4,"theatre","сіете","театр"]
[5,"cinema","сінема","кінотеатр",null,5,"cinema","сінема","кінотеатр"]
[6,"library","лайбрері","бібліотека",null,6,"library","лайбрері","бібліотека"]
[7,"zoo","зуу","зоопарк",null,7,"zoo","зуу","зоопарк"]
[8,"skyscraper","скайскрейпе","хмарочос",null,8,"skyscraper","скайскрейпе","хмарочос"]
[9,"flat","флет","квартира",null,9,"flat","флет","квартира"]
[]
[]
[]
[1,"underground","андеґраунд","метро",null,1,"underground","андеґраунд","метро"]
[2,"museum","м'юзіем","музей",null,2,"museum","м'юзіем","музей"]
[3,"supermarket","сьюпемакет","супемаркет",null,3,"supermarket","сьюпемакет","супемаркет"]
[4,"theatre","сіете","театр",null,4,"theatre","сіете","театр"]
[5,"cinema","сінема","кінотеатр",null,5,"cinema","сінема","кінотеатр"]
[6,"library","лайбрері","бібліотека",null,6,"library","лайбрері","бібліотека"]
[7,"zoo","зуу","зоопарк",null,7,"zoo","зуу","зоопарк"]
[8,"skyscraper","скайскрейпе","хмарочос",null,8,"skyscraper","скайскрейпе","хмарочос"]
[9,"flat","флет","квартира",null,9,"flat","флет","квартира"]

{"sheet":"самос (3)","index":10,"n_rows":54,"n_cols":29,"rows_kept":54,"cut":false,"hidden":false,"merged":[]}
["Name_________________________              Date_______",null,null,null,null,"Name_________________________              Date_______",null,null,null,"Name_________________________              Date_______",null,null,null,"Name_________________________              Date_______"]
[]
[null,{"$f":"S3","v":"underground"},1,{"$f":"V3","v":"хмарочос"},null,null,{"$f":"S3","v":"underground"},1,{"$f":"V3","v":"хмарочос"},{"$f":"S16","v":"zoo"},null,null,null,{"$f":"J3","v":"zoo"},null,null,null,null,"underground",null,1,"хмарочос"]
[null,"museum",2,"театр",null,null,{"$f":"S4","v":"museum"},2,{"$f":"V4","v":"театр"},{"$f":"S17","v":"underground"},null,null,null,{"$f":"J4","v":"underground"},null,null,null,null,"museum",null,2,"театр"]
[null,"supermarket",3,"супемаркет",null,null,"supermarket",3,"супемаркет","theatre",null,null,null,"theatre",null,null,null,null,"supermarket",null,3,"супемаркет"]
[null,"theatre",4,"музей",null,null,"theatre",4,"музей","supermarket",null,null,null,"supermarket",null,null,null,null,"theatre",null,4,"музей"]
[null,"cinema",5,"метро",null,null,"cinema",5,"метро","skyscraper",null,null,null,"skyscraper",null,null,null,null,"cinema",null,5,"метро"]
[null,"library",6,"кінотеатр",null,null,"library",6,"кінотеатр","museum",null,null,null,"museum",null,null,null,null,"library",null,6,"кінотеатр"]
[null,"zoo",7,"квартира",null,null,"zoo",7,"квартира","library",null,null,null,"library",null,null,null,null,"zoo",null,7,"квартира"]
[null,"skyscraper",8,"зоопарк",null,null,"skyscraper",8,"зоопарк","flat",null,null,null,"flat",null,null,null,null,"skyscraper",null,8,"зоопарк"]
[null,"flat",9,"бібліотека",null,null,"flat",9,"бібліотека","cinema",null,null,null,"cinema",null,null,null,null,"flat",null,9,"бібліотека"]
[null,0,10,0,null,null,0,10,0,0,null,null,null,0,null,null,null,null,null,null,10]
[null,0,11,0,null,null,0,11,0,0,null,null,null,0,null,null,null,null,null,null,11]
[null,null,null,null,null,null,null,null,null,null,null,null,null,null,null,null,null,null,null,null,null,null,null,null,null,null,"underground","андеґраунд","хмарочос"]
["Name_________________________              Date_______",null,null,null,null,"Name_________________________              Date_______",null,null,null,"Name_________________________              Date_______",null,null,null,"Name_________________________              Date_______",null,null,null,null,null,null,null,null,null,null,null,null,"museum","м'юзіем","театр"]
[null,null,null,null,null,null,null,null,null,null,null,null,null,null,null,null,null,null,"zoo",null,null,null,null,null,null,null,"supermarket","сьюпемакет","супемаркет"]
[null,{"$f":"S3","v":"underground"},1,{"$f":"V3","v":"хмарочос"},null,null,{"$f":"B17","v":"underground"},1,{"$f":"D17","v":"хмарочос"},{"$f":"J3","v":"zoo"},null,null,null,{"$f":"J17","v":"zoo"},null,null,null,null,"underground",null,null,null,null,null,null,null,"theatre","сіете","музей"]
[null,{"$f":"S4","v":"museum"},2,{"$f":"V4","v":"театр"},null,null,{"$f":"B18","v":"museum"},2,{"$f":"D18","v":"театр"},{"$f":"J4","v":"underground"},null,null,null,{"$f":"J18","v":"underground"},null,null,null,null,"theatre",null,null,null,null,null,null,null,"cinema","сінема","метро"]
[null,"supermarket",3,"супемаркет",null,null,"supermarket",3,"супемаркет","theatre",null,null,null,"theatre",null,null,null,null,"supermarket",null,null,null,null,null,null,null,"library","лайбрері","кінотеатр"]
[null,"theatre",4,"музей",null,null,"theatre",4,"музей","supermarket",null,null,null,"supermarket",null,null,null,null,"skyscraper",null,null,null,null,null,null,null,"zoo","зуу","квартира"]
[null,"cinema",5,"метро",null,null,"cinema",5,"метро","skyscraper",null,null,null,"skyscraper",null,null,null,null,"museum",null,null,null,null,"zoo",null,null,"skyscraper","скайскрейпе","зоопарк"]
[null,"library",6,"кінотеатр",null,null,"library",6,"кінотеатр","museum",null,null,null,"museum",null,null,null,null,"library",null,null,null,null,"underground",null,null,"flat","флет","бібліотека"]
[null,"zoo",7,"квартира",null,null,"zoo",7,"квартира","library",null,null,null,"library",null,null,null,null,"flat",null,null,null,null,"theatre"]
[null,"skyscraper",8,"зоопарк",null,null,"skyscraper",8,"зоопарк","flat",null,null,null,"flat",null,null,null,null,"cinema",null,null,null,null,"supermarket"]
[null,"flat",9,"бібліотека",null,null,"flat",9,"бібліотека","cinema",null,null,null,"cinema",null,null,null,null,null,null,null,null,null,"skyscraper"]
[null,0,10,0,null,null,0,10,0,0,null,null,null,0,null,null,null,null,null,null,null,null,null,"museum"]
[null,0,11,0,null,null,0,11,0,0,null,null,null,0,null,null,null,null,null,null,null,null,null,"library"]
[null,null,null,null,null,null,null,null,null,null,null,null,null,null,null,null,null,null,null,null,null,null,null,"flat"]
["Name_________________________              Date_______",null,null,null,null,"Name_________________________              Date_______",null,null,null,"Name_________________________              Date_______",null,null,null,"Name_________________________              Date_______",null,null,null,null,null,null,null,null,null,"cinema"]
[]
[null,{"$f":"B17","v":"underground"},1,{"$f":"D17","v":"хмарочос"},null,null,{"$f":"B31","v":"underground"},1,{"$f":"D31","v":"хмарочос"},{"$f":"J17","v":"zoo"},null,null,null,{"$f":"J31","v":"zoo"}]
[null,{"$f":"B18","v":"museum"},2,{"$f":"D18","v":"театр"},null,null,{"$f":"B32","v":"museum"},2,{"$f":"D32","v":"театр"},{"$f":"J18","v":"underground"},null,null,null,{"$f":"J32","v":"underground"}]
[null,"supermarket",3,"супемаркет",null,null,"supermarket",3,"супемаркет","theatre",null,null,null,"theatre"]
[null,"theatre",4,"музей",null,null,"theatre",4,"музей","supermarket",null,null,null,"supermarket"]
[null,"cinema",5,"метро",null,null,"cinema",5,"метро","skyscraper",null,null,null,"skyscraper"]
[null,"library",6,"кінотеатр",null,null,"library",6,"кінотеатр","museum",null,null,null,"museum"]
[null,"zoo",7,"квартира",null,null,"zoo",7,"квартира","library",null,null,null,"library"]
[null,"skyscraper",8,"зоопарк",null,null,"skyscraper",8,"зоопарк","flat",null,null,null,"flat"]
[null,"flat",9,"бібліотека",null,null,"flat",9,"бібліотека","cinema",null,null,null,"cinema"]
[null,0,10,0,null,null,0,10,0,0,null,null,null,0]
[null,0,11,0,null,null,0,11,0,0,null,null,null,0]
[]
["Name_________________________              Date_______",null,null,null,null,null,null,null,null,"Name_________________________              Date_______",null,null,null,"Name_________________________              Date_______"]
[]
[null,{"$f":"B31","v":"underground"},1,{"$f":"D31","v":"хмарочос"},null,null,{"$f":"B39","v":"flat"},9,{"$f":"D39","v":"бібліотека"},{"$f":"J31","v":"zoo"},null,null,null,{"$f":"J39","v":"cinema"}]
[null,{"$f":"B32","v":"museum"},2,{"$f":"D32","v":"театр"},null,null,{"$f":"B40","v":0},10,{"$f":"D40","v":0},{"$f":"J32","v":"underground"},null,null,null,{"$f":"J40","v":0}]
[null,"supermarket",3,"супемаркет",null,null,{"$f":"B41","v":0},11,{"$f":"D41","v":0},"theatre",null,null,null,{"$f":"J41","v":0}]
[null,"theatre",4,"музей",null,null,null,null,null,"supermarket"]
[null,"cinema",5,"метро",null,null,null,null,null,"skyscraper"]
[null,"library",6,"кінотеатр",null,null,null,null,null,"museum"]
[null,{"$f":"B37","v":"zoo"},7,{"$f":"D37","v":"квартира"},null,null,null,null,null,{"$f":"J37","v":"library"}]
[null,{"$f":"B38","v":"skyscraper"},8,{"$f":"D38","v":"зоопарк"},null,null,null,null,null,{"$f":"J38","v":"flat"}]
[]
[null,7]

{"sheet":"Лист9","index":11,"n_rows":49,"n_cols":8,"rows_kept":49,"cut":false,"hidden":false,"merged":[]}
[1,"cinema",null,null,null,null,1,"cinema"]
[2,"flat",null,null,null,null,2,"flat"]
[3,"library",null,null,null,null,3,"library"]
[4,"museum",null,null,null,null,4,"museum"]
[5,"skyscraper",null,null,null,null,5,"skyscraper"]
[6,"supermarket",null,null,null,null,6,"supermarket"]
[7,"theatre",null,null,null,null,7,"theatre"]
[8,"underground",null,null,null,null,8,"underground"]
[9,"zoo",null,null,null,null,9,"zoo"]
[]
[1,"cinema",null,null,null,null,1,"cinema"]
[2,"flat",null,null,null,null,2,"flat"]
[3,"library",null,null,null,null,3,"library"]
[4,"museum",null,null,null,null,4,"museum"]
[5,"skyscraper",null,null,null,null,5,"skyscraper"]
[6,"supermarket",null,null,null,null,6,"supermarket"]
[7,"theatre",null,null,null,null,7,"theatre"]
[8,"underground",null,null,null,null,8,"underground"]
[9,"zoo",null,null,null,null,9,"zoo"]
[]
[1,"cinema",null,null,null,null,1,"cinema"]
[2,"flat",null,null,null,null,2,"flat"]
[3,"library",null,null,null,null,3,"library"]
[4,"museum",null,null,null,null,4,"museum"]
[5,"skyscraper",null,null,null,null,5,"skyscraper"]
[6,"supermarket",null,null,null,null,6,"supermarket"]
[7,"theatre",null,null,null,null,7,"theatre"]
[8,"underground",null,null,null,null,8,"underground"]
[9,"zoo",null,null,null,null,9,"zoo"]
[]
[1,"cinema",null,null,null,null,1,"cinema"]
[2,"flat",null,null,null,null,2,"flat"]
[3,"library",null,null,null,null,3,"library"]
[4,"museum",null,null,null,null,4,"museum"]
[5,"skyscraper",null,null,null,null,5,"skyscraper"]
[6,"supermarket",null,null,null,null,6,"supermarket"]
[7,"theatre",null,null,null,null,7,"theatre"]
[8,"underground",null,null,null,null,8,"underground"]
[9,"zoo",null,null,null,null,9,"zoo"]
[]
[1,"cinema",null,null,null,null,1,"cinema"]
[2,"flat",null,null,null,null,2,"flat"]
[3,"library",null,null,null,null,3,"library"]
[4,"museum",null,null,null,null,4,"museum"]
[5,"skyscraper",null,null,null,null,5,"skyscraper"]
[6,"supermarket",null,null,null,null,6,"supermarket"]
[7,"theatre",null,null,null,null,7,"theatre"]
[8,"underground",null,null,null,null,8,"underground"]
[9,"zoo",null,null,null,null,9,"zoo"]

{"sheet":"Лист10","index":12,"n_rows":54,"n_cols":15,"rows_kept":54,"cut":false,"hidden":false,"merged":[]}
[1,"church","чьоч",null,null,1,"church","чьоч"]
[2,"café","кефей",null,null,2,"café","кефей",null,null,1,"I am going to play.",null,1,"I am going to play."]
[3,"shop","шоп",null,null,3,"shop","шоп",null,null,2,"We are going to read.",null,2,"We are going to read."]
[4,"park","пак",null,null,4,"park","пак",null,null,3,"He is going to jump.",null,3,"He is going to jump."]
[5,"post office","пост офіс",null,null,5,"post office","пост офіс",null,null,4,"They are going to run.",null,4,"They are going to run."]
[6,"factory","фектері",null,null,6,"factory","фектері",null,null,5,"Olenka is going to watch TV.",null,5,"Olenka is going to watch TV."]
[7,"hospital","хоспітел",null,null,7,"hospital","хоспітел"]
[8,"railway","рейлвей",null,null,8,"railway","рейлвей"]
[9," station","стейшн",null,null,9," station","стейшн"]
[10,"hotel","хоутел",null,null,10,"hotel","хоутел"]
[]
[1,"church","чьоч",null,null,1,"church","чьоч"]
[2,"café","кефей",null,null,2,"café","кефей",null,null,1,"I am going to play.",null,1,"I am going to play."]
[3,"shop","шоп",null,null,3,"shop","шоп",null,null,2,"We are going to read.",null,2,"We are going to read."]
[4,"park","пак",null,null,4,"park","пак",null,null,3,"He is going to jump.",null,3,"He is going to jump."]
[5,"post office","пост офіс",null,null,5,"post office","пост офіс",null,null,4,"They are going to run.",null,4,"They are going to run."]
[6,"factory","фектері",null,null,6,"factory","фектері",null,null,5,"Olenka is going to watch TV.",null,5,"Olenka is going to watch TV."]
[7,"hospital","хоспітел",null,null,7,"hospital","хоспітел"]
[8,"railway","рейлвей",null,null,8,"railway","рейлвей"]
[9," station","стейшн",null,null,9," station","стейшн"]
[10,"hotel","хоутел",null,null,10,"hotel","хоутел"]
[]
[1,"church","чьоч",null,null,1,"church","чьоч"]
[2,"café","кефей",null,null,2,"café","кефей"]
[3,"shop","шоп",null,null,3,"shop","шоп",null,null,1,"I am going to play.",null,1,"I am going to play."]
[4,"park","пак",null,null,4,"park","пак",null,null,2,"We are going to read.",null,2,"We are going to read."]
[5,"post office","пост офіс",null,null,5,"post office","пост офіс",null,null,3,"He is going to jump.",null,3,"He is going to jump."]
[6,"factory","фектері",null,null,6,"factory","фектері",null,null,4,"They are going to run.",null,4,"They are going to run."]
[7,"hospital","хоспітел",null,null,7,"hospital","хоспітел",null,null,5,"Olenka is going to watch TV.",null,5,"Olenka is going to watch TV."]
[8,"railway","рейлвей",null,null,8,"railway","рейлвей"]
[9," station","стейшн",null,null,9," station","стейшн"]
[10,"hotel","хоутел",null,null,10,"hotel","хоутел"]
[]
[1,"church","чьоч",null,null,1,"church","чьоч"]
[2,"café","кефей",null,null,2,"café","кефей"]
[3,"shop","шоп",null,null,3,"shop","шоп",null,null,1,"I am going to play.",null,1,"I am going to play."]
[4,"park","пак",null,null,4,"park","пак",null,null,2,"We are going to read.",null,2,"We are going to read."]
[5,"post office","пост офіс",null,null,5,"post office","пост офіс",null,null,3,"He is going to jump.",null,3,"He is going to jump."]
[6,"factory","фектері",null,null,6,"factory","фектері",null,null,4,"They are going to run.",null,4,"They are going to run."]
[7,"hospital","хоспітел",null,null,7,"hospital","хоспітел",null,null,5,"Olenka is going to watch TV.",null,5,"Olenka is going to watch TV."]
[8,"railway","рейлвей",null,null,8,"railway","рейлвей"]
[9," station","стейшн",null,null,9," station","стейшн"]
[10,"hotel","хоутел",null,null,10,"hotel","хоутел"]
[]
[1,"church","чьоч",null,null,1,"church","чьоч"]
[2,"café","кефей",null,null,2,"café","кефей"]
[3,"shop","шоп",null,null,3,"shop","шоп",null,null,1,"I am going to play.",null,1,"I am going to play."]
[4,"park","пак",null,null,4,"park","пак",null,null,2,"We are going to read.",null,2,"We are going to read."]
[5,"post office","пост офіс",null,null,5,"post office","пост офіс",null,null,3,"He is going to jump.",null,3,"He is going to jump."]
[6,"factory","фектері",null,null,6,"factory","фектері",null,null,4,"They are going to run.",null,4,"They are going to run."]
[7,"hospital","хоспітел",null,null,7,"hospital","хоспітел",null,null,5,"Olenka is going to watch TV.",null,5,"Olenka is going to watch TV."]
[8,"railway","рейлвей",null,null,8,"railway","рейлвей"]
[9," station","стейшн",null,null,9," station","стейшн"]
[10,"hotel","хоутел",null,null,10,"hotel","хоутел"]

{"sheet":"Лист11","index":13,"n_rows":44,"n_cols":9,"rows_kept":44,"cut":false,"hidden":false,"merged":[]}
[1,"vegetable","веджітебл","овочі",null,1,"vegetable","веджітебл","овочі"]
[2,"field","фі:лд","поле",null,2,"field","фі:лд","поле"]
[3,"private house","прайвіт хауз","приватний будинок",null,3,"private house","прайвіт хауз","приватний будинок"]
[4,"pond","понд","ставок",null,4,"pond","понд","ставок"]
[5,"garden","ґа:ден","сад",null,5,"garden","ґа:ден","сад"]
[6,"forest","форіст","ліс",null,6,"forest","форіст","ліс"]
[7,"farm","фа:м","ферма",null,7,"farm","фа:м","ферма"]
[8,"yard","я:д","подвір'я",null,8,"yard","я:д","подвір'я"]
[9,"market","макіт","базар",null,9,"market","макіт","базар"]
[]
[]
[1,"vegetable","веджітебл","овочі",null,1,"vegetable","веджітебл","овочі"]
[2,"field","фі:лд","поле",null,2,"field","фі:лд","поле"]
[3,"private house","прайвіт хауз","приватний будинок",null,3,"private house","прайвіт хауз","приватний будинок"]
[4,"pond","понд","ставок",null,4,"pond","понд","ставок"]
[5,"garden","ґа:ден","сад",null,5,"garden","ґа:ден","сад"]
[6,"forest","форіст","ліс",null,6,"forest","форіст","ліс"]
[7,"farm","фа:м","ферма",null,7,"farm","фа:м","ферма"]
[8,"yard","я:д","подвір'я",null,8,"yard","я:д","подвір'я"]
[9,"market","макіт","базар",null,9,"market","макіт","базар"]
[]
[]
[]
[1,"vegetable","веджітебл","овочі",null,1,"vegetable","веджітебл","овочі"]
[2,"field","фі:лд","поле",null,2,"field","фі:лд","поле"]
[3,"private house","прайвіт хауз","приватний будинок",null,3,"private house","прайвіт хауз","приватний будинок"]
[4,"pond","понд","ставок",null,4,"pond","понд","ставок"]
[5,"garden","ґа:ден","сад",null,5,"garden","ґа:ден","сад"]
[6,"forest","форіст","ліс",null,6,"forest","форіст","ліс"]
[7,"farm","фа:м","ферма",null,7,"farm","фа:м","ферма"]
[8,"yard","я:д","подвір'я",null,8,"yard","я:д","подвір'я"]
[9,"market","макіт","базар",null,9,"market","макіт","базар"]
[]
[]
[]
[1,"vegetable","веджітебл","овочі",null,1,"vegetable","веджітебл","овочі"]
[2,"field","фі:лд","поле",null,2,"field","фі:лд","поле"]
[3,"private house","прайвіт хауз","приватний будинок",null,3,"private house","прайвіт хауз","приватний будинок"]
[4,"pond","понд","ставок",null,4,"pond","понд","ставок"]
[5,"garden","ґа:ден","сад",null,5,"garden","ґа:ден","сад"]
[6,"forest","форіст","ліс",null,6,"forest","форіст","ліс"]
[7,"farm","фа:м","ферма",null,7,"farm","фа:м","ферма"]
[8,"yard","я:д","подвір'я",null,8,"yard","я:д","подвір'я"]
[9,"market","макіт","базар",null,9,"market","макіт","базар"]

{"sheet":"Лист13","index":14,"n_rows":51,"n_cols":9,"rows_kept":51,"cut":false,"hidden":false,"merged":[]}
[1,"address",null,"авеню",null,1,"address",null,"авеню"]
[2,"avenue",null,"адреса",null,2,"avenue",null,"адреса"]
[3,"flat",null,"вулиця",null,3,"flat",null,"вулиця"]
[4,"lane",null,"квартира",null,4,"lane",null,"квартира"]
[5,"square",null,"площа",null,5,"square",null,"площа"]
[6,"street",null,"провулок",null,6,"street",null,"провулок"]
[7,"to sell",null,"продавати",null,7,"to sell",null,"продавати"]
[]
[]
[1,"address",null,"авеню",null,1,"address",null,"авеню"]
[2,"avenue",null,"адреса",null,2,"avenue",null,"адреса"]
[3,"flat",null,"вулиця",null,3,"flat",null,"вулиця"]
[4,"lane",null,"квартира",null,4,"lane",null,"квартира"]
[5,"square",null,"площа",null,5,"square",null,"площа"]
[6,"street",null,"провулок",null,6,"street",null,"провулок"]
[7,"to sell",null,"продавати",null,7,"to sell",null,"продавати"]
[]
[]
[1,"address",null,"авеню",null,1,"address",null,"авеню"]
[2,"avenue",null,"адреса",null,2,"avenue",null,"адреса"]
[3,"flat",null,"вулиця",null,3,"flat",null,"вулиця"]
[4,"lane",null,"квартира",null,4,"lane",null,"квартира"]
[5,"square",null,"площа",null,5,"square",null,"площа"]
[6,"street",null,"провулок",null,6,"street",null,"провулок"]
[7,"to sell",null,"продавати",null,7,"to sell",null,"продавати"]
[]
[]
[1,"address",null,"авеню",null,1,"address",null,"авеню"]
[2,"avenue",null,"адреса",null,2,"avenue",null,"адреса"]
[3,"flat",null,"вулиця",null,3,"flat",null,"вулиця"]
[4,"lane",null,"квартира",null,4,"lane",null,"квартира"]
[5,"square",null,"площа",null,5,"square",null,"площа"]
[6,"street",null,"провулок",null,6,"street",null,"провулок"]
[7,"to sell",null,"продавати",null,7,"to sell",null,"продавати"]
[]
[]
[1,"address",null,"авеню",null,1,"address",null,"авеню"]
[2,"avenue",null,"адреса",null,2,"avenue",null,"адреса"]
[3,"flat",null,"вулиця",null,3,"flat",null,"вулиця"]
[4,"lane",null,"квартира",null,4,"lane",null,"квартира"]
[5,"square",null,"площа",null,5,"square",null,"площа"]
[6,"street",null,"провулок",null,6,"street",null,"провулок"]
[7,"to sell",null,"продавати",null,7,"to sell",null,"продавати"]
[]
[1,"address",null,"авеню",null,1,"address",null,"авеню"]
[2,"avenue",null,"адреса",null,2,"avenue",null,"адреса"]
[3,"flat",null,"вулиця",null,3,"flat",null,"вулиця"]
[4,"lane",null,"квартира",null,4,"lane",null,"квартира"]
[5,"square",null,"площа",null,5,"square",null,"площа"]
[6,"street",null,"провулок",null,6,"street",null,"провулок"]
[7,"to sell",null,"продавати",null,7,"to sell",null,"продавати"]

{"sheet":"Лист14","index":15,"n_rows":44,"n_cols":9,"rows_kept":44,"cut":false,"hidden":false,"merged":[]}
[1,"shop","шоп","магазин",null,1,"shop","шоп","магазин"]
[2,"bookshop","букшоп","книжний магазин",null,2,"bookshop","букшоп","книжний магазин"]
[3,"toy shop","той шоп","магазин іграшок",null,3,"toy shop","той шоп","магазин іграшок"]
[4,"clothes ","клоуз","одяг",null,4,"clothes ","клоуз","одяг"]
[5,"shoe ","шуу","черевик",null,5,"shoe ","шуу","черевик"]
[6,"assistant","есістент","асистент",null,6,"assistant","есістент","асистент"]
[7,"customer","кастеме","покупець",null,7,"customer","кастеме","покупець"]
[8,"to sell","ту сел","продавати",null,8,"to sell","ту сел","продавати"]
[]
[1,"shop","шоп","магазин",null,1,"shop","шоп","магазин"]
[2,"bookshop","букшоп","книжний магазин",null,2,"bookshop","букшоп","книжний магазин"]
[3,"toy shop","той шоп","магазин іграшок",null,3,"toy shop","той шоп","магазин іграшок"]
[4,"clothes ","клоуз","одяг",null,4,"clothes ","клоуз","одяг"]
[5,"shoe ","шуу","черевик",null,5,"shoe ","шуу","черевик"]
[6,"assistant","есістент","асистент",null,6,"assistant","есістент","асистент"]
[7,"customer","кастеме","покупець",null,7,"customer","кастеме","покупець"]
[8,"to sell","ту сел","продавати",null,8,"to sell","ту сел","продавати"]
[]
[1,"shop","шоп","магазин",null,1,"shop","шоп","магазин"]
[2,"bookshop","букшоп","книжний магазин",null,2,"bookshop","букшоп","книжний магазин"]
[3,"toy shop","той шоп","магазин іграшок",null,3,"toy shop","той шоп","магазин іграшок"]
[4,"clothes ","клоуз","одяг",null,4,"clothes ","клоуз","одяг"]
[5,"shoe ","шуу","черевик",null,5,"shoe ","шуу","черевик"]
[6,"assistant","есістент","асистент",null,6,"assistant","есістент","асистент"]
[7,"customer","кастеме","покупець",null,7,"customer","кастеме","покупець"]
[8,"to sell","ту сел","продавати",null,8,"to sell","ту сел","продавати"]
[]
[1,"shop","шоп","магазин",null,1,"shop","шоп","магазин"]
[2,"bookshop","букшоп","книжний магазин",null,2,"bookshop","букшоп","книжний магазин"]
[3,"toy shop","той шоп","магазин іграшок",null,3,"toy shop","той шоп","магазин іграшок"]
[4,"clothes ","клоуз","одяг",null,4,"clothes ","клоуз","одяг"]
[5,"shoe ","шуу","черевик",null,5,"shoe ","шуу","черевик"]
[6,"assistant","есістент","асистент",null,6,"assistant","есістент","асистент"]
[7,"customer","кастеме","покупець",null,7,"customer","кастеме","покупець"]
[8,"to sell","ту сел","продавати",null,8,"to sell","ту сел","продавати"]
[]
[1,"shop","шоп","магазин",null,1,"shop","шоп","магазин"]
[2,"bookshop","букшоп","книжний магазин",null,2,"bookshop","букшоп","книжний магазин"]
[3,"toy shop","той шоп","магазин іграшок",null,3,"toy shop","той шоп","магазин іграшок"]
[4,"clothes ","клоуз","одяг",null,4,"clothes ","клоуз","одяг"]
[5,"shoe ","шуу","черевик",null,5,"shoe ","шуу","черевик"]
[6,"assistant","есістент","асистент",null,6,"assistant","есістент","асистент"]
[7,"customer","кастеме","покупець",null,7,"customer","кастеме","покупець"]
[8,"to sell","ту сел","продавати",null,8,"to sell","ту сел","продавати"]

{"sheet":"Лист15","index":16,"n_rows":47,"n_cols":9,"rows_kept":47,"cut":false,"hidden":false,"merged":[]}
[1,"curtain","кетн","штора",null,1,"curtain","кетн","штора"]
[2,"carpet","ка:піт","килим",null,2,"carpet","ка:піт","килим"]
[3,"wardrobe","во:дроуб","шафа для одягу",null,3,"wardrobe","во:дроуб","шафа для одягу"]
[4,"clock","клок","годинник",null,4,"clock","клок","годинник"]
[5,"bookcase","буккейс","шафа для книг",null,5,"bookcase","буккейс","шафа для книг"]
[6,"picture","пікче","картина",null,6,"picture","пікче","картина"]
[7,"chair","чее","стілець",null,7,"chair","чее","стілець"]
[]
[1,"curtain","кетн","штора",null,1,"curtain","кетн","штора"]
[2,"carpet","ка:піт","килим",null,2,"carpet","ка:піт","килим"]
[3,"wardrobe","во:дроуб","шафа для одягу",null,3,"wardrobe","во:дроуб","шафа для одягу"]
[4,"clock","клок","годинник",null,4,"clock","клок","годинник"]
[5,"bookcase","буккейс","шафа для книг",null,5,"bookcase","буккейс","шафа для книг"]
[6,"picture","пікче","картина",null,6,"picture","пікче","картина"]
[7,"chair","чее","стілець",null,7,"chair","чее","стілець"]
[]
[1,"curtain","кетн","штора",null,1,"curtain","кетн","штора"]
[2,"carpet","ка:піт","килим",null,2,"carpet","ка:піт","килим"]
[3,"wardrobe","во:дроуб","шафа для одягу",null,3,"wardrobe","во:дроуб","шафа для одягу"]
[4,"clock","клок","годинник",null,4,"clock","клок","годинник"]
[5,"bookcase","буккейс","шафа для книг",null,5,"bookcase","буккейс","шафа для книг"]
[6,"picture","пікче","картина",null,6,"picture","пікче","картина"]
[7,"chair","чее","стілець",null,7,"chair","чее","стілець"]
[]
[1,"curtain","кетн","штора",null,1,"curtain","кетн","штора"]
[2,"carpet","ка:піт","килим",null,2,"carpet","ка:піт","килим"]
[3,"wardrobe","во:дроуб","шафа для одягу",null,3,"wardrobe","во:дроуб","шафа для одягу"]
[4,"clock","клок","годинник",null,4,"clock","клок","годинник"]
[5,"bookcase","буккейс","шафа для книг",null,5,"bookcase","буккейс","шафа для книг"]
[6,"picture","пікче","картина",null,6,"picture","пікче","картина"]
[7,"chair","чее","стілець",null,7,"chair","чее","стілець"]
[]
[1,"curtain","кетн","штора",null,1,"curtain","кетн","штора"]
[2,"carpet","ка:піт","килим",null,2,"carpet","ка:піт","килим"]
[3,"wardrobe","во:дроуб","шафа для одягу",null,3,"wardrobe","во:дроуб","шафа для одягу"]
[4,"clock","клок","годинник",null,4,"clock","клок","годинник"]
[5,"bookcase","буккейс","шафа для книг",null,5,"bookcase","буккейс","шафа для книг"]
[6,"picture","пікче","картина",null,6,"picture","пікче","картина"]
[7,"chair","чее","стілець",null,7,"chair","чее","стілець"]
[]
[1,"curtain","кетн","штора",null,1,"curtain","кетн","штора"]
[2,"carpet","ка:піт","килим",null,2,"carpet","ка:піт","килим"]
[3,"wardrobe","во:дроуб","шафа для одягу",null,3,"wardrobe","во:дроуб","шафа для одягу"]
[4,"clock","клок","годинник",null,4,"clock","клок","годинник"]
[5,"bookcase","буккейс","шафа для книг",null,5,"bookcase","буккейс","шафа для книг"]
[6,"picture","пікче","картина",null,6,"picture","пікче","картина"]
[7,"chair","чее","стілець",null,7,"chair","чее","стілець"]

{"sheet":"Лист16","index":17,"n_rows":107,"n_cols":10,"rows_kept":107,"cut":false,"hidden":false,"merged":[]}
[1,"shop",null,null,null,null,1,"shop"]
[2,"bookshop",null,null,null,null,2,"bookshop"]
[3,"toy shop",null,null,null,null,3,"toy shop"]
[4,"clothes ",null,null,null,null,4,"clothes "]
[5,"shoe ",null,null,null,null,5,"shoe "]
[6,"assistant",null,null,null,null,6,"assistant"]
[7,"customer",null,null,null,null,7,"customer"]
[8,"to sell",null,null,null,null,8,"to sell"]
[]
[1,"shop",null,null,null,null,1,"shop"]
[2,"bookshop",null,null,null,null,2,"bookshop"]
[3,"toy shop",null,null,null,null,3,"toy shop"]
[4,"clothes ",null,null,null,null,4,"clothes "]
[5,"shoe ",null,null,null,null,5,"shoe "]
[6,"assistant",null,null,null,null,6,"assistant"]
[7,"customer",null,null,null,null,7,"customer"]
[8,"to sell",null,null,null,null,8,"to sell"]
[]
[1,"shop",null,null,null,null,1,"shop"]
[2,"bookshop",null,null,null,null,2,"bookshop"]
[3,"toy shop",null,null,null,null,3,"toy shop"]
[4,"clothes ",null,null,null,null,4,"clothes "]
[5,"shoe ",null,null,null,null,5,"shoe "]
[6,"assistant",null,null,null,null,6,"assistant"]
[7,"customer",null,null,null,null,7,"customer"]
[8,"to sell",null,null,null,null,8,"to sell"]
[]
[1,"shop",null,null,null,null,1,"shop"]
[2,"bookshop",null,null,null,null,2,"bookshop"]
[3,"toy shop",null,null,null,null,3,"toy shop"]
[4,"clothes ",null,null,null,null,4,"clothes "]
[5,"shoe ",null,null,null,null,5,"shoe "]
[6,"assistant",null,null,null,null,6,"assistant"]
[7,"customer",null,null,null,null,7,"customer"]
[8,"to sell",null,null,null,null,8,"to sell"]
[]
[1,"shop",null,null,null,null,1,"shop"]
[2,"bookshop",null,null,null,null,2,"bookshop"]
[3,"toy shop",null,null,null,null,3,"toy shop"]
[4,"clothes ",null,null,null,null,4,"clothes "]
[5,"shoe ",null,null,null,null,5,"shoe "]
[6,"assistant",null,null,null,null,6,"assistant"]
[7,"customer",null,null,null,null,7,"customer"]
[8,"to sell",null,null,null,null,8,"to sell"]
[]
[1,"shop",null,null,null,null,1,"shop"]
[2,"bookshop",null,null,null,null,2,"bookshop"]
[3,"toy shop",null,null,null,null,3,"toy shop"]
[4,"clothes ",null,null,null,null,4,"clothes "]
[5,"shoe ",null,null,null,null,5,"shoe "]
[6,"assistant",null,null,null,null,6,"assistant"]
[7,"customer",null,null,null,null,7,"customer"]
[8,"to sell",null,null,null,null,8,"to sell"]
[]
[1,"shop","         .","асистент",null,null,1,"shop","         .","асистент"]
[2,"bookshop","         .","книжний магазин",null,null,2,"bookshop","         .","книжний магазин"]
[3,"toy shop","         .","магазин",null,null,3,"toy shop","         .","магазин"]
[4,"clothes ","         .","магазин іграшок",null,null,4,"clothes ","         .","магазин іграшок"]
[5,"shoe ","         .","одяг",null,null,5,"shoe ","         .","одяг"]
[6,"assistant","         .","покупець",null,null,6,"assistant","         .","покупець"]
[7,"customer","         .","продавати",null,null,7,"customer","         .","продавати"]
[8,"to sell","         .","черевик",null,null,8,"to sell","         .","черевик"]
[]
[1,"shop","         .","асистент",null,null,1,"shop","         .","асистент"]
[2,"bookshop","         .","книжний магазин",null,null,2,"bookshop","         .","книжний магазин"]
[3,"toy shop","         .","магазин",null,null,3,"toy shop","         .","магазин"]
[4,"clothes ","         .","магазин іграшок",null,null,4,"clothes ","         .","магазин іграшок"]
[5,"shoe ","         .","одяг",null,null,5,"shoe ","         .","одяг"]
[6,"assistant","         .","покупець",null,null,6,"assistant","         .","покупець"]
[7,"customer","         .","продавати",null,null,7,"customer","         .","продавати"]
[8,"to sell","         .","черевик",null,null,8,"to sell","         .","черевик"]
[]
[1,"shop","         .","асистент",null,null,1,"shop","         .","асистент"]
[2,"bookshop","         .","книжний магазин",null,null,2,"bookshop","         .","книжний магазин"]
[3,"toy shop","         .","магазин",null,null,3,"toy shop","         .","магазин"]
[4,"clothes ","         .","магазин іграшок",null,null,4,"clothes ","         .","магазин іграшок"]
[5,"shoe ","         .","одяг",null,null,5,"shoe ","         .","одяг"]
[6,"assistant","         .","покупець",null,null,6,"assistant","         .","покупець"]
[7,"customer","         .","продавати",null,null,7,"customer","         .","продавати"]
[8,"to sell","         .","черевик",null,null,8,"to sell","         .","черевик"]
[]
[1,"shop","         .","асистент",null,null,1,"shop","         .","асистент"]
[2,"bookshop","         .","книжний магазин",null,null,2,"bookshop","         .","книжний магазин"]
[3,"toy shop","         .","магазин",null,null,3,"toy shop","         .","магазин"]
[4,"clothes ","         .","магазин іграшок",null,null,4,"clothes ","         .","магазин іграшок"]
[5,"shoe ","         .","одяг",null,null,5,"shoe ","         .","одяг"]
[6,"assistant","         .","покупець",null,null,6,"assistant","         .","покупець"]
[7,"customer","         .","продавати",null,null,7,"customer","         .","продавати"]
[8,"to sell","         .","черевик",null,null,8,"to sell","         .","черевик"]
[]
[1,"shop","         .","асистент",null,null,1,"shop","         .","асистент"]
[2,"bookshop","         .","книжний магазин",null,null,2,"bookshop","         .","книжний магазин"]
[3,"toy shop","         .","магазин",null,null,3,"toy shop","         .","магазин"]
[4,"clothes ","         .","магазин іграшок",null,null,4,"clothes ","         .","магазин іграшок"]
[5,"shoe ","         .","одяг",null,null,5,"shoe ","         .","одяг"]
[6,"assistant","         .","покупець",null,null,6,"assistant","         .","покупець"]
[7,"customer","         .","продавати",null,null,7,"customer","         .","продавати"]
[8,"to sell","         .","черевик",null,null,8,"to sell","         .","черевик"]
[]
[1,"shop","         .","асистент",null,null,1,"shop","         .","асистент"]
[2,"bookshop","         .","книжний магазин",null,null,2,"bookshop","         .","книжний магазин"]
[3,"toy shop","         .","магазин",null,null,3,"toy shop","         .","магазин"]
[4,"clothes ","         .","магазин іграшок",null,null,4,"clothes ","         .","магазин іграшок"]
[5,"shoe ","         .","одяг",null,null,5,"shoe ","         .","одяг"]
[6,"assistant","         .","покупець",null,null,6,"assistant","         .","покупець"]
[7,"customer","         .","продавати",null,null,7,"customer","         .","продавати"]
[8,"to sell","         .","черевик",null,null,8,"to sell","         .","черевик"]

{"sheet":"Лист17","index":18,"n_rows":47,"n_cols":9,"rows_kept":47,"cut":false,"hidden":false,"merged":[]}
[1,"curtain","кетн","штора",null,1,"curtain","кетн","штора"]
[2,"carpet","ка:піт","килим",null,2,"carpet","ка:піт","килим"]
[3,"wardrobe","во:дроуб","шафа для одягу",null,3,"wardrobe","во:дроуб","шафа для одягу"]
[4,"clock","клок","годинник",null,4,"clock","клок","годинник"]
[5,"bookcase","буккейс","шафа для книг",null,5,"bookcase","буккейс","шафа для книг"]
[6,"picture","пікче","картина",null,6,"picture","пікче","картина"]
[7,"chair","чее","стілець",null,7,"chair","чее","стілець"]
[]
[1,"curtain","кетн","штора",null,1,"curtain","кетн","штора"]
[2,"carpet","ка:піт","килим",null,2,"carpet","ка:піт","килим"]
[3,"wardrobe","во:дроуб","шафа для одягу",null,3,"wardrobe","во:дроуб","шафа для одягу"]
[4,"clock","клок","годинник",null,4,"clock","клок","годинник"]
[5,"bookcase","буккейс","шафа для книг",null,5,"bookcase","буккейс","шафа для книг"]
[6,"picture","пікче","картина",null,6,"picture","пікче","картина"]
[7,"chair","чее","стілець",null,7,"chair","чее","стілець"]
[]
[1,"curtain","кетн","штора",null,1,"curtain","кетн","штора"]
[2,"carpet","ка:піт","килим",null,2,"carpet","ка:піт","килим"]
[3,"wardrobe","во:дроуб","шафа для одягу",null,3,"wardrobe","во:дроуб","шафа для одягу"]
[4,"clock","клок","годинник",null,4,"clock","клок","годинник"]
[5,"bookcase","буккейс","шафа для книг",null,5,"bookcase","буккейс","шафа для книг"]
[6,"picture","пікче","картина",null,6,"picture","пікче","картина"]
[7,"chair","чее","стілець",null,7,"chair","чее","стілець"]
[]
[1,"curtain","кетн","штора",null,1,"curtain","кетн","штора"]
[2,"carpet","ка:піт","килим",null,2,"carpet","ка:піт","килим"]
[3,"wardrobe","во:дроуб","шафа для одягу",null,3,"wardrobe","во:дроуб","шафа для одягу"]
[4,"clock","клок","годинник",null,4,"clock","клок","годинник"]
[5,"bookcase","буккейс","шафа для книг",null,5,"bookcase","буккейс","шафа для книг"]
[6,"picture","пікче","картина",null,6,"picture","пікче","картина"]
[7,"chair","чее","стілець",null,7,"chair","чее","стілець"]
[]
[1,"curtain","кетн","штора",null,1,"curtain","кетн","штора"]
[2,"carpet","ка:піт","килим",null,2,"carpet","ка:піт","килим"]
[3,"wardrobe","во:дроуб","шафа для одягу",null,3,"wardrobe","во:дроуб","шафа для одягу"]
[4,"clock","клок","годинник",null,4,"clock","клок","годинник"]
[5,"bookcase","буккейс","шафа для книг",null,5,"bookcase","буккейс","шафа для книг"]
[6,"picture","пікче","картина",null,6,"picture","пікче","картина"]
[7,"chair","чее","стілець",null,7,"chair","чее","стілець"]
[]
[1,"curtain","кетн","штора",null,1,"curtain","кетн","штора"]
[2,"carpet","ка:піт","килим",null,2,"carpet","ка:піт","килим"]
[3,"wardrobe","во:дроуб","шафа для одягу",null,3,"wardrobe","во:дроуб","шафа для одягу"]
[4,"clock","клок","годинник",null,4,"clock","клок","годинник"]
[5,"bookcase","буккейс","шафа для книг",null,5,"bookcase","буккейс","шафа для книг"]
[6,"picture","пікче","картина",null,6,"picture","пікче","картина"]
[7,"chair","чее","стілець",null,7,"chair","чее","стілець"]

{"sheet":"Лист18","index":19,"n_rows":7,"n_cols":4,"rows_kept":7,"cut":false,"hidden":false,"merged":[]}
[1,"on the right","он зе райт","штора"]
[2,"on the left","он зе лефт","килим"]
[3,"in front of","ін франт оф","шафа для одягу"]
[4,"between","бітвіін","годинник"]
[5,"opposite","опезіт","шафа для книг"]
[6,"picture","пікче","картина"]
[7,"chair","чее","стілець"]

{"sheet":"Лист19","index":20,"n_rows":47,"n_cols":9,"rows_kept":47,"cut":false,"hidden":false,"merged":[]}
[1,"curtain",null,"штора",null,1,"curtain",null,"штора"]
[2,"carpet",null,"годинник",null,2,"carpet",null,"годинник"]
[3,"wardrobe",null,"картина",null,3,"wardrobe",null,"картина"]
[4,"clock",null,"килим",null,4,"clock",null,"килим"]
[5,"bookcase",null,"стілець",null,5,"bookcase",null,"стілець"]
[6,"picture",null,"шафа для книг",null,6,"picture",null,"шафа для книг"]
[7,"chair",null,"шафа для одягу",null,7,"chair",null,"шафа для одягу"]
[]
[1,"curtain",null,"штора",null,1,"curtain",null,"штора"]
[2,"carpet",null,"годинник",null,2,"carpet",null,"годинник"]
[3,"wardrobe",null,"картина",null,3,"wardrobe",null,"картина"]
[4,"clock",null,"килим",null,4,"clock",null,"килим"]
[5,"bookcase",null,"стілець",null,5,"bookcase",null,"стілець"]
[6,"picture",null,"шафа для книг",null,6,"picture",null,"шафа для книг"]
[7,"chair",null,"шафа для одягу",null,7,"chair",null,"шафа для одягу"]
[]
[1,"curtain",null,"штора",null,1,"curtain",null,"штора"]
[2,"carpet",null,"годинник",null,2,"carpet",null,"годинник"]
[3,"wardrobe",null,"картина",null,3,"wardrobe",null,"картина"]
[4,"clock",null,"килим",null,4,"clock",null,"килим"]
[5,"bookcase",null,"стілець",null,5,"bookcase",null,"стілець"]
[6,"picture",null,"шафа для книг",null,6,"picture",null,"шафа для книг"]
[7,"chair",null,"шафа для одягу",null,7,"chair",null,"шафа для одягу"]
[]
[1,"curtain",null,"штора",null,1,"curtain",null,"штора"]
[2,"carpet",null,"годинник",null,2,"carpet",null,"годинник"]
[3,"wardrobe",null,"картина",null,3,"wardrobe",null,"картина"]
[4,"clock",null,"килим",null,4,"clock",null,"килим"]
[5,"bookcase",null,"стілець",null,5,"bookcase",null,"стілець"]
[6,"picture",null,"шафа для книг",null,6,"picture",null,"шафа для книг"]
[7,"chair",null,"шафа для одягу",null,7,"chair",null,"шафа для одягу"]
[]
[1,"curtain",null,"штора",null,1,"curtain",null,"штора"]
[2,"carpet",null,"годинник",null,2,"carpet",null,"годинник"]
[3,"wardrobe",null,"картина",null,3,"wardrobe",null,"картина"]
[4,"clock",null,"килим",null,4,"clock",null,"килим"]
[5,"bookcase",null,"стілець",null,5,"bookcase",null,"стілець"]
[6,"picture",null,"шафа для книг",null,6,"picture",null,"шафа для книг"]
[7,"chair",null,"шафа для одягу",null,7,"chair",null,"шафа для одягу"]
[]
[1,"curtain",null,"штора",null,1,"curtain",null,"штора"]
[2,"carpet",null,"годинник",null,2,"carpet",null,"годинник"]
[3,"wardrobe",null,"картина",null,3,"wardrobe",null,"картина"]
[4,"clock",null,"килим",null,4,"clock",null,"килим"]
[5,"bookcase",null,"стілець",null,5,"bookcase",null,"стілець"]
[6,"picture",null,"шафа для книг",null,6,"picture",null,"шафа для книг"]
[7,"chair",null,"шафа для одягу",null,7,"chair",null,"шафа для одягу"]

{"sheet":"Лист20","index":21,"n_rows":55,"n_cols":9,"rows_kept":55,"cut":false,"hidden":false,"merged":[]}
[1,"буккейс",null,"килим",null,1,"буккейс",null,"килим"]
[2,"во:дроуб",null,"шафа для книг",null,2,"во:дроуб",null,"шафа для книг"]
[3,"ка:піт",null,"картина",null,3,"ка:піт",null,"картина"]
[4,"кетн",null,"штора",null,4,"кетн",null,"штора"]
[5,"клок",null,"шафа для одягу",null,5,"клок",null,"шафа для одягу"]
[6,"пікче",null,"годинник",null,6,"пікче",null,"годинник"]
[7,"чее",null,"стілець",null,7,"чее",null,"стілець"]
[]
[1,"буккейс",null,"килим",null,1,"буккейс",null,"килим"]
[2,"во:дроуб",null,"шафа для книг",null,2,"во:дроуб",null,"шафа для книг"]
[3,"ка:піт",null,"картина",null,3,"ка:піт",null,"картина"]
[4,"кетн",null,"штора",null,4,"кетн",null,"штора"]
[5,"клок",null,"шафа для одягу",null,5,"клок",null,"шафа для одягу"]
[6,"пікче",null,"годинник",null,6,"пікче",null,"годинник"]
[7,"чее",null,"стілець",null,7,"чее",null,"стілець"]
[]
[1,"буккейс",null,"килим",null,1,"буккейс",null,"килим"]
[2,"во:дроуб",null,"шафа для книг",null,2,"во:дроуб",null,"шафа для книг"]
[3,"ка:піт",null,"картина",null,3,"ка:піт",null,"картина"]
[4,"кетн",null,"штора",null,4,"кетн",null,"штора"]
[5,"клок",null,"шафа для одягу",null,5,"клок",null,"шафа для одягу"]
[6,"пікче",null,"годинник",null,6,"пікче",null,"годинник"]
[7,"чее",null,"стілець",null,7,"чее",null,"стілець"]
[]
[1,"буккейс",null,"килим",null,1,"буккейс",null,"килим"]
[2,"во:дроуб",null,"шафа для книг",null,2,"во:дроуб",null,"шафа для книг"]
[3,"ка:піт",null,"картина",null,3,"ка:піт",null,"картина"]
[4,"кетн",null,"штора",null,4,"кетн",null,"штора"]
[5,"клок",null,"шафа для одягу",null,5,"клок",null,"шафа для одягу"]
[6,"пікче",null,"годинник",null,6,"пікче",null,"годинник"]
[7,"чее",null,"стілець",null,7,"чее",null,"стілець"]
[]
[1,"буккейс",null,"килим",null,1,"буккейс",null,"килим"]
[2,"во:дроуб",null,"шафа для книг",null,2,"во:дроуб",null,"шафа для книг"]
[3,"ка:піт",null,"картина",null,3,"ка:піт",null,"картина"]
[4,"кетн",null,"штора",null,4,"кетн",null,"штора"]
[5,"клок",null,"шафа для одягу",null,5,"клок",null,"шафа для одягу"]
[6,"пікче",null,"годинник",null,6,"пікче",null,"годинник"]
[7,"чее",null,"стілець",null,7,"чее",null,"стілець"]
[]
[1,"буккейс",null,"килим",null,1,"буккейс",null,"килим"]
[2,"во:дроуб",null,"шафа для книг",null,2,"во:дроуб",null,"шафа для книг"]
[3,"ка:піт",null,"картина",null,3,"ка:піт",null,"картина"]
[4,"кетн",null,"штора",null,4,"кетн",null,"штора"]
[5,"клок",null,"шафа для одягу",null,5,"клок",null,"шафа для одягу"]
[6,"пікче",null,"годинник",null,6,"пікче",null,"годинник"]
[7,"чее",null,"стілець",null,7,"чее",null,"стілець"]
[]
[1,"буккейс",null,"килим",null,1,"буккейс",null,"килим"]
[2,"во:дроуб",null,"шафа для книг",null,2,"во:дроуб",null,"шафа для книг"]
[3,"ка:піт",null,"картина",null,3,"ка:піт",null,"картина"]
[4,"кетн",null,"штора",null,4,"кетн",null,"штора"]
[5,"клок",null,"шафа для одягу",null,5,"клок",null,"шафа для одягу"]
[6,"пікче",null,"годинник",null,6,"пікче",null,"годинник"]
[7,"чее",null,"стілець",null,7,"чее",null,"стілець"]

{"sheet":"Лист21","index":22,"n_rows":9,"n_cols":14,"rows_kept":9,"cut":false,"hidden":false,"merged":[]}
[1,"kettle",null,null,null,null,null,null,"mirror"]
[2,"cupboard",null,null,null,null,null,null,"soap"]
[3,"bath",null,null,null,null,null,null,"towel"]
[4,"washbasin",null,null,null,null,null,null,"fridge"]
[5,"shelf",null,null,null,null,null,null,"cooker"]
[6,"shower",null,null,null,null,null,null,"microwave"]
[7,null,null,null,null,null,null,null,"sink",null,null,null,null,"where"]
[8,null,null,null,null,null,null,null,"above",null,null,null,null,"in"]
[9,null,null,null,null,null,null,null,null,null,null,null,null,"on"]

{"sheet":"Лист22","index":23,"n_rows":44,"n_cols":9,"rows_kept":44,"cut":false,"hidden":false,"merged":[]}
[1,"to take a shower","тейк е шауе","приймати душ",null,1,"to take a shower","тейк е шауе","приймати душ"]
[2,"to lay the table","лей зе тейбл","накривати стіл",null,2,"to lay the table","лей зе тейбл","накривати стіл"]
[3,"to clean the room","кліін зе руум","прибрати кімнату",null,3,"to clean the room","кліін зе руум","прибрати кімнату"]
[4,"to wash the dishes","вош зе дішіс","мити посуд",null,4,"to wash the dishes","вош зе дішіс","мити посуд"]
[5,"to vacuum ","век'юум","пилососити",null,5,"to vacuum ","век'юум","пилососити"]
[6,"to iron","айен","прасувати",null,6,"to iron","айен","прасувати"]
[7,"where","вее","де",null,7,"where","вее","де"]
[8,"on","он","на ",null,8,"on","он","на "]
[]
[1,"to take a shower","тейк е шауе","приймати душ",null,1,"to take a shower","тейк е шауе","приймати душ"]
[2,"to lay the table","лей зе тейбл","накривати стіл",null,2,"to lay the table","лей зе тейбл","накривати стіл"]
[3,"to clean the room","кліін зе руум","прибрати кімнату",null,3,"to clean the room","кліін зе руум","прибрати кімнату"]
[4,"to wash the dishes","вош зе дішіс","мити посуд",null,4,"to wash the dishes","вош зе дішіс","мити посуд"]
[5,"to vacuum ","век'юум","пилососити",null,5,"to vacuum ","век'юум","пилососити"]
[6,"to iron","айен","прасувати",null,6,"to iron","айен","прасувати"]
[7,"where","вее","де",null,7,"where","вее","де"]
[8,"on","он","на ",null,8,"on","он","на "]
[]
[1,"to take a shower","тейк е шауе","приймати душ",null,1,"to take a shower","тейк е шауе","приймати душ"]
[2,"to lay the table","лей зе тейбл","накривати стіл",null,2,"to lay the table","лей зе тейбл","накривати стіл"]
[3,"to clean the room","кліін зе руум","прибрати кімнату",null,3,"to clean the room","кліін зе руум","прибрати кімнату"]
[4,"to wash the dishes","вош зе дішіс","мити посуд",null,4,"to wash the dishes","вош зе дішіс","мити посуд"]
[5,"to vacuum ","век'юум","пилососити",null,5,"to vacuum ","век'юум","пилососити"]
[6,"to iron","айен","прасувати",null,6,"to iron","айен","прасувати"]
[7,"where","вее","де",null,7,"where","вее","де"]
[8,"on","он","на ",null,8,"on","он","на "]
[]
[1,"to take a shower","тейк е шауе","приймати душ",null,1,"to take a shower","тейк е шауе","приймати душ"]
[2,"to lay the table","лей зе тейбл","накривати стіл",null,2,"to lay the table","лей зе тейбл","накривати стіл"]
[3,"to clean the room","кліін зе руум","прибрати кімнату",null,3,"to clean the room","кліін зе руум","прибрати кімнату"]
[4,"to wash the dishes","вош зе дішіс","мити посуд",null,4,"to wash the dishes","вош зе дішіс","мити посуд"]
[5,"to vacuum ","век'юум","пилососити",null,5,"to vacuum ","век'юум","пилососити"]
[6,"to iron","айен","прасувати",null,6,"to iron","айен","прасувати"]
[7,"where","вее","де",null,7,"where","вее","де"]
[8,"on","он","на ",null,8,"on","он","на "]
[]
[1,"to take a shower","тейк е шауе","приймати душ",null,1,"to take a shower","тейк е шауе","приймати душ"]
[2,"to lay the table","лей зе тейбл","накривати стіл",null,2,"to lay the table","лей зе тейбл","накривати стіл"]
[3,"to clean the room","кліін зе руум","прибрати кімнату",null,3,"to clean the room","кліін зе руум","прибрати кімнату"]
[4,"to wash the dishes","вош зе дішіс","мити посуд",null,4,"to wash the dishes","вош зе дішіс","мити посуд"]
[5,"to vacuum ","век'юум","пилососити",null,5,"to vacuum ","век'юум","пилососити"]
[6,"to iron","айен","прасувати",null,6,"to iron","айен","прасувати"]
[7,"where","вее","де",null,7,"where","вее","де"]
[8,"on","он","на ",null,8,"on","он","на "]

{"sheet":"Лист23","index":24,"n_rows":49,"n_cols":9,"rows_kept":49,"cut":false,"hidden":false,"merged":[]}
[1,"Merry Christmas ","мері крісмес","веселого Різдва",null,1,"Merry Christmas ","мері крісмес","веселого Різдва"]
[2,"New Year","нью є:а","Новий Рік",null,2,"New Year","нью є:а","Новий Рік"]
[3,"want","вонт","хотіти",null,3,"want","вонт","хотіти"]
[4,"know","ноу","знати",null,4,"know","ноу","знати"]
[5,"celebrate","селебрейт","святкувати",null,5,"celebrate","селебрейт","святкувати"]
[6,"send ","сенд","відправляти",null,6,"send ","сенд","відправляти"]
[7,"relative","релетів","родич",null,7,"relative","релетів","родич"]
[8,"Eve"," і:в","переддень",null,8,"Eve"," і:в","переддень"]
[9,"give","ґів","давати",null,9,"give","ґів","давати"]
[]
[1,"Merry Christmas ","мері крісмес","веселого Різдва",null,1,"Merry Christmas ","мері крісмес","веселого Різдва"]
[2,"New Year","нью є:а","Новий Рік",null,2,"New Year","нью є:а","Новий Рік"]
[3,"want","вонт","хотіти",null,3,"want","вонт","хотіти"]
[4,"know","ноу","знати",null,4,"know","ноу","знати"]
[5,"celebrate","селебрейт","святкувати",null,5,"celebrate","селебрейт","святкувати"]
[6,"send ","сенд","відправляти",null,6,"send ","сенд","відправляти"]
[7,"relative","релетів","родич",null,7,"relative","релетів","родич"]
[8,"Eve"," і:в","переддень",null,8,"Eve"," і:в","переддень"]
[9,"give","ґів","давати",null,9,"give","ґів","давати"]
[]
[1,"Merry Christmas ","мері крісмес","веселого Різдва",null,1,"Merry Christmas ","мері крісмес","веселого Різдва"]
[2,"New Year","нью є:а","Новий Рік",null,2,"New Year","нью є:а","Новий Рік"]
[3,"want","вонт","хотіти",null,3,"want","вонт","хотіти"]
[4,"know","ноу","знати",null,4,"know","ноу","знати"]
[5,"celebrate","селебрейт","святкувати",null,5,"celebrate","селебрейт","святкувати"]
[6,"send ","сенд","відправляти",null,6,"send ","сенд","відправляти"]
[7,"relative","релетів","родич",null,7,"relative","релетів","родич"]
[8,"Eve"," і:в","переддень",null,8,"Eve"," і:в","переддень"]
[9,"give","ґів","давати",null,9,"give","ґів","давати"]
[]
[1,"Merry Christmas ","мері крісмес","веселого Різдва",null,1,"Merry Christmas ","мері крісмес","веселого Різдва"]
[2,"New Year","нью є:а","Новий Рік",null,2,"New Year","нью є:а","Новий Рік"]
[3,"want","вонт","хотіти",null,3,"want","вонт","хотіти"]
[4,"know","ноу","знати",null,4,"know","ноу","знати"]
[5,"celebrate","селебрейт","святкувати",null,5,"celebrate","селебрейт","святкувати"]
[6,"send ","сенд","відправляти",null,6,"send ","сенд","відправляти"]
[7,"relative","релетів","родич",null,7,"relative","релетів","родич"]
[8,"Eve"," і:в","переддень",null,8,"Eve"," і:в","переддень"]
[9,"give","ґів","давати",null,9,"give","ґів","давати"]
[]
[1,"Merry Christmas ","мері крісмес","веселого Різдва",null,1,"Merry Christmas ","мері крісмес","веселого Різдва"]
[2,"New Year","нью є:а","Новий Рік",null,2,"New Year","нью є:а","Новий Рік"]
[3,"want","вонт","хотіти",null,3,"want","вонт","хотіти"]
[4,"know","ноу","знати",null,4,"know","ноу","знати"]
[5,"celebrate","селебрейт","святкувати",null,5,"celebrate","селебрейт","святкувати"]
[6,"send ","сенд","відправляти",null,6,"send ","сенд","відправляти"]
[7,"relative","релетів","родич",null,7,"relative","релетів","родич"]
[8,"Eve"," і:в","переддень",null,8,"Eve"," і:в","переддень"]
[9,"give","ґів","давати",null,9,"give","ґів","давати"]

{"sheet":"Лист24","index":25,"n_rows":46,"n_cols":9,"rows_kept":46,"cut":false,"hidden":false,"merged":[]}
[1,"nice","найс","гарна",null,1,"nice","найс","гарна"]
[2,"warm","вом","теплий",null,2,"warm","вом","теплий"]
[3,"I want","ай вонт","я хочу",null,3,"I want","ай вонт","я хочу"]
[4,"cold","колд","холодний",null,4,"cold","колд","холодний"]
[5,"comfortable","камфтбл","зручний",null,5,"comfortable","камфтбл","зручний"]
[6,"hot","хот","жаркий",null,6,"hot","хот","жаркий"]
[7,"sun, sunny","сан, сані","сонце, сонячний",null,7,"sun, sunny","сан, сані","сонце, сонячний"]
[8,"take, took","тейк, тук","брати",null,8,"take, took","тейк, тук","брати"]
[9,"have, had","хев, хед","мати",null,9,"have, had","хев, хед","мати"]
[]
[]
[1,"nice","найс","гарна",null,1,"nice","найс","гарна"]
[2,"warm","вом","теплий",null,2,"warm","вом","теплий"]
[3,"I want","ай вонт","я хочу",null,3,"I want","ай вонт","я хочу"]
[4,"cold","колд","холодний",null,4,"cold","колд","холодний"]
[5,"comfortable","камфтбл","зручний",null,5,"comfortable","камфтбл","зручний"]
[6,"hot","хот","жаркий",null,6,"hot","хот","жаркий"]
[7,"sun, sunny","сан, сані","сонце, сонячний",null,7,"sun, sunny","сан, сані","сонце, сонячний"]
[8,"take, took","тейк, тук","брати",null,8,"take, took","тейк, тук","брати"]
[9,"have, had","хев, хед","мати",null,9,"have, had","хев, хед","мати"]
[]
[]
[]
[]
[1,"nice","найс","гарна",null,1,"nice","найс","гарна"]
[2,"warm","вом","теплий",null,2,"warm","вом","теплий"]
[3,"I want","ай вонт","я хочу",null,3,"I want","ай вонт","я хочу"]
[4,"cold","колд","холодний",null,4,"cold","колд","холодний"]
[5,"comfortable","камфтбл","зручний",null,5,"comfortable","камфтбл","зручний"]
[6,"hot","хот","жаркий",null,6,"hot","хот","жаркий"]
[7,"sun, sunny","сан, сані","сонце, сонячний",null,7,"sun, sunny","сан, сані","сонце, сонячний"]
[8,"take, took","тейк, тук","брати",null,8,"take, took","тейк, тук","брати"]
[9,"have, had","хев, хед","мати",null,9,"have, had","хев, хед","мати"]
[]
[]
[]
[]
[1,"nice","найс","гарна",null,1,"nice","найс","гарна"]
[2,"warm","вом","теплий",null,2,"warm","вом","теплий"]
[3,"I want","ай вонт","я хочу",null,3,"I want","ай вонт","я хочу"]
[4,"cold","колд","холодний",null,4,"cold","колд","холодний"]
[5,"comfortable","камфтбл","зручний",null,5,"comfortable","камфтбл","зручний"]
[6,"hot","хот","жаркий",null,6,"hot","хот","жаркий"]
[7,"sun, sunny","сан, сані","сонце, сонячний",null,7,"sun, sunny","сан, сані","сонце, сонячний"]
[8,"take, took","тейк, тук","брати",null,8,"take, took","тейк, тук","брати"]
[9,"have, had","хев, хед","мати",null,9,"have, had","хев, хед","мати"]

{"sheet":"Лист25","index":26,"n_rows":8,"n_cols":3,"rows_kept":8,"cut":false,"hidden":false,"merged":[]}
["playing the piano ","(плеін зе п'єнеу)","грати на піаніно"]
["collecting stamps","(келектін стемпс)","збирати марки"]
["listening to music","(лісенін ту м'юзік","слухати музику"]
["playing a computer game","(плеін е кемп'юте ґейм)","грати в кмп'ютерну гру"]
["painting ","(пеінтін)","малювання (фарбами)"]
["cooking","(кукін)","готувати страви"]
["dancing","(дансін)","танцювати"]
["watching TV","(вочін ті ві)","дивитися ТВ"]

{"sheet":"Лист26","index":27,"n_rows":39,"n_cols":4,"rows_kept":39,"cut":false,"hidden":false,"merged":[]}
[null,"ride","rode","кататися"]
[null,"swim","swam","плавати"]
[null,"meet","met","зустрічати"]
[null,"see","saw","бачити"]
[null,"give","gave","давати"]
[null,"take","took","брати"]
[null,"buy","bought","купувати"]
[]
[]
[]
[1,"ride","(райд)","кататися"]
[2,"swim","(свім)","плавати"]
[3,"meet","(мііт)","зустрічати"]
[4,"see","(сіі)","бачити"]
[5,"give","(ґів)","давати"]
[6,"take","(тейк)","брати"]
[7,"buy","(бай)","купувати"]
[]
[]
[1,"ride","[raɪd]","кататися"]
[2,"swim","[swɪm]","плавати"]
[3,"meet","[miːt]","зустрічати"]
[4,"see","[siː]","бачити"]
[5,"give","[gɪv]","давати"]
[6,"take","[teɪk]","брати"]
[7,"buy","[baɪ]","купувати"]
[]
[]
[]
[null,"snowy","[ˈsnəuɪ]","сніжно"]
[null,"cloudy","[ˈklaudɪ]","хмарно"]
[null,"cold","[kəuld]","холодно"]
[null,"hot","[hɔt]","жарко"]
[]
[]
[null,"snowy","(снеуі)","сніжно"]
[null,"cloudy","(клауді)","хмарно"]
[null,"cold","(кеулд)","холодно"]
[null,"hot","(хот)","жарко"]

{"sheet":"І семестр","index":28,"n_rows":46,"n_cols":9,"rows_kept":46,"cut":false,"hidden":false,"merged":[]}
[1,"happy","[ˈhæpɪ]","щасливий",null,1,"happy","[ˈhæpɪ]","щасливий"]
[2,"glad","[glæd]","радий",null,2,"glad","[glæd]","радий"]
[3,"how","[hau]","як",null,3,"how","[hau]","як"]
[4,"tomorrow","[təˈmɒrəu]","завтра",null,4,"tomorrow","[təˈmɒrəu]","завтра"]
[5,"nice evening","[naɪs][ˈiːvnɪŋ]","гарний вечір",null,5,"nice evening","[naɪs][ˈiːvnɪŋ]","гарний вечір"]
[6,"afternoon","[ˌɑːftəˈnuːn]","день, обід",null,6,"afternoon","[ˌɑːftəˈnuːn]","день, обід"]
[7,"again","[əˈgen], [əˈgeɪn]","знову",null,7,"again","[əˈgen], [əˈgeɪn]","знову"]
[8,"pleasure","[ˈpleʒə]","задоволення, приємно",null,8,"pleasure","[ˈpleʒə]","задоволення, приємно"]
[9,"late","[leɪt]","пізно, пізній",null,9,"late","[leɪt]","пізно, пізній"]
[]
[]
[1,"happy","[ˈhæpɪ]","щасливий",null,1,"happy","[ˈhæpɪ]","щасливий"]
[2,"glad","[glæd]","радий",null,2,"glad","[glæd]","радий"]
[3,"how","[hau]","як",null,3,"how","[hau]","як"]
[4,"tomorrow","[təˈmɒrəu]","завтра",null,4,"tomorrow","[təˈmɒrəu]","завтра"]
[5,"nice evening","[naɪs][ˈiːvnɪŋ]","гарний вечір",null,5,"nice evening","[naɪs][ˈiːvnɪŋ]","гарний вечір"]
[6,"afternoon","[ˌɑːftəˈnuːn]","день, обід",null,6,"afternoon","[ˌɑːftəˈnuːn]","день, обід"]
[7,"again","[əˈgen], [əˈgeɪn]","знову",null,7,"again","[əˈgen], [əˈgeɪn]","знову"]
[8,"pleasure","[ˈpleʒə]","задоволення, приємно",null,8,"pleasure","[ˈpleʒə]","задоволення, приємно"]
[9,"late","[leɪt]","пізно, пізній",null,9,"late","[leɪt]","пізно, пізній"]
[]
[]
[]
[]
[1,"happy","[ˈhæpɪ]","щасливий",null,1,"happy","[ˈhæpɪ]","щасливий"]
[2,"glad","[glæd]","радий",null,2,"glad","[glæd]","радий"]
[3,"how","[hau]","як",null,3,"how","[hau]","як"]
[4,"tomorrow","[təˈmɒrəu]","завтра",null,4,"tomorrow","[təˈmɒrəu]","завтра"]
[5,"nice evening","[naɪs][ˈiːvnɪŋ]","гарний вечір",null,5,"nice evening","[naɪs][ˈiːvnɪŋ]","гарний вечір"]
[6,"afternoon","[ˌɑːftəˈnuːn]","день, обід",null,6,"afternoon","[ˌɑːftəˈnuːn]","день, обід"]
[7,"again","[əˈgen], [əˈgeɪn]","знову",null,7,"again","[əˈgen], [əˈgeɪn]","знову"]
[8,"pleasure","[ˈpleʒə]","задоволення, приємно",null,8,"pleasure","[ˈpleʒə]","задоволення, приємно"]
[9,"late","[leɪt]","пізно, пізній",null,9,"late","[leɪt]","пізно, пізній"]
[]
[]
[]
[]
[1,"happy","[ˈhæpɪ]","щасливий",null,1,"happy","[ˈhæpɪ]","щасливий"]
[2,"glad","[glæd]","радий",null,2,"glad","[glæd]","радий"]
[3,"how","[hau]","як",null,3,"how","[hau]","як"]
[4,"tomorrow","[təˈmɒrəu]","завтра",null,4,"tomorrow","[təˈmɒrəu]","завтра"]
[5,"nice evening","[naɪs][ˈiːvnɪŋ]","гарний вечір",null,5,"nice evening","[naɪs][ˈiːvnɪŋ]","гарний вечір"]
[6,"afternoon","[ˌɑːftəˈnuːn]","день, обід",null,6,"afternoon","[ˌɑːftəˈnuːn]","день, обід"]
[7,"again","[əˈgen], [əˈgeɪn]","знову",null,7,"again","[əˈgen], [əˈgeɪn]","знову"]
[8,"pleasure","[ˈpleʒə]","задоволення, приємно",null,8,"pleasure","[ˈpleʒə]","задоволення, приємно"]
[9,"late","[leɪt]","пізно, пізній",null,9,"late","[leɪt]","пізно, пізній"]

{"sheet":"Лист27","index":29,"n_rows":41,"n_cols":9,"rows_kept":41,"cut":false,"hidden":false,"merged":[]}
[1,"marker","(маке)","маркер",null,1,"marker","(маке)","маркер"]
[2,"brush","(браш)","кісточка",null,2,"brush","(браш)","кісточка"]
[3,"glue ","(ґлу:)","клей",null,3,"glue ","(ґлу:)","клей"]
[4,"coloured paper  ","(калед пейпе)","кольоровий папір",null,4,"coloured paper  ","(калед пейпе)","кольоровий папір"]
[5,"scissors","(сізес)","ножиці",null,5,"scissors","(сізес)","ножиці"]
[6,"coloured pencil","(калед пенсіл)","кольорові олівці",null,6,"coloured pencil","(калед пенсіл)","кольорові олівці"]
[7,"paints","(пеінтс)","фарби",null,7,"paints","(пеінтс)","фарби"]
[8,"plasticine ","(плестісін)","пластилін",null,8,"plasticine ","(плестісін)","пластилін"]
[]
[]
[]
[1,"marker","(маке)","маркер",null,1,"marker","(маке)","маркер"]
[2,"brush","(браш)","кісточка",null,2,"brush","(браш)","кісточка"]
[3,"glue ","(ґлу:)","клей",null,3,"glue ","(ґлу:)","клей"]
[4,"coloured paper  ","(калед пейпе)","кольоровий папір",null,4,"coloured paper  ","(калед пейпе)","кольоровий папір"]
[5,"scissors","(сізес)","ножиці",null,5,"scissors","(сізес)","ножиці"]
[6,"coloured pencil","(калед пенсіл)","кольорові олівці",null,6,"coloured pencil","(калед пенсіл)","кольорові олівці"]
[7,"paints","(пеінтс)","фарби",null,7,"paints","(пеінтс)","фарби"]
[8,"plasticine ","(плестісін)","пластилін",null,8,"plasticine ","(плестісін)","пластилін"]
[]
[]
[]
[1,"marker","(маке)","маркер",null,1,"marker","(маке)","маркер"]
[2,"brush","(браш)","кісточка",null,2,"brush","(браш)","кісточка"]
[3,"glue ","(ґлу:)","клей",null,3,"glue ","(ґлу:)","клей"]
[4,"coloured paper  ","(калед пейпе)","кольоровий папір",null,4,"coloured paper  ","(калед пейпе)","кольоровий папір"]
[5,"scissors","(сізес)","ножиці",null,5,"scissors","(сізес)","ножиці"]
[6,"coloured pencil","(калед пенсіл)","кольорові олівці",null,6,"coloured pencil","(калед пенсіл)","кольорові олівці"]
[7,"paints","(пеінтс)","фарби",null,7,"paints","(пеінтс)","фарби"]
[8,"plasticine ","(плестісін)","пластилін",null,8,"plasticine ","(плестісін)","пластилін"]
[]
[]
[]
[1,"marker","(маке)","маркер",null,1,"marker","(маке)","маркер"]
[2,"brush","(браш)","кісточка",null,2,"brush","(браш)","кісточка"]
[3,"glue ","(ґлу:)","клей",null,3,"glue ","(ґлу:)","клей"]
[4,"coloured paper  ","(калед пейпе)","кольоровий папір",null,4,"coloured paper  ","(калед пейпе)","кольоровий папір"]
[5,"scissors","(сізес)","ножиці",null,5,"scissors","(сізес)","ножиці"]
[6,"coloured pencil","(калед пенсіл)","кольорові олівці",null,6,"coloured pencil","(калед пенсіл)","кольорові олівці"]
[7,"paints","(пеінтс)","фарби",null,7,"paints","(пеінтс)","фарби"]
[8,"plasticine ","(плестісін)","пластилін",null,8,"plasticine ","(плестісін)","пластилін"]

{"sheet":"Лист28","index":30,"n_rows":50,"n_cols":9,"rows_kept":50,"cut":false,"hidden":false,"merged":[]}
[1,"classroom","класрум","класна кімната",null,1,"classroom","класрум","класна кімната"]
[2,"CD player","сіді плеєр","сіді плеєр",null,2,"CD player","сіді плеєр","сіді плеєр"]
[3,"chair","чее","стілець",null,3,"chair","чее","стілець"]
[4,"door","до:","двері",null,4,"door","до:","двері"]
[5,"desk","деск","парта",null,5,"desk","деск","парта"]
[6,"blackboard","блекбо:д","дошка",null,6,"blackboard","блекбо:д","дошка"]
[7,"window","віндоу","вікно",null,7,"window","віндоу","вікно"]
[8,"bookcase","буккейс","книжкова шафа",null,8,"bookcase","буккейс","книжкова шафа"]
[]
[]
[]
[1,"classroom","класрум","класна кімната",null,1,"classroom","класрум","класна кімната"]
[2,"CD player","сіді плеєр","сіді плеєр",null,2,"CD player","сіді плеєр","сіді плеєр"]
[3,"chair","чее","стілець",null,3,"chair","чее","стілець"]
[4,"door","до:","двері",null,4,"door","до:","двері"]
[5,"desk","деск","парта",null,5,"desk","деск","парта"]
[6,"blackboard","блекбо:д","дошка",null,6,"blackboard","блекбо:д","дошка"]
[7,"window","віндоу","вікно",null,7,"window","віндоу","вікно"]
[8,"bookcase","буккейс","книжкова шафа",null,8,"bookcase","буккейс","книжкова шафа"]
[]
[]
[]
[1,"classroom","класрум","класна кімната",null,1,"classroom","класрум","класна кімната"]
[2,"CD player","сіді плеєр","сіді плеєр",null,2,"CD player","сіді плеєр","сіді плеєр"]
[3,"chair","чее","стілець",null,3,"chair","чее","стілець"]
[4,"door","до:","двері",null,4,"door","до:","двері"]
[5,"desk","деск","парта",null,5,"desk","деск","парта"]
[6,"blackboard","блекбо:д","дошка",null,6,"blackboard","блекбо:д","дошка"]
[7,"window","віндоу","вікно",null,7,"window","віндоу","вікно"]
[8,"bookcase","буккейс","книжкова шафа",null,8,"bookcase","буккейс","книжкова шафа"]
[]
[]
[]
[1,"classroom","класрум","класна кімната",null,1,"classroom","класрум","класна кімната"]
[2,"CD player","сіді плеєр","сіді плеєр",null,2,"CD player","сіді плеєр","сіді плеєр"]
[3,"chair","чее","стілець",null,3,"chair","чее","стілець"]
[4,"door","до:","двері",null,4,"door","до:","двері"]
[5,"desk","деск","парта",null,5,"desk","деск","парта"]
[6,"blackboard","блекбо:д","дошка",null,6,"blackboard","блекбо:д","дошка"]
[7,"window","віндоу","вікно",null,7,"window","віндоу","вікно"]
[8,"bookcase","буккейс","книжкова шафа",null,8,"bookcase","буккейс","книжкова шафа"]
[]
[1,"classroom","класрум","класна кімната",null,1,"classroom","класрум","класна кімната"]
[2,"CD player","сіді плеєр","сіді плеєр",null,2,"CD player","сіді плеєр","сіді плеєр"]
[3,"chair","чее","стілець",null,3,"chair","чее","стілець"]
[4,"door","до:","двері",null,4,"door","до:","двері"]
[5,"desk","деск","парта",null,5,"desk","деск","парта"]
[6,"blackboard","блекбо:д","дошка",null,6,"blackboard","блекбо:д","дошка"]
[7,"window","віндоу","вікно",null,7,"window","віндоу","вікно"]
[8,"bookcase","буккейс","книжкова шафа",null,8,"bookcase","буккейс","книжкова шафа"]

{"sheet":"Лист29","index":31,"n_rows":51,"n_cols":9,"rows_kept":51,"cut":false,"hidden":false,"merged":[]}
[1,"again","еґейн","знову",null,1,"again","еґейн","знову"]
[2,"after","а:фте","після",null,2,"after","а:фте","після"]
[3,"for each pupil","фо:  і:ч  п'юпіл","для кожного учня",null,3,"for each pupil","фо:  і:ч  п'юпіл","для кожного учня"]
[4,"usually","ю:желі","зазвичай",null,4,"usually","ю:желі","зазвичай"]
[5,"come in","кам ін","заходьте",null,5,"come in","кам ін","заходьте"]
[6,"classmate","кла:смейт","однокласник",null,6,"classmate","кла:смейт","однокласник"]
[7,"their pens","зее пенс","їхні ручки",null,7,"their pens","зее пенс","їхні ручки"]
[8,"their books","зее букс","їхні книжки",null,8,"their books","зее букс","їхні книжки"]
[]
[]
[]
[1,"again","еґейн","знову",null,1,"again","еґейн","знову"]
[2,"after","а:фте","після",null,2,"after","а:фте","після"]
[3,"for each pupil","фо:  і:ч  п'юпіл","для кожного учня",null,3,"for each pupil","фо:  і:ч  п'юпіл","для кожного учня"]
[4,"usually","ю:желі","зазвичай",null,4,"usually","ю:желі","зазвичай"]
[5,"come in","кам ін","заходьте",null,5,"come in","кам ін","заходьте"]
[6,"classmate","кла:смейт","однокласник",null,6,"classmate","кла:смейт","однокласник"]
[7,"their pens","зее пенс","їхні ручки",null,7,"their pens","зее пенс","їхні ручки"]
[8,"their books","зее букс","їхні книжки",null,8,"their books","зее букс","їхні книжки"]
[]
[]
[]
[1,"again","еґейн","знову",null,1,"again","еґейн","знову"]
[2,"after","а:фте","після",null,2,"after","а:фте","після"]
[3,"for each pupil","фо:  і:ч  п'юпіл","для кожного учня",null,3,"for each pupil","фо:  і:ч  п'юпіл","для кожного учня"]
[4,"usually","ю:желі","зазвичай",null,4,"usually","ю:желі","зазвичай"]
[5,"come in","кам ін","заходьте",null,5,"come in","кам ін","заходьте"]
[6,"classmate","кла:смейт","однокласник",null,6,"classmate","кла:смейт","однокласник"]
[7,"their pens","зее пенс","їхні ручки",null,7,"their pens","зее пенс","їхні ручки"]
[8,"their books","зее букс","їхні книжки",null,8,"their books","зее букс","їхні книжки"]
[]
[]
[]
[1,"again","еґейн","знову",null,1,"again","еґейн","знову"]
[2,"after","а:фте","після",null,2,"after","а:фте","після"]
[3,"for each pupil","фо:  і:ч  п'юпіл","для кожного учня",null,3,"for each pupil","фо:  і:ч  п'юпіл","для кожного учня"]
[4,"usually","ю:желі","зазвичай",null,4,"usually","ю:желі","зазвичай"]
[5,"come in","кам ін","заходьте",null,5,"come in","кам ін","заходьте"]
[6,"classmate","кла:смейт","однокласник",null,6,"classmate","кла:смейт","однокласник"]
[7,"their pens","зее пенс","їхні ручки",null,7,"their pens","зее пенс","їхні ручки"]
[8,"their books","зее букс","їхні книжки",null,8,"their books","зее букс","їхні книжки"]
[]
[]
[1,"again","еґейн","знову",null,1,"again","еґейн","знову"]
[2,"after","а:фте","після",null,2,"after","а:фте","після"]
[3,"for each pupil","фо:  і:ч  п'юпіл","для кожного учня",null,3,"for each pupil","фо:  і:ч  п'юпіл","для кожного учня"]
[4,"usually","ю:желі","зазвичай",null,4,"usually","ю:желі","зазвичай"]
[5,"come in","кам ін","заходьте",null,5,"come in","кам ін","заходьте"]
[6,"classmate","кла:смейт","однокласник",null,6,"classmate","кла:смейт","однокласник"]
[7,"their pens","зее пенс","їхні ручки",null,7,"their pens","зее пенс","їхні ручки"]
[8,"their books","зее букс","їхні книжки",null,8,"their books","зее букс","їхні книжки"]

{"sheet":"Лист30","index":32,"n_rows":43,"n_cols":9,"rows_kept":43,"cut":false,"hidden":false,"merged":[]}
[1,"Ukrainian","юкрейніен","українська мова",null,1,"Ukrainian","юкрейніен","українська мова"]
[2,"Art","аат","мистецтво",null,2,"Art","аат","мистецтво"]
[3,"PE","піі ","фізкультура",null,3,"PE","піі ","фізкультура"]
[4,"English","інгліш","англійська  мова",null,4,"English","інгліш","англійська  мова"]
[5,"Music","м'юзик","му́зика",null,5,"Music","м'юзик","му́зика"]
[6,"Maths","месс","математика",null,6,"Maths","месс","математика"]
[7,"IT","ай ті","інформатика",null,7,"IT","ай ті","інформатика"]
[8,"Crafts","крафт","трудове",null,8,"Crafts","крафт","трудове"]
[9,"tall","тоол","високий ",null,9,"tall","тоол","високий "]
[10,"sad","сед","сумний",null,10,"sad","сед","сумний"]
[]
[1,"Ukrainian","юкрейніен","українська мова",null,1,"Ukrainian","юкрейніен","українська мова"]
[2,"Art","аат","мистецтво",null,2,"Art","аат","мистецтво"]
[3,"PE","піі ","фізкультура",null,3,"PE","піі ","фізкультура"]
[4,"English","інгліш","англійська  мова",null,4,"English","інгліш","англійська  мова"]
[5,"Music","м'юзик","му́зика",null,5,"Music","м'юзик","му́зика"]
[6,"Maths","месс","математика",null,6,"Maths","месс","математика"]
[7,"IT","ай ті","інформатика",null,7,"IT","ай ті","інформатика"]
[8,"Crafts","крафт","трудове",null,8,"Crafts","крафт","трудове"]
[9,"tall","тоол","високий ",null,9,"tall","тоол","високий "]
[10,"sad","сед","сумний",null,10,"sad","сед","сумний"]
[]
[1,"Ukrainian","юкрейніен","українська мова",null,1,"Ukrainian","юкрейніен","українська мова"]
[2,"Art","аат","мистецтво",null,2,"Art","аат","мистецтво"]
[3,"PE","піі ","фізкультура",null,3,"PE","піі ","фізкультура"]
[4,"English","інгліш","англійська  мова",null,4,"English","інгліш","англійська  мова"]
[5,"Music","м'юзик","му́зика",null,5,"Music","м'юзик","му́зика"]
[6,"Maths","месс","математика",null,6,"Maths","месс","математика"]
[7,"IT","ай ті","інформатика",null,7,"IT","ай ті","інформатика"]
[8,"Crafts","крафт","трудове",null,8,"Crafts","крафт","трудове"]
[9,"tall","тоол","високий ",null,9,"tall","тоол","високий "]
[10,"sad","сед","сумний",null,10,"sad","сед","сумний"]
[]
[1,"Ukrainian","юкрейніен","українська мова",null,1,"Ukrainian","юкрейніен","українська мова"]
[2,"Art","аат","мистецтво",null,2,"Art","аат","мистецтво"]
[3,"PE","піі ","фізкультура",null,3,"PE","піі ","фізкультура"]
[4,"English","інгліш","англійська  мова",null,4,"English","інгліш","англійська  мова"]
[5,"Music","м'юзик","му́зика",null,5,"Music","м'юзик","му́зика"]
[6,"Maths","месс","математика",null,6,"Maths","месс","математика"]
[7,"IT","ай ті","інформатика",null,7,"IT","ай ті","інформатика"]
[8,"Crafts","крафт","трудове",null,8,"Crafts","крафт","трудове"]
[9,"tall","тоол","високий ",null,9,"tall","тоол","високий "]
[10,"sad","сед","сумний",null,10,"sad","сед","сумний"]

{"sheet":"Лист31","index":33,"n_rows":6,"n_cols":2,"rows_kept":6,"cut":false,"hidden":false,"merged":[]}
["bad","поганий"]
["better","кращий"]
["good ","гарний"]
["the best","найкращий"]
["the worst","найгірший"]
["worse","гірший"]

{"sheet":"Лист33","index":34,"n_rows":39,"n_cols":9,"rows_kept":39,"cut":false,"hidden":false,"merged":[]}
[1,"country","кантрі","країна",null,1,"country","кантрі","країна"]
[2,"Asia","ейше","Азія",null,2,"Asia","ейше","Азія"]
[3,"capital","кепітел","столиця",null,3,"capital","кепітел","столиця"]
[4,"Europe","юереп","Європа",null,4,"Europe","юереп","Європа"]
[5,"Australia","остреліе","Австралія",null,5,"Australia","остреліе","Австралія"]
[6,"America","емеріке","Америка",null,6,"America","емеріке","Америка"]
[7,"Africa","ефріке","Африка",null,7,"Africa","ефріке","Африка"]
[8,"eye","ай","око",null,8,"eye","ай","око"]
[9,"hair","хее","волосся",null,9,"hair","хее","волосся"]
[]
[1,"country","кантрі","країна",null,1,"country","кантрі","країна"]
[2,"Asia","ейше","Азія",null,2,"Asia","ейше","Азія"]
[3,"capital","кепітел","столиця",null,3,"capital","кепітел","столиця"]
[4,"Europe","юереп","Європа",null,4,"Europe","юереп","Європа"]
[5,"Australia","остреліе","Австралія",null,5,"Australia","остреліе","Австралія"]
[6,"America","емеріке","Америка",null,6,"America","емеріке","Америка"]
[7,"Africa","ефріке","Африка",null,7,"Africa","ефріке","Африка"]
[8,"eye","ай","око",null,8,"eye","ай","око"]
[9,"hair","хее","волосся",null,9,"hair","хее","волосся"]
[]
[1,"country","кантрі","країна",null,1,"country","кантрі","країна"]
[2,"Asia","ейше","Азія",null,2,"Asia","ейше","Азія"]
[3,"capital","кепітел","столиця",null,3,"capital","кепітел","столиця"]
[4,"Europe","юереп","Європа",null,4,"Europe","юереп","Європа"]
[5,"Australia","остреліе","Австралія",null,5,"Australia","остреліе","Австралія"]
[6,"America","емеріке","Америка",null,6,"America","емеріке","Америка"]
[7,"Africa","ефріке","Африка",null,7,"Africa","ефріке","Африка"]
[8,"eye","ай","око",null,8,"eye","ай","око"]
[9,"hair","хее","волосся",null,9,"hair","хее","волосся"]
[]
[1,"country","кантрі","країна",null,1,"country","кантрі","країна"]
[2,"Asia","ейше","Азія",null,2,"Asia","ейше","Азія"]
[3,"capital","кепітел","столиця",null,3,"capital","кепітел","столиця"]
[4,"Europe","юереп","Європа",null,4,"Europe","юереп","Європа"]
[5,"Australia","остреліе","Австралія",null,5,"Australia","остреліе","Австралія"]
[6,"America","емеріке","Америка",null,6,"America","емеріке","Америка"]
[7,"Africa","ефріке","Африка",null,7,"Africa","ефріке","Африка"]
[8,"eye","ай","око",null,8,"eye","ай","око"]
[9,"hair","хее","волосся",null,9,"hair","хее","волосся"]

{"sheet":"Лист34","index":35,"n_rows":46,"n_cols":12,"rows_kept":46,"cut":false,"hidden":false,"merged":[]}
[1,"church","чьоч","церква",null,1,"church","чьоч","церква"]
[2,"café","кефей","кафе",null,2,"café","кефей","кафе"]
[3,"shop","шоп","магазин",null,3,"shop","шоп","магазин"]
[4,"park","пак","парк",null,4,"park","пак","парк"]
[5,"post office","пост офіс","пошта",null,5,"post office","пост офіс","пошта"]
[6,"factory","фектері","фабрика",null,6,"factory","фектері","фабрика"]
[7,"hospital","хоспітел","лікарня",null,7,"hospital","хоспітел","лікарня"]
[8,"railway","рейлвей","залізниця",null,8,"railway","рейлвей","залізниця",null,null,"house"]
[9," station","стейшн","станція",null,9," station","стейшн","станція",null,null,"private house"]
[10,"hotel","хоутел","готель",null,10,"hotel","хоутел","готель",null,null,"forest"]
[null,null,null,null,null,null,null,null,null,null,null,"pond"]
[null,null,null,null,null,null,null,null,null,null,null,"field"]
[1,"church","чьоч","церква",null,1,"church","чьоч","церква",null,null,"farm"]
[2,"café","кефей","кафе",null,2,"café","кефей","кафе",null,null,"garden"]
[3,"shop","шоп","магазин",null,3,"shop","шоп","магазин",null,null,"vegetable garden"]
[4,"park","пак","парк",null,4,"park","пак","парк",null,null,"farm yard"]
[5,"post office","пост офіс","пошта",null,5,"post office","пост офіс","пошта",null,null,"market"]
[6,"factory","фектері","фабрика",null,6,"factory","фектері","фабрика"]
[7,"hospital","хоспітел","лікарня",null,7,"hospital","хоспітел","лікарня"]
[8,"railway","рейлвей","залізниця",null,8,"railway","рейлвей","залізниця"]
[9," station","стейшн","станція",null,9," station","стейшн","станція"]
[10,"hotel","хоутел","готель",null,10,"hotel","хоутел","готель"]
[]
[]
[1,"church","чьоч","церква",null,1,"church","чьоч","церква"]
[2,"café","кефей","кафе",null,2,"café","кефей","кафе"]
[3,"shop","шоп","магазин",null,3,"shop","шоп","магазин"]
[4,"park","пак","парк",null,4,"park","пак","парк"]
[5,"post office","пост офіс","пошта",null,5,"post office","пост офіс","пошта"]
[6,"factory","фектері","фабрика",null,6,"factory","фектері","фабрика"]
[7,"hospital","хоспітел","лікарня",null,7,"hospital","хоспітел","лікарня"]
[8,"railway","рейлвей","залізниця",null,8,"railway","рейлвей","залізниця"]
[9," station","стейшн","станція",null,9," station","стейшн","станція"]
[10,"hotel","хоутел","готель",null,10,"hotel","хоутел","готель"]
[]
[]
[1,"church","чьоч","церква",null,1,"church","чьоч","церква"]
[2,"café","кефей","кафе",null,2,"café","кефей","кафе"]
[3,"shop","шоп","магазин",null,3,"shop","шоп","магазин"]
[4,"park","пак","парк",null,4,"park","пак","парк"]
[5,"post office","пост офіс","пошта",null,5,"post office","пост офіс","пошта"]
[6,"factory","фектері","фабрика",null,6,"factory","фектері","фабрика"]
[7,"hospital","хоспітел","лікарня",null,7,"hospital","хоспітел","лікарня"]
[8,"railway","рейлвей","залізниця",null,8,"railway","рейлвей","залізниця"]
[9," station","стейшн","станція",null,9," station","стейшн","станція"]
[10,"hotel","хоутел","готель",null,10,"hotel","хоутел","готель"]

{"sheet":"Лист35","index":36,"n_rows":48,"n_cols":12,"rows_kept":48,"cut":false,"hidden":false,"merged":[]}
[1,"house","хауз","будинок",null,1,"house","хауз","будинок"]
[2,"private house","прайвет хауз","приватний будинок",null,2,"private house","прайвет хауз","приватний будинок"]
[3,"forest","форіст","ліс",null,3,"forest","форіст","ліс"]
[4,"pond","понд","ставок",null,4,"pond","понд","ставок"]
[5,"field","фіілд","поле",null,5,"field","фіілд","поле"]
[6,"farm","фаам","ферма",null,6,"farm","фаам","ферма"]
[7,"garden","ґаадн","сад",null,7,"garden","ґаадн","сад"]
[8,"vegetable garden","веджітебл ґаадн","город",null,8,"vegetable garden","веджітебл ґаадн","город",null,null,"house"]
[9,"farm yard","фаам яяд","фермерське подвір'я",null,9,"farm yard","фаам яяд","фермерське подвір'я",null,null,"private house"]
[10,"market","маакіт","базар, ринок",null,10,"market","маакіт","базар, ринок",null,null,"forest"]
[null,null,null,null,null,null,null,null,null,null,null,"pond"]
[null,null,null,null,null,null,null,null,null,null,null,"field"]
[1,"house","хауз","будинок",null,1,"house","хауз","будинок"]
[2,"private house","прайвет хауз","приватний будинок",null,2,"private house","прайвет хауз","приватний будинок"]
[3,"forest","форіст","ліс",null,3,"forest","форіст","ліс"]
[4,"pond","понд","ставок",null,4,"pond","понд","ставок"]
[5,"field","фіілд","поле",null,5,"field","фіілд","поле"]
[6,"farm","фаам","ферма",null,6,"farm","фаам","ферма"]
[7,"garden","ґаадн","сад",null,7,"garden","ґаадн","сад"]
[8,"vegetable garden","веджітебл ґаадн","город",null,8,"vegetable garden","веджітебл ґаадн","город",null,null,"house"]
[9,"farm yard","фаам яяд","фермерське подвір'я",null,9,"farm yard","фаам яяд","фермерське подвір'я",null,null,"private house"]
[10,"market","маакіт","базар, ринок",null,10,"market","маакіт","базар, ринок",null,null,"forest"]
[null,null,null,null,null,null,null,null,null,null,null,"pond"]
[null,null,null,null,null,null,null,null,null,null,null,"field"]
[1,"house","хауз","будинок",null,1,"house","хауз","будинок"]
[2,"private house","прайвет хауз","приватний будинок",null,2,"private house","прайвет хауз","приватний будинок"]
[3,"forest","форіст","ліс",null,3,"forest","форіст","ліс"]
[4,"pond","понд","ставок",null,4,"pond","понд","ставок"]
[5,"field","фіілд","поле",null,5,"field","фіілд","поле"]
[6,"farm","фаам","ферма",null,6,"farm","фаам","ферма"]
[7,"garden","ґаадн","сад",null,7,"garden","ґаадн","сад"]
[8,"vegetable garden","веджітебл ґаадн","город",null,8,"vegetable garden","веджітебл ґаадн","город",null,null,"house"]
[9,"farm yard","фаам яяд","фермерське подвір'я",null,9,"farm yard","фаам яяд","фермерське подвір'я",null,null,"private house"]
[10,"market","маакіт","базар, ринок",null,10,"market","маакіт","базар, ринок",null,null,"forest"]
[null,null,null,null,null,null,null,null,null,null,null,"pond"]
[null,null,null,null,null,null,null,null,null,null,null,"field"]
[1,"house","хауз","будинок",null,1,"house","хауз","будинок"]
[2,"private house","прайвет хауз","приватний будинок",null,2,"private house","прайвет хауз","приватний будинок"]
[3,"forest","форіст","ліс",null,3,"forest","форіст","ліс"]
[4,"pond","понд","ставок",null,4,"pond","понд","ставок"]
[5,"field","фіілд","поле",null,5,"field","фіілд","поле"]
[6,"farm","фаам","ферма",null,6,"farm","фаам","ферма"]
[7,"garden","ґаадн","сад",null,7,"garden","ґаадн","сад"]
[8,"vegetable garden","веджітебл ґаадн","город",null,8,"vegetable garden","веджітебл ґаадн","город",null,null,"house"]
[9,"farm yard","фаам яяд","фермерське подвір'я",null,9,"farm yard","фаам яяд","фермерське подвір'я",null,null,"private house"]
[10,"market","маакіт","базар, ринок",null,10,"market","маакіт","базар, ринок",null,null,"forest"]
[null,null,null,null,null,null,null,null,null,null,null,"pond"]
[null,null,null,null,null,null,null,null,null,null,null,"field"]

{"sheet":"Лист12","index":37,"n_rows":51,"n_cols":15,"rows_kept":51,"cut":false,"hidden":false,"merged":[]}
[1,"square","сквеа","площа",null,1,"square","сквеа","площа"]
[2,"avenue","евенью","авеню",null,2,"avenue","евенью","авеню"]
[3,"lane","лейн","провулок",null,3,"lane","лейн","провулок"]
[4,"address","едрес","адреса",null,4,"address","едрес","адреса"]
[5,"flat","флет","квартира",null,5,"flat","флет","квартира"]
[6,"street","стрііт","вулиця",null,6,"street","стрііт","вулиця"]
[7,"to sell","ту сел","продавати",null,7,"to sell","ту сел","продавати"]
[null,null,null,null,null,null,null,null,null,null,null,null,"customer",null,"assistant"]
[]
[1,"square","сквеа","площа",null,1,"square","сквеа","площа"]
[2,"avenue","евенью","авеню",null,2,"avenue","евенью","авеню"]
[3,"lane","лейн","провулок",null,3,"lane","лейн","провулок"]
[4,"address","едрес","адреса",null,4,"address","едрес","адреса"]
[5,"flat","флет","квартира",null,5,"flat","флет","квартира"]
[6,"street","стрііт","вулиця",null,6,"street","стрііт","вулиця"]
[7,"to sell","ту сел","продавати",null,7,"to sell","ту сел","продавати"]
[]
[]
[1,"square","сквеа","площа",null,1,"square","сквеа","площа"]
[2,"avenue","евенью","авеню",null,2,"avenue","евенью","авеню"]
[3,"lane","лейн","провулок",null,3,"lane","лейн","провулок"]
[4,"address","едрес","адреса",null,4,"address","едрес","адреса"]
[5,"flat","флет","квартира",null,5,"flat","флет","квартира"]
[6,"street","стрііт","вулиця",null,6,"street","стрііт","вулиця"]
[7,"to sell","ту сел","продавати",null,7,"to sell","ту сел","продавати"]
[]
[]
[1,"square","сквеа","площа",null,1,"square","сквеа","площа"]
[2,"avenue","евенью","авеню",null,2,"avenue","евенью","авеню"]
[3,"lane","лейн","провулок",null,3,"lane","лейн","провулок"]
[4,"address","едрес","адреса",null,4,"address","едрес","адреса"]
[5,"flat","флет","квартира",null,5,"flat","флет","квартира"]
[6,"street","стрііт","вулиця",null,6,"street","стрііт","вулиця"]
[7,"to sell","ту сел","продавати",null,7,"to sell","ту сел","продавати"]
[]
[]
[1,"square","сквеа","площа",null,1,"square","сквеа","площа"]
[2,"avenue","евенью","авеню",null,2,"avenue","евенью","авеню"]
[3,"lane","лейн","провулок",null,3,"lane","лейн","провулок"]
[4,"address","едрес","адреса",null,4,"address","едрес","адреса"]
[5,"flat","флет","квартира",null,5,"flat","флет","квартира"]
[6,"street","стрііт","вулиця",null,6,"street","стрііт","вулиця"]
[7,"to sell","ту сел","продавати",null,7,"to sell","ту сел","продавати"]
[]
[1,"square","сквеа","площа",null,1,"square","сквеа","площа"]
[2,"avenue","евенью","авеню",null,2,"avenue","евенью","авеню"]
[3,"lane","лейн","провулок",null,3,"lane","лейн","провулок"]
[4,"address","едрес","адреса",null,4,"address","едрес","адреса"]
[5,"flat","флет","квартира",null,5,"flat","флет","квартира"]
[6,"street","стрііт","вулиця",null,6,"street","стрііт","вулиця"]
[7,"to sell","ту сел","продавати",null,7,"to sell","ту сел","продавати"]

{"sheet":"Лист36","index":38,"n_rows":14,"n_cols":9,"rows_kept":14,"cut":false,"hidden":false,"merged":[]}
[1,"kettle","кетл","чайник",null,1,"towel","тауел","рушник"]
[2,"cupboard","капбед","шафа для посуду",null,2,"fridge","фрідж","холодильник"]
[3,"bath","[bɑːθ]","ванна",null,3,"cooker","куке","кухонна плита"]
[4,"shelf","шелф","поличка",null,4,"washbasin","вошбейзін","раковина, у якій миють руки та лице"]
[5,"shower","шауе","душ",null,5,"sink","сінк","раковина, у якій миють посуд"]
[6,"mirror","міре","дзеркало",null,6,"soap","сеуп","мило"]
[7,"microwave","майкровейв","мікрохвильова піч"]
[]
[1,"towel","тауел","рушник"]
[2,"fridge","фрідж","холодильник"]
[3,"cooker","куке","кухонна плита"]
[4,"washbasin","вошбейзін","раковина, у якій миють руки та лице"]
[5,"sink","сінк","раковина, у якій миють посуд"]
[6,"soap","сеуп","мило"]

{"sheet":"Лист37","index":39,"n_rows":7,"n_cols":5,"rows_kept":7,"cut":false,"hidden":false,"merged":[]}
["kettle","чайник","ванна","шафа для посуду",2]
["cupboard","шафа для посуду","дзеркало","чайник",2]
["bath","ванна","душ","поличка",2]
["shelf","поличка","мікрохвильова піч","душ",2]
["shower","душ","поличка","мікрохвильова піч",2]
["mirror","дзеркало","чайник","ванна",2]
["microwave","мікрохвильова піч","шафа для посуду","дзеркало",2]

{"sheet":"Лист38","index":40,"n_rows":51,"n_cols":15,"rows_kept":51,"cut":false,"hidden":false,"merged":[]}
[1,"kettle","кетл","чайник",null,1,"kettle","кетл","чайник"]
[2,"cupboard","капбед","шафа для посуду",null,2,"cupboard","капбед","шафа для посуду"]
[3,"bath","[bɑːθ]","ванна",null,3,"bath","[bɑːθ]","ванна"]
[4,"shelf","шелф","поличка",null,4,"shelf","шелф","поличка"]
[5,"shower","шауе","душ",null,5,"shower","шауе","душ"]
[6,"mirror","міре","дзеркало",null,6,"mirror","міре","дзеркало"]
[7,"microwave","майкровейв","мікрохвильова піч",null,7,"microwave","майкровейв","мікрохвильова піч"]
[null,null,null,null,null,null,null,null,null,null,null,null,"customer",null,"assistant"]
[]
[1,"kettle","кетл","чайник",null,1,"kettle","кетл","чайник"]
[2,"cupboard","капбед","шафа для посуду",null,2,"cupboard","капбед","шафа для посуду"]
[3,"bath","[bɑːθ]","ванна",null,3,"bath","[bɑːθ]","ванна"]
[4,"shelf","шелф","поличка",null,4,"shelf","шелф","поличка"]
[5,"shower","шауе","душ",null,5,"shower","шауе","душ"]
[6,"mirror","міре","дзеркало",null,6,"mirror","міре","дзеркало"]
[7,"microwave","майкровейв","мікрохвильова піч",null,7,"microwave","майкровейв","мікрохвильова піч"]
[]
[]
[1,"kettle","кетл","чайник",null,1,"kettle","кетл","чайник"]
[2,"cupboard","капбед","шафа для посуду",null,2,"cupboard","капбед","шафа для посуду"]
[3,"bath","[bɑːθ]","ванна",null,3,"bath","[bɑːθ]","ванна"]
[4,"shelf","шелф","поличка",null,4,"shelf","шелф","поличка"]
[5,"shower","шауе","душ",null,5,"shower","шауе","душ"]
[6,"mirror","міре","дзеркало",null,6,"mirror","міре","дзеркало"]
[7,"microwave","майкровейв","мікрохвильова піч",null,7,"microwave","майкровейв","мікрохвильова піч"]
[]
[]
[1,"kettle","кетл","чайник",null,1,"kettle","кетл","чайник"]
[2,"cupboard","капбед","шафа для посуду",null,2,"cupboard","капбед","шафа для посуду"]
[3,"bath","[bɑːθ]","ванна",null,3,"bath","[bɑːθ]","ванна"]
[4,"shelf","шелф","поличка",null,4,"shelf","шелф","поличка"]
[5,"shower","шауе","душ",null,5,"shower","шауе","душ"]
[6,"mirror","міре","дзеркало",null,6,"mirror","міре","дзеркало"]
[7,"microwave","майкровейв","мікрохвильова піч",null,7,"microwave","майкровейв","мікрохвильова піч"]
[]
[]
[1,"kettle","кетл","чайник",null,1,"kettle","кетл","чайник"]
[2,"cupboard","капбед","шафа для посуду",null,2,"cupboard","капбед","шафа для посуду"]
[3,"bath","[bɑːθ]","ванна",null,3,"bath","[bɑːθ]","ванна"]
[4,"shelf","шелф","поличка",null,4,"shelf","шелф","поличка"]
[5,"shower","шауе","душ",null,5,"shower","шауе","душ"]
[6,"mirror","міре","дзеркало",null,6,"mirror","міре","дзеркало"]
[7,"microwave","майкровейв","мікрохвильова піч",null,7,"microwave","майкровейв","мікрохвильова піч"]
[]
[1,"kettle","кетл","чайник",null,1,"kettle","кетл","чайник"]
[2,"cupboard","капбед","шафа для посуду",null,2,"cupboard","капбед","шафа для посуду"]
[3,"bath","[bɑːθ]","ванна",null,3,"bath","[bɑːθ]","ванна"]
[4,"shelf","шелф","поличка",null,4,"shelf","шелф","поличка"]
[5,"shower","шауе","душ",null,5,"shower","шауе","душ"]
[6,"mirror","міре","дзеркало",null,6,"mirror","міре","дзеркало"]
[7,"microwave","майкровейв","мікрохвильова піч",null,7,"microwave","майкровейв","мікрохвильова піч"]

{"sheet":"Лист38 (2)","index":41,"n_rows":43,"n_cols":13,"rows_kept":43,"cut":false,"hidden":false,"merged":[]}
[{"$f":"J1","v":1},{"$f":"K1","v":"towel"},{"$f":"L1","v":"тауел"},{"$f":"M1","v":"рушник"},null,{"$f":"A1","v":1},{"$f":"B1","v":"towel"},{"$f":"C1","v":"тауел"},{"$f":"D1","v":"рушник"},1,"towel","тауел","рушник"]
[{"$f":"J2","v":2},"fridge","фрідж","холодильник",null,{"$f":"A2","v":2},"fridge","фрідж","холодильник",2,"fridge","фрідж","холодильник"]
[3,"cooker","куке","кухонна плита",null,3,"cooker","куке","кухонна плита",3,"cooker","куке","кухонна плита"]
[4,"washbasin","вошбейзін","раковина, у якій миють руки та лице",null,4,"washbasin","вошбейзін","раковина, у якій миють руки та лице",4,"washbasin","вошбейзін","раковина, у якій миють руки та лице"]
[5,"sink","сінк","раковина, у якій миють посуд",null,5,"sink","сінк","раковина, у якій миють посуд",5,"sink","сінк","раковина, у якій миють посуд"]
[6,"soap","сеуп","мило",null,6,"soap","сеуп","мило",6,"soap","сеуп","мило"]
[7,0,0,0,null,7,0,0,0,7]
[8,0,0,0,null,8,0,0,0,8]
[9,0,0,0,null,9,0,0,0,9]
[10,0,0,0,null,10,0,0,0,10]
[]
[1,{"$f":"B1","v":"towel"},"тауел","рушник",null,1,{"$f":"B12","v":"towel"},{"$f":"C12","v":"тауел"},{"$f":"D12","v":"рушник"}]
[2,"fridge","фрідж","холодильник",null,2,{"$f":"B13","v":"fridge"},"фрідж","холодильник"]
[3,"cooker","куке","кухонна плита",null,3,"cooker","куке","кухонна плита"]
[4,"washbasin","вошбейзін","раковина, у якій миють руки та лице",null,4,"washbasin","вошбейзін","раковина, у якій миють руки та лице"]
[5,"sink","сінк","раковина, у якій миють посуд",null,5,"sink","сінк","раковина, у якій миють посуд"]
[6,"soap","сеуп","мило",null,6,"soap","сеуп","мило"]
[7,0,0,0,null,7,0,0,0]
[8,0,0,0,null,8,0,0,0]
[9,0,0,0,null,9,0,0,0]
[10,0,0,0,null,10,0,0,0]
[]
[1,{"$f":"B12","v":"towel"},"тауел","рушник",null,1,{"$f":"B23","v":"towel"},{"$f":"C23","v":"тауел"},{"$f":"D23","v":"рушник"}]
[2,"fridge","фрідж","холодильник",null,2,{"$f":"B24","v":"fridge"},"фрідж","холодильник"]
[3,"cooker","куке","кухонна плита",null,3,"cooker","куке","кухонна плита"]
[4,"washbasin","вошбейзін","раковина, у якій миють руки та лице",null,4,"washbasin","вошбейзін","раковина, у якій миють руки та лице"]
[5,"sink","сінк","раковина, у якій миють посуд",null,5,"sink","сінк","раковина, у якій миють посуд"]
[6,"soap","сеуп","мило",null,6,"soap","сеуп","мило"]
[7,0,0,0,null,7,0,0,0]
[8,0,0,0,null,8,0,0,0]
[9,0,0,0,null,9,0,0,0]
[10,0,0,0,null,10,0,0,0]
[]
[1,{"$f":"B23","v":"towel"},"тауел","рушник",null,1,{"$f":"B34","v":"towel"},{"$f":"C34","v":"тауел"},{"$f":"D34","v":"рушник"}]
[2,"fridge","фрідж","холодильник",null,2,{"$f":"B35","v":"fridge"},"фрідж","холодильник"]
[3,"cooker","куке","кухонна плита",null,3,"cooker","куке","кухонна плита"]
[4,"washbasin","вошбейзін","раковина, у якій миють руки та лице",null,4,"washbasin","вошбейзін","раковина, у якій миють руки та лице"]
[5,"sink","сінк","раковина, у якій миють посуд",null,5,"sink","сінк","раковина, у якій миють посуд"]
[6,"soap","сеуп","мило",null,6,"soap","сеуп","мило"]
[7,0,0,0,null,7,0,0,0]
[8,0,0,0,null,8,0,0,0]
[9,0,0,0,null,9,0,0,0]
[10,0,0,0,null,10,0,0,0]

{"sheet":"Лист39","index":42,"n_rows":0,"n_cols":0,"rows_kept":0,"cut":false,"hidden":false,"merged":[]}

{"sheet":"Лист38 (4)","index":43,"n_rows":43,"n_cols":14,"rows_kept":43,"cut":false,"hidden":false,"merged":[]}
[{"$f":"J1","v":1},{"$f":"K1","v":"want"},{"$f":"L1","v":"вонт"},{"$f":"M1","v":"хотіти"},null,{"$f":"A1","v":1},{"$f":"B1","v":"want"},{"$f":"C1","v":"вонт"},{"$f":"D1","v":"хотіти"},1,"want","вонт","хотіти"]
[{"$f":"J2","v":2},"present","презент","подарунок",null,{"$f":"A2","v":2},"present","презент","подарунок",2,"present","презент","подарунок"]
[3,"for","фо:","для",null,3,"for","фо:","для",3,"for","фо:","для"]
[4,"about ","ебаут","про ",null,4,"about ","ебаут","про ",4,"about ","ебаут","про "]
[5,"how","хау","як",null,5,{"$f":"B5","v":"how"},"хау","як",5,"how","хау","як"]
[6,{"$f":"K6","v":"how much"},"хау мач","як багато",null,6,"how much","хау мач","як багато",6,"how much","хау мач","як багато"]
[7,"cost","кост","коштувати",null,7,"cost","кост","коштувати",7,"cost","кост","коштувати"]
[8,0,0,0,null,8,0,0,0,8]
[9,0,0,0,null,9,0,0,0,9]
[10,0,0,0,null,10,0,0,0,10]
[]
[1,{"$f":"B1","v":"want"},"вонт","хотіти",null,1,{"$f":"B12","v":"want"},{"$f":"C12","v":"вонт"},{"$f":"D12","v":"хотіти"},null,null,null,null,"shop assistant "]
[2,"present","презент","подарунок",null,2,{"$f":"B13","v":"present"},"презент","подарунок",null,null,null,null,"customer "]
[3,"for","фо:","для",null,3,"for","фо:","для",null,null,null,null,"sweet shop"]
[4,"about ","ебаут","про ",null,4,"about ","ебаут","про ",null,null,null,null,"bookshop "]
[5,"how","хау","як",null,5,"how","хау","як",null,null,null,null,"clothes shop "]
[6,"how much","хау мач","як багато",null,6,"how much","хау мач","як багато",null,null,null,null,"shoe shop"]
[7,"cost","кост","коштувати",null,7,"cost","кост","коштувати",null,null,null,null,"toy shop "]
[8,0,0,0,null,8,0,0,0,null,null,null,null,"to sell "]
[9,0,0,0,null,9,0,0,0,null,null,null,null,"to buy"]
[10,0,0,0,null,10,0,0,0]
[]
[1,{"$f":"B12","v":"want"},"вонт","хотіти",null,1,{"$f":"B23","v":"want"},{"$f":"C23","v":"вонт"},{"$f":"D23","v":"хотіти"}]
[2,"present","презент","подарунок",null,2,{"$f":"B24","v":"present"},"презент","подарунок"]
[3,"for","фо:","для",null,3,"for","фо:","для"]
[4,"about ","ебаут","про ",null,4,"about ","ебаут","про "]
[5,"how","хау","як",null,5,"how","хау","як"]
[6,"how much","хау мач","як багато",null,6,"how much","хау мач","як багато"]
[7,"cost","кост","коштувати",null,7,"cost","кост","коштувати"]
[8,0,0,0,null,8,0,0,0]
[9,0,0,0,null,9,0,0,0]
[10,0,0,0,null,10,0,0,0]
[]
[1,{"$f":"B23","v":"want"},"вонт","хотіти",null,1,{"$f":"B34","v":"want"},{"$f":"C34","v":"вонт"},{"$f":"D34","v":"хотіти"}]
[2,"present","презент","подарунок",null,2,{"$f":"B35","v":"present"},"презент","подарунок"]
[3,"for","фо:","для",null,3,"for","фо:","для"]
[4,"about ","ебаут","про ",null,4,"about ","ебаут","про "]
[5,"how","хау","як",null,5,"how","хау","як"]
[6,"how much","хау мач","як багато",null,6,"how much","хау мач","як багато"]
[7,"cost","кост","коштувати",null,7,"cost","кост","коштувати"]
[8,0,0,0,null,8,0,0,0]
[9,0,0,0,null,9,0,0,0]
[10,0,0,0,null,10,0,0,0]

{"sheet":"Лист38 (5)","index":44,"n_rows":43,"n_cols":13,"rows_kept":43,"cut":false,"hidden":false,"merged":[]}
[{"$f":"J1","v":1},{"$f":"K1","v":"to take a shower "},{"$f":"L1","v":"ту тейк е шауе"},{"$f":"M1","v":"приймати душ"},null,{"$f":"A1","v":1},{"$f":"B1","v":"to take a shower "},{"$f":"C1","v":"ту тейк е шауе"},{"$f":"D1","v":"приймати душ"},1,"to take a shower ","ту тейк е шауе","приймати душ"]
[{"$f":"J2","v":2},"to lay the table","ту лей зе тейбл","накривати на стіл",null,{"$f":"A2","v":2},"to lay the table","ту лей зе тейбл","накривати на стіл",2,"to lay the table","ту лей зе тейбл","накривати на стіл"]
[3,"to clean the room","ту кліін зе рум","прибирати кімнату",null,3,"to clean the room","ту кліін зе рум","прибирати кімнату",3,"to clean the room","ту кліін зе рум","прибирати кімнату"]
[4,"to iron the jeans","ту айен зе джінс","прасувати джинси",null,4,"to iron the jeans","ту айен зе джінс","прасувати джинси",4,"to iron the jeans","ту айен зе джінс","прасувати джинси"]
[5,"to wash the dishes ","ту вош зе дішес","мити посуд",null,5,{"$f":"B5","v":"to wash the dishes "},"ту вош зе дішес","мити посуд",5,"to wash the dishes ","ту вош зе дішес","мити посуд"]
[6,{"$f":"K6","v":"to vacuum the carpet "},"ту век'юум зе капет","пилососити килим",null,6,"to vacuum the carpet ","ту век'юум зе капет","пилососити килим",6,"to vacuum the carpet ","ту век'юум зе капет","пилососити килим"]
[7,0,0,0,null,7,0,0,0,7]
[8,0,0,0,null,8,0,0,0,8]
[9,0,0,0,null,9,0,0,0,9]
[10,0,0,0,null,10,0,0,0,10]
[]
[1,{"$f":"B1","v":"to take a shower "},"ту тейк е шауе","приймати душ",null,1,{"$f":"B12","v":"to take a shower "},{"$f":"C12","v":"ту тейк е шауе"},{"$f":"D12","v":"приймати душ"}]
[2,"to lay the table","ту лей зе тейбл","накривати на стіл",null,2,{"$f":"B13","v":"to lay the table"},"ту лей зе тейбл","накривати на стіл"]
[3,"to clean the room","ту кліін зе рум","прибирати кімнату",null,3,"to clean the room","ту кліін зе рум","прибирати кімнату"]
[4,"to iron the jeans","ту айен зе джінс","прасувати джинси",null,4,"to iron the jeans","ту айен зе джінс","прасувати джинси"]
[5,"to wash the dishes ","ту вош зе дішес","мити посуд",null,5,"to wash the dishes ","ту вош зе дішес","мити посуд"]
[6,"to vacuum the carpet ","ту век'юум зе капет","пилососити килим",null,6,"to vacuum the carpet ","ту век'юум зе капет","пилососити килим"]
[7,0,0,0,null,7,0,0,0]
[8,0,0,0,null,8,0,0,0]
[9,0,0,0,null,9,0,0,0]
[10,0,0,0,null,10,0,0,0]
[]
[1,{"$f":"B12","v":"to take a shower "},"ту тейк е шауе","приймати душ",null,1,{"$f":"B23","v":"to take a shower "},{"$f":"C23","v":"ту тейк е шауе"},{"$f":"D23","v":"приймати душ"}]
[2,"to lay the table","ту лей зе тейбл","накривати на стіл",null,2,{"$f":"B24","v":"to lay the table"},"ту лей зе тейбл","накривати на стіл"]
[3,"to clean the room","ту кліін зе рум","прибирати кімнату",null,3,"to clean the room","ту кліін зе рум","прибирати кімнату"]
[4,"to iron the jeans","ту айен зе джінс","прасувати джинси",null,4,"to iron the jeans","ту айен зе джінс","прасувати джинси"]
[5,"to wash the dishes ","ту вош зе дішес","мити посуд",null,5,"to wash the dishes ","ту вош зе дішес","мити посуд"]
[6,"to vacuum the carpet ","ту век'юум зе капет","пилососити килим",null,6,"to vacuum the carpet ","ту век'юум зе капет","пилососити килим"]
[7,0,0,0,null,7,0,0,0]
[8,0,0,0,null,8,0,0,0]
[9,0,0,0,null,9,0,0,0]
[10,0,0,0,null,10,0,0,0]
[]
[1,{"$f":"B23","v":"to take a shower "},"ту тейк е шауе","приймати душ",null,1,{"$f":"B34","v":"to take a shower "},{"$f":"C34","v":"ту тейк е шауе"},{"$f":"D34","v":"приймати душ"}]
[2,"to lay the table","ту лей зе тейбл","накривати на стіл",null,2,{"$f":"B35","v":"to lay the table"},"ту лей зе тейбл","накривати на стіл"]
[3,"to clean the room","ту кліін зе рум","прибирати кімнату",null,3,"to clean the room","ту кліін зе рум","прибирати кімнату"]
[4,"to iron the jeans","ту айен зе джінс","прасувати джинси",null,4,"to iron the jeans","ту айен зе джінс","прасувати джинси"]
[5,"to wash the dishes ","ту вош зе дішес","мити посуд",null,5,"to wash the dishes ","ту вош зе дішес","мити посуд"]
[6,"to vacuum the carpet ","ту век'юум зе капет","пилососити килим",null,6,"to vacuum the carpet ","ту век'юум зе капет","пилососити килим"]
[7,0,0,0,null,7,0,0,0]
[8,0,0,0,null,8,0,0,0]
[9,0,0,0,null,9,0,0,0]
[10,0,0,0,null,10,0,0,0]

{"sheet":"Лист38 (6)","index":45,"n_rows":43,"n_cols":14,"rows_kept":43,"cut":false,"hidden":false,"merged":[]}
[{"$f":"J1","v":1},{"$f":"K1","v":"to cook a turkey"},{"$f":"L1","v":"ту кук [ˈtɜːkɪ]"},{"$f":"M1","v":"готувати індичку"},null,{"$f":"A1","v":1},{"$f":"B1","v":"to cook a turkey"},{"$f":"C1","v":"ту кук [ˈtɜːkɪ]"},{"$f":"D1","v":"готувати індичку"},1,"to cook a turkey","ту кук [ˈtɜːkɪ]","готувати індичку"]
[{"$f":"J2","v":2},"Christmas pudding","крісмес пудін","різдвяний пудинг",null,{"$f":"A2","v":2},"Christmas pudding","крісмес пудін","різдвяний пудинг",2,"Christmas pudding","крісмес пудін","різдвяний пудинг"]
[3,"to have a Christmas pudding",0,{"$f":"M3","v":"їсти(мати) різдвяний пудинг"},null,3,"to have a Christmas pudding",0,"їсти(мати) різдвяний пудинг",3,"to have a Christmas pudding",null,"їсти(мати) різдвяний пудинг"]
[4,"stocking","стокін","панчоха",null,4,"stocking","стокін","панчоха",4,"stocking","стокін","панчоха"]
[5,"near the fireplace","ніе зе файеплейс","біля каміну",null,5,{"$f":"B5","v":"near the fireplace"},"ніе зе файеплейс","біля каміну",5,"near the fireplace","ніе зе файеплейс","біля каміну"]
[6,{"$f":"K6","v":"to sing Christmas carols"},"керолс","співати різдвяні пісні",null,6,"to sing Christmas carols","керолс","співати різдвяні пісні",6,"to sing Christmas carols","керолс","співати різдвяні пісні"]
[7,"to hang coloured balls","ту хен калед болс","вішати кольорові кульки",null,7,"to hang coloured balls","ту хен калед болс","вішати кольорові кульки",7,"to hang coloured balls","ту хен калед болс","вішати кольорові кульки"]
[8,{"$f":"K9","v":"to send greeting cards"},"ту сенд","відсилати",null,8,"to send greeting cards","ту сенд","відсилати",8,"to send ","ту сенд","відсилати"]
[9,{"$f":"K8","v":"to send "},"ґрі:тін ка:дс","відсилати вітальні картки",null,9,"to send ","ґрі:тін ка:дс","відсилати вітальні картки",9,"to send greeting cards","ґрі:тін ка:дс","відсилати вітальні картки"]
[10,{"$f":"K10","v":0},0,0,null,10,0,0,0,10]
[null,null,null,null,null,null,null,null,null,null,null,null,null,"to send "]
[1,{"$f":"B1","v":"to cook a turkey"},"ту кук [ˈtɜːkɪ]","готувати індичку",null,1,{"$f":"B12","v":"to cook a turkey"},{"$f":"C12","v":"ту кук [ˈtɜːkɪ]"},{"$f":"D12","v":"готувати індичку"}]
[2,"Christmas pudding","крісмес пудін","різдвяний пудинг",null,2,{"$f":"B13","v":"Christmas pudding"},"крісмес пудін","різдвяний пудинг",null,null,null,null,"to send greeting cards"]
[3,"to have a Christmas pudding",0,"їсти(мати) різдвяний пудинг",null,3,"to have a Christmas pudding",0,"їсти(мати) різдвяний пудинг"]
[4,"stocking","стокін","панчоха",null,4,"stocking","стокін","панчоха"]
[5,"near the fireplace","ніе зе файеплейс","біля каміну",null,5,"near the fireplace","ніе зе файеплейс","біля каміну"]
[6,"to sing Christmas carols","керолс","співати різдвяні пісні",null,6,"to sing Christmas carols","керолс","співати різдвяні пісні"]
[7,"to hang coloured balls","ту хен калед болс","вішати кольорові кульки",null,7,"to hang coloured balls","ту хен калед болс","вішати кольорові кульки"]
[8,"to send greeting cards","ту сенд","відсилати",null,8,"to send greeting cards","ту сенд","відсилати"]
[9,"to send ","ґрі:тін ка:дс","відсилати вітальні картки",null,9,"to send ","ґрі:тін ка:дс","відсилати вітальні картки"]
[10,0,0,0,null,10,0,0,0]
[]
[1,{"$f":"B12","v":"to cook a turkey"},"ту кук [ˈtɜːkɪ]","готувати індичку",null,1,{"$f":"B23","v":"to cook a turkey"},{"$f":"C23","v":"ту кук [ˈtɜːkɪ]"},{"$f":"D23","v":"готувати індичку"}]
[2,"Christmas pudding","крісмес пудін","різдвяний пудинг",null,2,{"$f":"B24","v":"Christmas pudding"},"крісмес пудін","різдвяний пудинг"]
[3,"to have a Christmas pudding",0,"їсти(мати) різдвяний пудинг",null,3,"to have a Christmas pudding",0,"їсти(мати) різдвяний пудинг"]
[4,"stocking","стокін","панчоха",null,4,"stocking","стокін","панчоха"]
[5,"near the fireplace","ніе зе файеплейс","біля каміну",null,5,"near the fireplace","ніе зе файеплейс","біля каміну"]
[6,"to sing Christmas carols","керолс","співати різдвяні пісні",null,6,"to sing Christmas carols","керолс","співати різдвяні пісні"]
[7,"to hang coloured balls","ту хен калед болс","вішати кольорові кульки",null,7,"to hang coloured balls","ту хен калед болс","вішати кольорові кульки"]
[8,"to send greeting cards","ту сенд","відсилати",null,8,"to send greeting cards","ту сенд","відсилати"]
[9,"to send ","ґрі:тін ка:дс","відсилати вітальні картки",null,9,"to send ","ґрі:тін ка:дс","відсилати вітальні картки"]
[10,0,0,0,null,10,0,0,0]
[]
[1,{"$f":"B23","v":"to cook a turkey"},"ту кук [ˈtɜːkɪ]","готувати індичку",null,1,{"$f":"B34","v":"to cook a turkey"},{"$f":"C34","v":"ту кук [ˈtɜːkɪ]"},{"$f":"D34","v":"готувати індичку"}]
[2,"Christmas pudding","крісмес пудін","різдвяний пудинг",null,2,{"$f":"B35","v":"Christmas pudding"},"крісмес пудін","різдвяний пудинг"]
[3,"to have a Christmas pudding",0,"їсти(мати) різдвяний пудинг",null,3,"to have a Christmas pudding",0,"їсти(мати) різдвяний пудинг"]
[4,"stocking","стокін","панчоха",null,4,"stocking","стокін","панчоха"]
[5,"near the fireplace","ніе зе файеплейс","біля каміну",null,5,"near the fireplace","ніе зе файеплейс","біля каміну"]
[6,"to sing Christmas carols","керолс","співати різдвяні пісні",null,6,"to sing Christmas carols","керолс","співати різдвяні пісні"]
[7,"to hang coloured balls","ту хен калед болс","вішати кольорові кульки",null,7,"to hang coloured balls","ту хен калед болс","вішати кольорові кульки"]
[8,"to send greeting cards","ту сенд","відсилати",null,8,"to send greeting cards","ту сенд","відсилати"]
[9,"to send ","ґрі:тін ка:дс","відсилати вітальні картки",null,9,"to send ","ґрі:тін ка:дс","відсилати вітальні картки"]
[10,0,0,0,null,10,0,0,0]

{"sheet":"Лист38 (7)","index":46,"n_rows":43,"n_cols":14,"rows_kept":43,"cut":false,"hidden":false,"merged":[]}
[{"$f":"J1","v":1},{"$f":"K1","v":"mountain"},{"$f":"L1","v":"маунтін"},{"$f":"M1","v":"гора"},null,{"$f":"A1","v":1},{"$f":"B1","v":"mountain"},{"$f":"C1","v":"маунтін"},{"$f":"D1","v":"гора"},1,"mountain","маунтін","гора"]
[{"$f":"J2","v":2},"to ski","скі:","кататися на лижах",null,{"$f":"A2","v":2},"to ski","скі:","кататися на лижах",2,"to ski","скі:","кататися на лижах"]
[3,"to skate","скейт","кататися на ковзанах",null,3,"to skate","скейт","кататися на ковзанах",3,"to skate","скейт","кататися на ковзанах"]
[4,"to sledge","следж","кататися на санках",null,4,"to sledge","следж","кататися на санках",4,"to sledge","следж","кататися на санках"]
[5,"to throw","сроу","кидати",null,5,{"$f":"B5","v":"to throw"},"сроу","кидати",5,"to throw","сроу","кидати"]
[6,{"$f":"K6","v":"snowball"},"сноубол","сніжка",null,6,"snowball","сноубол","сніжка",6,"snowball","сноубол","сніжка"]
[7,"to make","мейк","робити ",null,7,"to make","мейк","робити ",7,"to make","мейк","робити "]
[8,0,0,0,null,8,0,0,0,8]
[9,0,0,0,null,9,0,0,0,9]
[10,0,0,0,null,10,0,0,0,10]
[]
[1,{"$f":"B1","v":"mountain"},"маунтін","гора",null,1,{"$f":"B12","v":"mountain"},{"$f":"C12","v":"маунтін"},{"$f":"D12","v":"гора"},null,null,null,null,"shop assistant "]
[2,"to ski","скі:","кататися на лижах",null,2,{"$f":"B13","v":"to ski"},"скі:","кататися на лижах",null,null,null,null,"customer "]
[3,"to skate","скейт","кататися на ковзанах",null,3,"to skate","скейт","кататися на ковзанах",null,null,null,null,"sweet shop"]
[4,"to sledge","следж","кататися на санках",null,4,"to sledge","следж","кататися на санках",null,null,null,null,"bookshop "]
[5,"to throw","сроу","кидати",null,5,"to throw","сроу","кидати",null,null,null,null,"clothes shop "]
[6,"snowball","сноубол","сніжка",null,6,"snowball","сноубол","сніжка",null,null,null,null,"shoe shop"]
[7,"to make","мейк","робити ",null,7,"to make","мейк","робити ",null,null,null,null,"toy shop "]
[8,0,0,0,null,8,0,0,0,null,null,null,null,"to sell "]
[9,0,0,0,null,9,0,0,0,null,null,null,null,"to buy"]
[10,0,0,0,null,10,0,0,0]
[]
[1,{"$f":"B12","v":"mountain"},"маунтін","гора",null,1,{"$f":"B23","v":"mountain"},{"$f":"C23","v":"маунтін"},{"$f":"D23","v":"гора"}]
[2,"to ski","скі:","кататися на лижах",null,2,{"$f":"B24","v":"to ski"},"скі:","кататися на лижах"]
[3,"to skate","скейт","кататися на ковзанах",null,3,"to skate","скейт","кататися на ковзанах"]
[4,"to sledge","следж","кататися на санках",null,4,"to sledge","следж","кататися на санках"]
[5,"to throw","сроу","кидати",null,5,"to throw","сроу","кидати"]
[6,"snowball","сноубол","сніжка",null,6,"snowball","сноубол","сніжка"]
[7,"to make","мейк","робити ",null,7,"to make","мейк","робити "]
[8,0,0,0,null,8,0,0,0]
[9,0,0,0,null,9,0,0,0]
[10,0,0,0,null,10,0,0,0]
[]
[1,{"$f":"B23","v":"mountain"},"маунтін","гора",null,1,{"$f":"B34","v":"mountain"},{"$f":"C34","v":"маунтін"},{"$f":"D34","v":"гора"}]
[2,"to ski","скі:","кататися на лижах",null,2,{"$f":"B35","v":"to ski"},"скі:","кататися на лижах"]
[3,"to skate","скейт","кататися на ковзанах",null,3,"to skate","скейт","кататися на ковзанах"]
[4,"to sledge","следж","кататися на санках",null,4,"to sledge","следж","кататися на санках"]
[5,"to throw","сроу","кидати",null,5,"to throw","сроу","кидати"]
[6,"snowball","сноубол","сніжка",null,6,"snowball","сноубол","сніжка"]
[7,"to make","мейк","робити ",null,7,"to make","мейк","робити "]
[8,0,0,0,null,8,0,0,0]
[9,0,0,0,null,9,0,0,0]
[10,0,0,0,null,10,0,0,0]

{"sheet":"самос","index":47,"n_rows":82,"n_cols":28,"rows_kept":82,"cut":false,"hidden":false,"merged":[]}
[{"$f":"R1","v":"Form 6"},null,null,null,null,{"$f":"R1","v":"Form 6"},null,null,null,{"$f":"R1","v":"Form 6"},null,null,null,{"$f":"R1","v":"Form 6"},null,null,null,"Form 6"]
["Name  _________________________              Date_______",null,null,null,null,"Name  _________________________              Date_______",null,null,null,"Name  _________________________              Date_______",null,null,null,"Name  _________________________              Date_______"]
[]
[null,{"$f":"S4","v":"choose"},1,{"$f":"V4","v":"потребувати"},null,null,{"$f":"S4","v":"choose"},1,{"$f":"V4","v":"потребувати"},{"$f":"S18","v":"cream"},null,null,null,{"$f":"J4","v":"cream"},null,null,null,null,"choose",null,1,"потребувати"]
[null,"cream",2,"молокопродукти",null,null,{"$f":"S5","v":"cream"},2,{"$f":"V5","v":"молокопродукти"},{"$f":"S19","v":"dairy products"},null,null,null,{"$f":"J5","v":"dairy products"},null,null,null,null,"cream",null,2,"молокопродукти"]
[null,"dairy products",3,"у наші дні",null,null,"dairy products",3,"у наші дні","exit",null,null,null,"exit",null,null,null,null,"dairy products",null,3,"у наші дні",null,null,null,"choose","[niːd]","потребувати"]
[null,"exit",4,"платити",null,null,"exit",4,"платити","mean",null,null,null,"mean",null,null,null,null,"exit",null,4,"платити",null,null,null,"cream"," [ˏdeərɪˊprɔdʌkts] ","молокопродукти"]
[null,"mean",5,"мати на увазі",null,null,"mean",5,"мати на увазі","need ",null,null,null,"need ",null,null,null,null,"mean",null,5,"мати на увазі",null,null,null,"exit","[ˈnauədeɪz]","у наші дні"]
[null,"need ",6,"крем",null,null,"need ",6,"крем","nowadays",null,null,null,"nowadays",null,null,null,null,"need ",null,6,"крем",null,null,null,"use","[peɪ]","платити"]
[null,"nowadays",7,"вибирати",null,null,"nowadays",7,"вибирати","pay",null,null,null,"pay",null,null,null,null,"nowadays",null,7,"вибирати",null,null,null,"need ","[miːn]","мати на увазі"]
[null,"pay",8,"вихід",null,null,"pay",8,"вихід","use",null,null,null,"use",null,null,null,null,"pay",null,8,"вихід",null,null,null,"dairy products","[kriːm]","крем"]
[null,"use",9,"використовувати",null,null,"use",9,"використовувати","choose",null,null,null,"choose",null,null,null,null,"use",null,9,"використовувати",null,null,null,"nowadays","[ʧuːz]","крем"]
[null,0,10,0,null,null,0,10,0,0,null,null,null,0,null,null,null,null,null,null,10,null,null,null,null,"pay","[ˈegzɪt]","вихід"]
[null,0,11,0,null,null,0,11,0,0,null,null,null,0,null,null,null,null,null,null,11,null,null,null,null,"mean","[juːz]","використовувати"]
[]
[{"$f":"R1","v":"Form 6"},null,null,null,null,{"$f":"R1","v":"Form 6"},null,null,null,{"$f":"R1","v":"Form 6"},null,null,null,{"$f":"R1","v":"Form 6"}]
["Name  _________________________              Date_______",null,null,null,null,"Name  _________________________              Date_______",null,null,null,"Name  _________________________              Date_______",null,null,null,"Name  _________________________              Date_______"]
[null,null,null,null,null,null,null,null,null,null,null,null,null,null,null,null,null,null,"cream"]
[null,{"$f":"S4","v":"choose"},1,{"$f":"V4","v":"потребувати"},null,null,{"$f":"B19","v":"choose"},1,{"$f":"D19","v":"потребувати"},{"$f":"J4","v":"cream"},null,null,null,{"$f":"J19","v":"cream"},null,null,null,null,"dairy products"]
[null,{"$f":"S5","v":"cream"},2,{"$f":"V5","v":"молокопродукти"},null,null,{"$f":"B20","v":"cream"},2,{"$f":"D20","v":"молокопродукти"},{"$f":"J5","v":"dairy products"},null,null,null,{"$f":"J20","v":"dairy products"},null,null,null,null,"exit"]
[null,"dairy products",3,"у наші дні",null,null,"dairy products",3,"у наші дні","exit",null,null,null,"exit",null,null,null,null,"mean"]
[null,"exit",4,"платити",null,null,"exit",4,"платити","mean",null,null,null,"mean",null,null,null,null,"need "]
[null,"mean",5,"мати на увазі",null,null,"mean",5,"мати на увазі","need ",null,null,null,"need ",null,null,null,null,"nowadays"]
[null,"need ",6,"крем",null,null,"need ",6,"крем","nowadays",null,null,null,"nowadays",null,null,null,null,"pay"]
[null,"nowadays",7,"вибирати",null,null,"nowadays",7,"вибирати","pay",null,null,null,"pay",null,null,null,null,"use"]
[null,"pay",8,"вихід",null,null,"pay",8,"вихід","use",null,null,null,"use",null,null,null,null,"choose"]
[null,"use",9,"використовувати",null,null,"use",9,"використовувати","choose",null,null,null,"choose"]
[null,0,10,0,null,null,0,10,0,0,null,null,null,0]
[null,0,11,0,null,null,0,11,0,0,null,null,null,0]
[]
[{"$f":"R1","v":"Form 6"},null,null,null,null,{"$f":"R1","v":"Form 6"},null,null,null,{"$f":"R1","v":"Form 6"},null,null,null,{"$f":"R1","v":"Form 6"}]
["Name  _________________________              Date_______",null,null,null,null,"Name  _________________________              Date_______",null,null,null,"Name  _________________________              Date_______",null,null,null,"Name  _________________________              Date_______"]
[]
[null,{"$f":"B19","v":"choose"},1,{"$f":"D19","v":"потребувати"},null,null,{"$f":"B34","v":"choose"},1,{"$f":"D34","v":"потребувати"},{"$f":"J19","v":"cream"},null,null,null,{"$f":"J34","v":"cream"},null,null,null,null,null,null,"why","[wɛə]","як"]
[null,{"$f":"B20","v":"cream"},2,{"$f":"D20","v":"молокопродукти"},null,null,{"$f":"B35","v":"cream"},2,{"$f":"D35","v":"молокопродукти"},{"$f":"J20","v":"dairy products"},null,null,null,{"$f":"J35","v":"dairy products"},null,null,null,null,null,null,"whose","[wen]","що, який "]
[null,"dairy products",3,"у наші дні",null,null,"dairy products",3,"у наші дні","exit",null,null,null,"exit",null,null,null,null,null,null,"who","[huːz]","чому"]
[null,"exit",4,"платити",null,null,"exit",4,"платити","mean",null,null,null,"mean",null,null,null,null,null,null,"where","[huːː ]","чий"]
[null,"mean",5,"мати на увазі",null,null,"mean",5,"мати на увазі","need ",null,null,null,"need ",null,null,null,null,null,null,"when","[wɔt]","хто"]
[null,"need ",6,"крем",null,null,"need ",6,"крем","nowadays",null,null,null,"nowadays",null,null,null,null,null,null,"what","[hau]","коли"]
[null,"nowadays",7,"вибирати",null,null,"nowadays",7,"вибирати","pay",null,null,null,"pay",null,null,null,null,null,null,"how many","[waɪ]","де, куди"]
[null,"pay",8,"вихід",null,null,"pay",8,"вихід","use",null,null,null,"use",null,null,null,null,null,null,"how","[hau] [ˈmenɪ]"," скільки ( як бгато)"]
[null,"use",9,"використовувати",null,null,"use",9,"використовувати","choose",null,null,null,"choose"]
[null,0,10,0,null,null,0,10,0,0,null,null,null,0]
[null,0,11,0,null,null,0,11,0,0,null,null,null,0]
[]
[{"$f":"R1","v":"Form 6"},null,null,null,null,null,null,null,null,{"$f":"R1","v":"Form 6"}]
["Name  _________________________              Date_______",null,null,null,null,null,null,null,null,"Name  _________________________              Date_______"]
[]
[null,{"$f":"B34","v":"choose"},1,{"$f":"D34","v":"потребувати"},null,null,{"$f":"B40","v":"nowadays"},7,{"$f":"D40","v":"вибирати"},{"$f":"J34","v":"cream"},null,null,null,{"$f":"J40","v":"pay"}]
[null,{"$f":"B35","v":"cream"},2,{"$f":"D35","v":"молокопродукти"},null,null,{"$f":"B41","v":"pay"},8,{"$f":"D41","v":"вихід"},{"$f":"J35","v":"dairy products"},null,null,null,{"$f":"J41","v":"use"}]
[null,"dairy products",3,"у наші дні",null,null,{"$f":"B42","v":"use"},9,{"$f":"D42","v":"використовувати"},"exit",null,null,null,{"$f":"J42","v":"choose"}]
[null,"exit",4,"платити",null,null,{"$f":"B43","v":0},10,{"$f":"D43","v":0},"mean",null,null,null,{"$f":"J43","v":0}]
[null,"mean",5,"мати на увазі",null,null,{"$f":"B44","v":0},11,{"$f":"D44","v":0},"need ",null,null,null,{"$f":"J44","v":0}]
[null,"need ",6,"крем",null,null,null,null,null,"nowadays"]
[]
[]
[]
[null,7]
[]
[]
[null,null,1,"як"]
[null,null,2,"що, який ",null,null,null,1,"wife"]
[null,null,3,"чому",null,null,null,2,"to laugh"]
[null,null,4,"чий",null,null,null,3,"question"]
[null,null,5,"хто",null,null,null,4,"plump"]
[null,null,6,"коли",null,null,null,5,"pilot"]
[null,null,7,"де, куди",null,null,null,6,"niece"]
[null,null,8," скільки ( як бгато)",null,null,null,7,"curious"]
[null,null,null,null,null,null,null,8,"boring"]
[null,null,null,null,null,null,null,9,"bald"]
[null,null,1,"як",null,null,null,10,"aunt"]
[null,null,2,"що, який "]
[null,null,3,"чому",null,null,null,1,"wife"]
[null,null,4,"чий",null,null,null,2,"to laugh"]
[null,null,5,"хто",null,null,null,3,"question"]
[null,null,6,"коли",null,null,null,4,"plump"]
[null,null,7,"де, куди",null,null,null,5,"pilot"]
[null,null,8," скільки ( як бгато)",null,null,null,6,"niece"]
[null,null,null,null,null,null,null,7,"curious"]
[null,null,null,null,null,null,null,8,"boring"]
[null,null,null,null,null,null,null,9,"bald"]
[null,null,null,null,null,null,null,10,"aunt"]

{"sheet":"Лист38 (8)","index":48,"n_rows":44,"n_cols":17,"rows_kept":44,"cut":false,"hidden":false,"merged":[]}
[{"$f":"J1","v":1},{"$f":"K1","v":"nice"},{"$f":"L1","v":"найс"},{"$f":"M1","v":"гарно"},null,{"$f":"A1","v":1},{"$f":"B1","v":"nice"},{"$f":"C1","v":"найс"},{"$f":"D1","v":"гарно"},1,"nice","найс","гарно"]
[{"$f":"J2","v":2},"warm","вом","тепло",null,{"$f":"A2","v":2},"warm","вом","тепло",2,"warm","вом","тепло"]
[3,"cold","колд","холодний",null,3,"cold","колд","холодний",3,"cold","колд","холодний"]
[4,"weather","везе","погода",null,4,"weather","везе","погода",4,"weather","везе","погода",null,null,null,"weather"]
[5,"hot","хот","жарко",null,5,{"$f":"B5","v":"hot"},"хот","жарко",5,"hot","хот","жарко",null,null,null,"warm"]
[6,{"$f":"K6","v":"evening"},"івнін","вечір",null,6,"evening","івнін","вечір",6,"evening","івнін","вечір",null,null,null,"nice"]
[7,0,0,0,null,7,0,0,0,7,null,null,null,null,null,null,"hot"]
[8,0,0,0,null,8,0,0,0,8,null,null,null,null,null,null,"evening"]
[null,null,null,null,null,null,null,null,null,null,null,null,null,null,null,null,"cold"]
[1,{"$f":"B1","v":"nice"},"найс","гарно",null,1,{"$f":"B10","v":"nice"},{"$f":"C10","v":"найс"},{"$f":"D10","v":"гарно"}]
[2,"warm","вом","тепло",null,2,{"$f":"B11","v":"warm"},"вом","тепло"]
[3,"cold","колд","холодний",null,3,"cold","колд","холодний"]
[4,"weather","везе","погода",null,4,"weather","везе","погода"]
[5,"hot","хот","жарко",null,5,"hot","хот","жарко"]
[6,"evening","івнін","вечір",null,6,"evening","івнін","вечір"]
[7,0,0,0,null,7,0,0,0]
[8,0,0,0,null,8,0,0,0]
[]
[1,{"$f":"B10","v":"nice"},"найс","гарно",null,1,{"$f":"B19","v":"nice"},{"$f":"C19","v":"найс"},{"$f":"D19","v":"гарно"}]
[2,"warm","вом","тепло",null,2,{"$f":"B20","v":"warm"},"вом","тепло"]
[3,"cold","колд","холодний",null,3,"cold","колд","холодний"]
[4,"weather","везе","погода",null,4,"weather","везе","погода"]
[5,"hot","хот","жарко",null,5,"hot","хот","жарко"]
[6,"evening","івнін","вечір",null,6,"evening","івнін","вечір"]
[7,0,0,0,null,7,0,0,0]
[8,0,0,0,null,8,0,0,0]
[]
[1,{"$f":"B19","v":"nice"},"найс","гарно",null,1,{"$f":"B28","v":"nice"},{"$f":"C28","v":"найс"},{"$f":"D28","v":"гарно"}]
[2,"warm","вом","тепло",null,2,{"$f":"B29","v":"warm"},"вом","тепло"]
[3,"cold","колд","холодний",null,3,"cold","колд","холодний"]
[4,"weather","везе","погода",null,4,"weather","везе","погода"]
[5,"hot","хот","жарко",null,5,"hot","хот","жарко"]
[6,"evening","івнін","вечір",null,6,"evening","івнін","вечір"]
[7,0,0,0,null,7,0,0,0]
[8,0,0,0,null,8,0,0,0]
[]
[1,{"$f":"B28","v":"nice"},"найс","гарно",null,1,{"$f":"B37","v":"nice"},{"$f":"C37","v":"найс"},{"$f":"D37","v":"гарно"}]
[2,"warm","вом","тепло",null,2,{"$f":"B38","v":"warm"},{"$f":"C38","v":"вом"},{"$f":"D38","v":"тепло"}]
[3,"cold","колд","холодний",null,3,"cold","колд","холодний"]
[4,"weather","везе","погода",null,4,"weather","везе","погода"]
[5,"hot","хот","жарко",null,5,"hot","хот","жарко"]
[6,"evening","івнін","вечір",null,6,"evening","івнін","вечір"]
[7,0,0,0,null,7,0,0,0]
[8,0,0,0,null,8,0,0,0]

{"sheet":"самос (4)","index":49,"n_rows":82,"n_cols":28,"rows_kept":82,"cut":false,"hidden":false,"merged":[]}
[{"$f":"R1","v":"Form 6"},null,null,null,null,{"$f":"R1","v":"Form 6"},null,null,null,{"$f":"R1","v":"Form 6"},null,null,null,{"$f":"R1","v":"Form 6"},null,null,null,"Form 6"]
["Name  _________________________              Date_______",null,null,null,null,"Name  _________________________              Date_______",null,null,null,"Name  _________________________              Date_______",null,null,null,"Name  _________________________              Date_______"]
[]
[null,{"$f":"S4","v":"nice"},1,{"$f":"V4","v":"вечір"},null,null,{"$f":"S4","v":"nice"},1,{"$f":"V4","v":"вечір"},{"$f":"S18","v":"weather"},null,null,null,{"$f":"J4","v":"weather"},null,null,null,null,"nice",null,1,"вечір",null,null,"weather"]
[null,"warm",2,"гарно",null,null,{"$f":"S5","v":"warm"},2,{"$f":"V5","v":"гарно"},{"$f":"S19","v":"warm"},null,null,null,{"$f":"J5","v":"warm"},null,null,null,null,"warm",null,2,"гарно",null,null,"warm"]
[null,"cold",3,"жарко",null,null,"cold",3,"жарко","nice",null,null,null,"nice",null,null,null,null,"cold",null,3,"жарко",null,null,"nice",null,"[niːd]","потребувати"]
[null,"weather",4,"погода",null,null,"weather",4,"погода","hot",null,null,null,"hot",null,null,null,null,"weather",null,4,"погода",null,null,"hot",null," [ˏdeərɪˊprɔdʌkts] ","молокопродукти"]
[null,"hot",5,"тепло",null,null,"hot",5,"тепло","evening",null,null,null,"evening",null,null,null,null,"hot",null,5,"тепло",null,null,"evening",null,"[ˈnauədeɪz]","у наші дні"]
[null,"evening",6,"холодний",null,null,"evening",6,"холодний","cold",null,null,null,"cold",null,null,null,null,"evening",null,6,"холодний",null,null,"cold",null,"[peɪ]","платити"]
[null,0,7,0,null,null,0,7,0,0,null,null,null,0,null,null,null,null,null,null,7,null,null,null,null,null,"[miːn]","мати на увазі"]
[null,0,8,0,null,null,0,8,0,0,null,null,null,0,null,null,null,null,null,null,8,null,null,null,null,null,"[kriːm]","крем"]
[null,0,9,0,null,null,0,9,0,0,null,null,null,0,null,null,null,null,null,null,9,null,null,null,null,null,"[ʧuːz]","крем"]
[null,0,10,0,null,null,0,10,0,0,null,null,null,0,null,null,null,null,null,null,10,null,null,null,null,null,"[ˈegzɪt]","вихід"]
[null,0,11,0,null,null,0,11,0,0,null,null,null,0,null,null,null,null,null,null,11,null,null,null,null,null,"[juːz]","використовувати"]
[]
[{"$f":"R1","v":"Form 6"},null,null,null,null,{"$f":"R1","v":"Form 6"},null,null,null,{"$f":"R1","v":"Form 6"},null,null,null,{"$f":"R1","v":"Form 6"}]
["Name  _________________________              Date_______",null,null,null,null,"Name  _________________________              Date_______",null,null,null,"Name  _________________________              Date_______",null,null,null,"Name  _________________________              Date_______"]
[null,null,null,null,null,null,null,null,null,null,null,null,null,null,null,null,null,null,"weather"]
[null,{"$f":"S4","v":"nice"},1,{"$f":"V4","v":"вечір"},null,null,{"$f":"B19","v":"nice"},1,{"$f":"D19","v":"вечір"},{"$f":"J4","v":"weather"},null,null,null,{"$f":"J19","v":"weather"},null,null,null,null,"warm"]
[null,{"$f":"S5","v":"warm"},2,{"$f":"V5","v":"гарно"},null,null,{"$f":"B20","v":"warm"},2,{"$f":"D20","v":"гарно"},{"$f":"J5","v":"warm"},null,null,null,{"$f":"J20","v":"warm"},null,null,null,null,"nice"]
[null,"cold",3,"жарко",null,null,"cold",3,"жарко","nice",null,null,null,"nice",null,null,null,null,"hot"]
[null,"weather",4,"погода",null,null,"weather",4,"погода","hot",null,null,null,"hot",null,null,null,null,"evening"]
[null,"hot",5,"тепло",null,null,"hot",5,"тепло","evening",null,null,null,"evening",null,null,null,null,"cold"]
[null,"evening",6,"холодний",null,null,"evening",6,"холодний","cold",null,null,null,"cold"]
[null,0,7,0,null,null,0,7,0,0,null,null,null,0]
[null,0,8,0,null,null,0,8,0,0,null,null,null,0]
[null,0,9,0,null,null,0,9,0,0,null,null,null,0]
[null,0,10,0,null,null,0,10,0,0,null,null,null,0]
[null,0,11,0,null,null,0,11,0,0,null,null,null,0]
[]
[{"$f":"R1","v":"Form 6"},null,null,null,null,{"$f":"R1","v":"Form 6"},null,null,null,{"$f":"R1","v":"Form 6"},null,null,null,{"$f":"R1","v":"Form 6"}]
["Name  _________________________              Date_______",null,null,null,null,"Name  _________________________              Date_______",null,null,null,"Name  _________________________              Date_______",null,null,null,"Name  _________________________              Date_______"]
[]
[null,{"$f":"B19","v":"nice"},1,{"$f":"D19","v":"вечір"},null,null,{"$f":"B34","v":"nice"},1,{"$f":"D34","v":"вечір"},{"$f":"J19","v":"weather"},null,null,null,{"$f":"J34","v":"weather"},null,null,null,null,null,null,"why","[wɛə]","як"]
[null,{"$f":"B20","v":"warm"},2,{"$f":"D20","v":"гарно"},null,null,{"$f":"B35","v":"warm"},2,{"$f":"D35","v":"гарно"},{"$f":"J20","v":"warm"},null,null,null,{"$f":"J35","v":"warm"},null,null,null,null,null,null,"whose","[wen]","що, який "]
[null,"cold",3,"жарко",null,null,"cold",3,"жарко","nice",null,null,null,"nice",null,null,null,null,null,null,"who","[huːz]","чому"]
[null,"weather",4,"погода",null,null,"weather",4,"погода","hot",null,null,null,"hot",null,null,null,null,null,null,"where","[huːː ]","чий"]
[null,"hot",5,"тепло",null,null,"hot",5,"тепло","evening",null,null,null,"evening",null,null,null,null,null,null,"when","[wɔt]","хто"]
[null,"evening",6,"холодний",null,null,"evening",6,"холодний","cold",null,null,null,"cold",null,null,null,null,null,null,"what","[hau]","коли"]
[null,0,7,0,null,null,0,7,0,0,null,null,null,0,null,null,null,null,null,null,"how many","[waɪ]","де, куди"]
[null,0,8,0,null,null,0,8,0,0,null,null,null,0,null,null,null,null,null,null,"how","[hau] [ˈmenɪ]"," скільки ( як бгато)"]
[null,0,9,0,null,null,0,9,0,0,null,null,null,0]
[null,0,10,0,null,null,0,10,0,0,null,null,null,0]
[null,0,11,0,null,null,0,11,0,0,null,null,null,0]
[]
[{"$f":"R1","v":"Form 6"},null,null,null,null,null,null,null,null,{"$f":"R1","v":"Form 6"}]
["Name  _________________________              Date_______",null,null,null,null,null,null,null,null,"Name  _________________________              Date_______"]
[]
[null,{"$f":"B34","v":"nice"},1,{"$f":"D34","v":"вечір"},null,null,{"$f":"B40","v":0},7,{"$f":"D40","v":0},{"$f":"J34","v":"weather"},null,null,null,{"$f":"J40","v":0}]
[null,{"$f":"B35","v":"warm"},2,{"$f":"D35","v":"гарно"},null,null,{"$f":"B41","v":0},8,{"$f":"D41","v":0},{"$f":"J35","v":"warm"},null,null,null,{"$f":"J41","v":0}]
[null,"cold",3,"жарко",null,null,{"$f":"B42","v":0},9,{"$f":"D42","v":0},"nice",null,null,null,{"$f":"J42","v":0}]
[null,"weather",4,"погода",null,null,{"$f":"B43","v":0},10,{"$f":"D43","v":0},"hot",null,null,null,{"$f":"J43","v":0}]
[null,"hot",5,"тепло",null,null,{"$f":"B44","v":0},11,{"$f":"D44","v":0},"evening",null,null,null,{"$f":"J44","v":0}]
[null,"evening",6,"холодний",null,null,null,null,null,"cold"]
[]
[]
[]
[null,7]
[]
[]
[null,null,1,"як"]
[null,null,2,"що, який ",null,null,null,1,"wife"]
[null,null,3,"чому",null,null,null,2,"to laugh"]
[null,null,4,"чий",null,null,null,3,"question"]
[null,null,5,"хто",null,null,null,4,"plump"]
[null,null,6,"коли",null,null,null,5,"pilot"]
[null,null,7,"де, куди",null,null,null,6,"niece"]
[null,null,8," скільки ( як бгато)",null,null,null,7,"curious"]
[null,null,null,null,null,null,null,8,"boring"]
[null,null,null,null,null,null,null,9,"bald"]
[null,null,1,"як",null,null,null,10,"aunt"]
[null,null,2,"що, який "]
[null,null,3,"чому",null,null,null,1,"wife"]
[null,null,4,"чий",null,null,null,2,"to laugh"]
[null,null,5,"хто",null,null,null,3,"question"]
[null,null,6,"коли",null,null,null,4,"plump"]
[null,null,7,"де, куди",null,null,null,5,"pilot"]
[null,null,8," скільки ( як бгато)",null,null,null,6,"niece"]
[null,null,null,null,null,null,null,7,"curious"]
[null,null,null,null,null,null,null,8,"boring"]
[null,null,null,null,null,null,null,9,"bald"]
[null,null,null,null,null,null,null,10,"aunt"]

{"sheet":"Лист38 (9)","index":50,"n_rows":44,"n_cols":17,"rows_kept":44,"cut":false,"hidden":false,"merged":[]}
[{"$f":"J1","v":1},{"$f":"K1","v":"where"},{"$f":"L1","v":"вее"},{"$f":"M1","v":"де, куди"},null,{"$f":"A1","v":1},{"$f":"B1","v":"where"},{"$f":"C1","v":"вее"},{"$f":"D1","v":"де, куди"},1,"where","вее","де, куди"]
[{"$f":"J2","v":2},"there","зее","там, туди",null,{"$f":"A2","v":2},"there","зее","там, туди",2,"there","зее","там, туди"]
[3,"want","вонт","хотіти",null,3,"want","вонт","хотіти",3,"want","вонт","хотіти"]
[4,"comfortable","камфетбл","комфортабельний, зручний",null,4,"comfortable","камфетбл","комфортабельний, зручний",4,"comfortable","камфетбл","комфортабельний, зручний",null,null,null,"weather"]
[5,"sea","сі:","море",null,5,{"$f":"B5","v":"sea"},"сі:","море",5,"sea","сі:","море",null,null,null,"warm"]
[6,{"$f":"K6","v":"see"},"сі:","бачити",null,6,"see","сі:","бачити",6,"see","сі:","бачити",null,null,null,"nice"]
[7,"night","найт","ніч",null,7,"night","найт","ніч",7,"night","найт","ніч",null,null,null,"hot"]
[8,0,0,0,null,8,0,0,0,8,null,null,null,null,null,null,"evening"]
[null,null,null,null,null,null,null,null,null,null,null,null,null,null,null,null,"cold"]
[1,{"$f":"B1","v":"where"},"вее","де, куди",null,1,{"$f":"B10","v":"where"},{"$f":"C10","v":"вее"},{"$f":"D10","v":"де, куди"}]
[2,"there","зее","там, туди",null,2,{"$f":"B11","v":"there"},"зее","там, туди"]
[3,"want","вонт","хотіти",null,3,"want","вонт","хотіти"]
[4,"comfortable","камфетбл","комфортабельний, зручний",null,4,"comfortable","камфетбл","комфортабельний, зручний"]
[5,"sea","сі:","море",null,5,"sea","сі:","море"]
[6,"see","сі:","бачити",null,6,"see","сі:","бачити"]
[7,"night","найт","ніч",null,7,"night","найт","ніч"]
[8,0,0,0,null,8,0,0,0]
[]
[1,{"$f":"B10","v":"where"},"вее","де, куди",null,1,{"$f":"B19","v":"where"},{"$f":"C19","v":"вее"},{"$f":"D19","v":"де, куди"}]
[2,"there","зее","там, туди",null,2,{"$f":"B20","v":"there"},"зее","там, туди"]
[3,"want","вонт","хотіти",null,3,"want","вонт","хотіти"]
[4,"comfortable","камфетбл","комфортабельний, зручний",null,4,"comfortable","камфетбл","комфортабельний, зручний"]
[5,"sea","сі:","море",null,5,"sea","сі:","море"]
[6,"see","сі:","бачити",null,6,"see","сі:","бачити"]
[7,"night","найт","ніч",null,7,"night","найт","ніч"]
[8,0,0,0,null,8,0,0,0]
[]
[1,{"$f":"B19","v":"where"},"вее","де, куди",null,1,{"$f":"B28","v":"where"},{"$f":"C28","v":"вее"},{"$f":"D28","v":"де, куди"}]
[2,"there","зее","там, туди",null,2,{"$f":"B29","v":"there"},"зее","там, туди"]
[3,"want","вонт","хотіти",null,3,"want","вонт","хотіти"]
[4,"comfortable","камфетбл","комфортабельний, зручний",null,4,"comfortable","камфетбл","комфортабельний, зручний"]
[5,"sea","сі:","море",null,5,"sea","сі:","море"]
[6,"see","сі:","бачити",null,6,"see","сі:","бачити"]
[7,"night","найт","ніч",null,7,"night","найт","ніч"]
[8,0,0,0,null,8,0,0,0]
[]
[1,{"$f":"B28","v":"where"},"вее","де, куди",null,1,{"$f":"B37","v":"where"},{"$f":"C37","v":"вее"},{"$f":"D37","v":"де, куди"}]
[2,"there","зее","там, туди",null,2,{"$f":"B38","v":"there"},"зее","там, туди"]
[3,"want","вонт","хотіти",null,3,"want","вонт","хотіти"]
[4,"comfortable","камфетбл","комфортабельний, зручний",null,4,"comfortable","камфетбл","комфортабельний, зручний"]
[5,"sea","сі:","море",null,5,"sea","сі:","море"]
[6,"see","сі:","бачити",null,6,"see","сі:","бачити"]
[7,"night","найт","ніч",null,7,"night","найт","ніч"]
[8,0,0,0,null,8,0,0,0]

{"sheet":"самос (5)","index":51,"n_rows":82,"n_cols":26,"rows_kept":82,"cut":false,"hidden":false,"merged":[]}
[{"$f":"R1","v":"Form 6"},null,null,null,null,{"$f":"R1","v":"Form 6"},null,null,null,{"$f":"R1","v":"Form 6"},null,null,null,{"$f":"R1","v":"Form 6"},null,null,null,"Form 6"]
["Name  _________________________              Date_______",null,null,null,null,"Name  _________________________              Date_______",null,null,null,"Name  _________________________              Date_______",null,null,null,"Name  _________________________              Date_______"]
[]
[null,{"$f":"S4","v":"where"},1,{"$f":"V4","v":"бачити"},null,null,{"$f":"S4","v":"where"},1,{"$f":"V4","v":"бачити"},{"$f":"S18","v":"where"},null,null,null,{"$f":"J4","v":"where"},null,null,null,null,"where",null,1,"бачити"]
[null,"there",2,"де, куди",null,null,{"$f":"S5","v":"there"},2,{"$f":"V5","v":"де, куди"},{"$f":"S19","v":"want"},null,null,null,{"$f":"J5","v":"want"},null,null,null,null,"there",null,2,"де, куди"]
[null,"want",3,"комфортабельний, зручний",null,null,"want",3,"комфортабельний, зручний","there",null,null,null,"there",null,null,null,null,"want",null,3,"комфортабельний, зручний",null,null,null,"where"]
[null,"comfortable",4,"море",null,null,"comfortable",4,"море","see",null,null,null,"see",null,null,null,null,"comfortable",null,4,"море",null,null,null,"want"]
[null,"sea",5,"ніч",null,null,"sea",5,"ніч","sea",null,null,null,"sea",null,null,null,null,"sea",null,5,"ніч",null,null,null,"there"]
[null,"see",6,"там, туди",null,null,"see",6,"там, туди","night",null,null,null,"night",null,null,null,null,"see",null,6,"там, туди",null,null,null,"see"]
[null,"night",7,"хотіти",null,null,"night",7,"хотіти","comfortable",null,null,null,"comfortable",null,null,null,null,"night",null,7,"хотіти",null,null,null,"sea"]
[null,0,8,0,null,null,0,8,0,0,null,null,null,0,null,null,null,null,null,null,8,null,null,null,null,"night"]
[null,0,9,0,null,null,0,9,0,"choose",null,null,null,"choose",null,null,null,null,null,null,9,null,null,null,null,"comfortable"]
[null,0,10,0,null,null,0,10,0,0,null,null,null,0,null,null,null,null,null,null,10]
[null,0,11,0,null,null,0,11,0,0,null,null,null,0,null,null,null,null,null,null,11]
[]
[{"$f":"R1","v":"Form 6"},null,null,null,null,{"$f":"R1","v":"Form 6"},null,null,null,{"$f":"R1","v":"Form 6"},null,null,null,{"$f":"R1","v":"Form 6"}]
["Name  _________________________              Date_______",null,null,null,null,"Name  _________________________              Date_______",null,null,null,"Name  _________________________              Date_______",null,null,null,"Name  _________________________              Date_______"]
[null,null,null,null,null,null,null,null,null,null,null,null,null,null,null,null,null,null,"where"]
[null,{"$f":"S4","v":"where"},1,{"$f":"V4","v":"бачити"},null,null,{"$f":"B19","v":"where"},1,{"$f":"D19","v":"бачити"},{"$f":"J4","v":"where"},null,null,null,{"$f":"J19","v":"where"},null,null,null,null,"want"]
[null,{"$f":"S5","v":"there"},2,{"$f":"V5","v":"де, куди"},null,null,{"$f":"B20","v":"there"},2,{"$f":"D20","v":"де, куди"},{"$f":"J5","v":"want"},null,null,null,{"$f":"J20","v":"want"},null,null,null,null,"there"]
[null,"want",3,"комфортабельний, зручний",null,null,"want",3,"комфортабельний, зручний","there",null,null,null,"there",null,null,null,null,"see"]
[null,"comfortable",4,"море",null,null,"comfortable",4,"море","see",null,null,null,"see",null,null,null,null,"sea"]
[null,"sea",5,"ніч",null,null,"sea",5,"ніч","sea",null,null,null,"sea",null,null,null,null,"night"]
[null,"see",6,"там, туди",null,null,"see",6,"там, туди","night",null,null,null,"night",null,null,null,null,"comfortable"]
[null,"night",7,"хотіти",null,null,"night",7,"хотіти","comfortable",null,null,null,"comfortable"]
[null,0,8,0,null,null,0,8,0,0,null,null,null,0,null,null,null,null,"choose"]
[null,0,9,0,null,null,0,9,0,"choose",null,null,null,"choose"]
[null,0,10,0,null,null,0,10,0,0,null,null,null,0]
[null,0,11,0,null,null,0,11,0,0,null,null,null,0]
[]
[{"$f":"R1","v":"Form 6"},null,null,null,null,{"$f":"R1","v":"Form 6"},null,null,null,{"$f":"R1","v":"Form 6"},null,null,null,{"$f":"R1","v":"Form 6"}]
["Name  _________________________              Date_______",null,null,null,null,"Name  _________________________              Date_______",null,null,null,"Name  _________________________              Date_______",null,null,null,"Name  _________________________              Date_______"]
[]
[null,{"$f":"B19","v":"where"},1,{"$f":"D19","v":"бачити"},null,null,{"$f":"B34","v":"where"},1,{"$f":"D34","v":"бачити"},{"$f":"J19","v":"where"},null,null,null,{"$f":"J34","v":"where"},null,null,null,null,null,null,"why","[wɛə]","як"]
[null,{"$f":"B20","v":"there"},2,{"$f":"D20","v":"де, куди"},null,null,{"$f":"B35","v":"there"},2,{"$f":"D35","v":"де, куди"},{"$f":"J20","v":"want"},null,null,null,{"$f":"J35","v":"want"},null,null,null,null,null,null,"whose","[wen]","що, який "]
[null,"want",3,"комфортабельний, зручний",null,null,"want",3,"комфортабельний, зручний","there",null,null,null,"there",null,null,null,null,null,null,"who","[huːz]","чому"]
[null,"comfortable",4,"море",null,null,"comfortable",4,"море","see",null,null,null,"see",null,null,null,null,null,null,"where","[huːː ]","чий"]
[null,"sea",5,"ніч",null,null,"sea",5,"ніч","sea",null,null,null,"sea",null,null,null,null,null,null,"when","[wɔt]","хто"]
[null,"see",6,"там, туди",null,null,"see",6,"там, туди","night",null,null,null,"night",null,null,null,null,null,null,"what","[hau]","коли"]
[null,"night",7,"хотіти",null,null,"night",7,"хотіти","comfortable",null,null,null,"comfortable",null,null,null,null,null,null,"how many","[waɪ]","де, куди"]
[null,0,8,0,null,null,0,8,0,0,null,null,null,0,null,null,null,null,null,null,"how","[hau] [ˈmenɪ]"," скільки ( як бгато)"]
[null,0,9,0,null,null,0,9,0,"choose",null,null,null,"choose"]
[null,0,10,0,null,null,0,10,0,0,null,null,null,0]
[null,0,11,0,null,null,0,11,0,0,null,null,null,0]
[]
[{"$f":"R1","v":"Form 6"},null,null,null,null,null,null,null,null,{"$f":"R1","v":"Form 6"}]
["Name  _________________________              Date_______",null,null,null,null,null,null,null,null,"Name  _________________________              Date_______"]
[]
[null,{"$f":"B34","v":"where"},1,{"$f":"D34","v":"бачити"},null,null,{"$f":"B40","v":"night"},7,{"$f":"D40","v":"хотіти"},{"$f":"J34","v":"where"},null,null,null,{"$f":"J40","v":"comfortable"}]
[null,{"$f":"B35","v":"there"},2,{"$f":"D35","v":"де, куди"},null,null,{"$f":"B41","v":0},8,{"$f":"D41","v":0},{"$f":"J35","v":"want"},null,null,null,{"$f":"J41","v":0}]
[null,"want",3,"комфортабельний, зручний",null,null,{"$f":"B42","v":0},9,{"$f":"D42","v":0},"there",null,null,null,{"$f":"J42","v":"choose"}]
[null,"comfortable",4,"море",null,null,{"$f":"B43","v":0},10,{"$f":"D43","v":0},"see",null,null,null,{"$f":"J43","v":0}]
[null,"sea",5,"ніч",null,null,{"$f":"B44","v":0},11,{"$f":"D44","v":0},"sea",null,null,null,{"$f":"J44","v":0}]
[null,"see",6,"там, туди",null,null,null,null,null,"night"]
[]
[]
[]
[null,7]
[]
[]
[null,null,1,"як"]
[null,null,2,"що, який ",null,null,null,1,"wife"]
[null,null,3,"чому",null,null,null,2,"to laugh"]
[null,null,4,"чий",null,null,null,3,"question"]
[null,null,5,"хто",null,null,null,4,"plump"]
[null,null,6,"коли",null,null,null,5,"pilot"]
[null,null,7,"де, куди",null,null,null,6,"niece"]
[null,null,8," скільки ( як бгато)",null,null,null,7,"curious"]
[null,null,null,null,null,null,null,8,"boring"]
[null,null,null,null,null,null,null,9,"bald"]
[null,null,1,"як",null,null,null,10,"aunt"]
[null,null,2,"що, який "]
[null,null,3,"чому",null,null,null,1,"wife"]
[null,null,4,"чий",null,null,null,2,"to laugh"]
[null,null,5,"хто",null,null,null,3,"question"]
[null,null,6,"коли",null,null,null,4,"plump"]
[null,null,7,"де, куди",null,null,null,5,"pilot"]
[null,null,8," скільки ( як бгато)",null,null,null,6,"niece"]
[null,null,null,null,null,null,null,7,"curious"]
[null,null,null,null,null,null,null,8,"boring"]
[null,null,null,null,null,null,null,9,"bald"]
[null,null,null,null,null,null,null,10,"aunt"]

{"sheet":"Лист41","index":52,"n_rows":15,"n_cols":10,"rows_kept":15,"cut":false,"hidden":false,"merged":[]}
["where",null,null,"where","there","want","comfortable","sea","see","night"]
["there"]
["want"]
["comfortable"]
["sea"]
["see"]
["night",null,"де, куди","там, туди","хотіти","комфортабельний, зручний","море","бачити","ніч"]
[]
["де, куди"]
["там, туди"]
["хотіти"]
["комфортабельний, зручний"]
["море"]
["бачити"]
["ніч"]

{"sheet":"Лист38 (10)","index":53,"n_rows":44,"n_cols":17,"rows_kept":44,"cut":false,"hidden":false,"merged":[]}
[{"$f":"J1","v":1},{"$f":"K1","v":"tent"},{"$f":"L1","v":"тент"},{"$f":"M1","v":"палатка"},null,{"$f":"A1","v":1},{"$f":"B1","v":"tent"},{"$f":"C1","v":"тент"},{"$f":"D1","v":"палатка"},1,"tent","тент","палатка"]
[{"$f":"J2","v":2},"to sunbathe","санбейз","засмагати",null,{"$f":"A2","v":2},"to sunbathe","санбейз","засмагати",2,"to sunbathe","санбейз","засмагати"]
[3,"to play badminton","плей бедмінтон","грати в бадмінтон",null,3,"to play badminton","плей бедмінтон","грати в бадмінтон",3,"to play badminton","плей бедмінтон","грати в бадмінтон"]
[4,"to climb a mountain","клайм е маунтін","лізти на гору",null,4,"to climb a mountain","клайм е маунтін","лізти на гору",4,"to climb a mountain","клайм е маунтін","лізти на гору",null,null,null,"weather"]
[5,"to go fishing","ґеу фішін","іти рибалити",null,5,{"$f":"B5","v":"to go fishing"},"ґеу фішін","іти рибалити",5,"to go fishing","ґеу фішін","іти рибалити",null,null,null,"warm"]
[6,{"$f":"K6","v":"to boat"},"беут","плавати на човні",null,6,"to boat","беут","плавати на човні",6,"to boat","беут","плавати на човні",null,null,null,"nice"]
[7,0,0,0,null,7,0,0,0,7,null,null,null,null,null,null,"hot"]
[8,0,0,0,null,8,0,0,0,8,null,null,null,null,null,null,"evening"]
[null,null,null,null,null,null,null,null,null,null,null,null,null,null,null,null,"cold"]
[1,{"$f":"B1","v":"tent"},"тент","палатка",null,1,{"$f":"B10","v":"tent"},{"$f":"C10","v":"тент"},{"$f":"D10","v":"палатка"}]
[2,"to sunbathe","санбейз","засмагати",null,2,{"$f":"B11","v":"to sunbathe"},"санбейз","засмагати"]
[3,"to play badminton","плей бедмінтон","грати в бадмінтон",null,3,"to play badminton","плей бедмінтон","грати в бадмінтон"]
[4,"to climb a mountain","клайм е маунтін","лізти на гору",null,4,"to climb a mountain","клайм е маунтін","лізти на гору"]
[5,"to go fishing","ґеу фішін","іти рибалити",null,5,"to go fishing","ґеу фішін","іти рибалити"]
[6,"to boat","беут","плавати на човні",null,6,"to boat","беут","плавати на човні"]
[7,0,0,0,null,7,0,0,0]
[8,0,0,0,null,8,0,0,0]
[]
[1,{"$f":"B10","v":"tent"},"тент","палатка",null,1,{"$f":"B19","v":"tent"},{"$f":"C19","v":"тент"},{"$f":"D19","v":"палатка"}]
[2,"to sunbathe","санбейз","засмагати",null,2,{"$f":"B20","v":"to sunbathe"},"санбейз","засмагати"]
[3,"to play badminton","плей бедмінтон","грати в бадмінтон",null,3,"to play badminton","плей бедмінтон","грати в бадмінтон"]
[4,"to climb a mountain","клайм е маунтін","лізти на гору",null,4,"to climb a mountain","клайм е маунтін","лізти на гору"]
[5,"to go fishing","ґеу фішін","іти рибалити",null,5,"to go fishing","ґеу фішін","іти рибалити"]
[6,"to boat","беут","плавати на човні",null,6,"to boat","беут","плавати на човні"]
[7,0,0,0,null,7,0,0,0]
[8,0,0,0,null,8,0,0,0]
[]
[1,{"$f":"B19","v":"tent"},"тент","палатка",null,1,{"$f":"B28","v":"tent"},{"$f":"C28","v":"тент"},{"$f":"D28","v":"палатка"}]
[2,"to sunbathe","санбейз","засмагати",null,2,{"$f":"B29","v":"to sunbathe"},"санбейз","засмагати"]
[3,"to play badminton","плей бедмінтон","грати в бадмінтон",null,3,"to play badminton","плей бедмінтон","грати в бадмінтон"]
[4,"to climb a mountain","клайм е маунтін","лізти на гору",null,4,"to climb a mountain","клайм е маунтін","лізти на гору"]
[5,"to go fishing","ґеу фішін","іти рибалити",null,5,"to go fishing","ґеу фішін","іти рибалити"]
[6,"to boat","беут","плавати на човні",null,6,"to boat","беут","плавати на човні"]
[7,0,0,0,null,7,0,0,0]
[8,0,0,0,null,8,0,0,0]
[]
[1,{"$f":"B28","v":"tent"},"тент","палатка",null,1,{"$f":"B37","v":"tent"},{"$f":"C37","v":"тент"},{"$f":"D37","v":"палатка"}]
[2,"to sunbathe","санбейз","засмагати",null,2,{"$f":"B38","v":"to sunbathe"},"санбейз","засмагати"]
[3,"to play badminton","плей бедмінтон","грати в бадмінтон",null,3,"to play badminton","плей бедмінтон","грати в бадмінтон"]
[4,"to climb a mountain","клайм е маунтін","лізти на гору",null,4,"to climb a mountain","клайм е маунтін","лізти на гору"]
[5,"to go fishing","ґеу фішін","іти рибалити",null,5,"to go fishing","ґеу фішін","іти рибалити"]
[6,"to boat","беут","плавати на човні",null,6,"to boat","беут","плавати на човні"]
[7,0,0,0,null,7,0,0,0]
[8,0,0,0,null,8,0,0,0]

{"sheet":"самос (6)","index":54,"n_rows":82,"n_cols":26,"rows_kept":82,"cut":false,"hidden":false,"merged":[]}
[{"$f":"R1","v":"Form 6"},null,null,null,null,{"$f":"R1","v":"Form 6"},null,null,null,{"$f":"R1","v":"Form 6"},null,null,null,{"$f":"R1","v":"Form 6"},null,null,null,"Form 6"]
["Name  _________________________              Date_______",null,null,null,null,"Name  _________________________              Date_______",null,null,null,"Name  _________________________              Date_______",null,null,null,"Name  _________________________              Date_______"]
[]
[null,{"$f":"S4","v":"to sunbathe"},1,{"$f":"V4","v":"грати в бадмінтон"},null,null,{"$f":"S4","v":"to sunbathe"},1,{"$f":"V4","v":"грати в бадмінтон"},{"$f":"S18","v":"tent"},null,null,null,{"$f":"J4","v":"tent"},null,null,null,null,"to sunbathe",null,1,"грати в бадмінтон"]
[null,"to play badminton",2,"засмагати",null,null,{"$f":"S5","v":"to play badminton"},2,{"$f":"V5","v":"засмагати"},{"$f":"S19","v":"to boat"},null,null,null,{"$f":"J5","v":"to boat"},null,null,null,null,"to play badminton",null,2,"засмагати"]
[null,"to go fishing",3,"іти рибалити",null,null,"to go fishing",3,"іти рибалити","to climb a mountain",null,null,null,"to climb a mountain",null,null,null,null,"to go fishing",null,3,"іти рибалити",null,null,null,"грати в бадмінтон"]
[null,"to climb a mountain",4,"лізти на гору",null,null,"to climb a mountain",4,"лізти на гору","to go fishing",null,null,null,"to go fishing",null,null,null,null,"to climb a mountain",null,4,"лізти на гору",null,null,null,"засмагати"]
[null,"to boat",5,"палатка",null,null,"to boat",5,"палатка","to play badminton",null,null,null,"to play badminton",null,null,null,null,"to boat",null,5,"палатка",null,null,null,"іти рибалити"]
[null,"tent",6,"плавати на човні",null,null,"tent",6,"плавати на човні","to sunbathe",null,null,null,"to sunbathe",null,null,null,null,"tent",null,6,"плавати на човні",null,null,null,"лізти на гору"]
[null,0,7,0,null,null,0,7,0,0,null,null,null,0,null,null,null,null,null,null,7,null,null,null,null,"палатка"]
[null,0,8,0,null,null,0,8,0,0,null,null,null,0,null,null,null,null,null,null,8,null,null,null,null,"плавати на човні"]
[null,0,9,0,null,null,0,9,0,"choose",null,null,null,"choose",null,null,null,null,null,null,9,null,null,null,null,"comfortable"]
[null,0,10,0,null,null,0,10,0,0,null,null,null,0,null,null,null,null,null,null,10]
[null,0,11,0,null,null,0,11,0,0,null,null,null,0,null,null,null,null,null,null,11]
[]
[{"$f":"R1","v":"Form 6"},null,null,null,null,{"$f":"R1","v":"Form 6"},null,null,null,{"$f":"R1","v":"Form 6"},null,null,null,{"$f":"R1","v":"Form 6"}]
["Name  _________________________              Date_______",null,null,null,null,"Name  _________________________              Date_______",null,null,null,"Name  _________________________              Date_______",null,null,null,"Name  _________________________              Date_______"]
[null,null,null,null,null,null,null,null,null,null,null,null,null,null,null,null,null,null,"tent"]
[null,{"$f":"S4","v":"to sunbathe"},1,{"$f":"V4","v":"грати в бадмінтон"},null,null,{"$f":"B19","v":"to sunbathe"},1,{"$f":"D19","v":"грати в бадмінтон"},{"$f":"J4","v":"tent"},null,null,null,{"$f":"J19","v":"tent"},null,null,null,null,"to boat"]
[null,{"$f":"S5","v":"to play badminton"},2,{"$f":"V5","v":"засмагати"},null,null,{"$f":"B20","v":"to play badminton"},2,{"$f":"D20","v":"засмагати"},{"$f":"J5","v":"to boat"},null,null,null,{"$f":"J20","v":"to boat"},null,null,null,null,"to climb a mountain",null,null,null,null,"tent"]
[null,"to go fishing",3,"іти рибалити",null,null,"to go fishing",3,"іти рибалити","to climb a mountain",null,null,null,"to climb a mountain",null,null,null,null,"to go fishing",null,null,null,null,"to boat"]
[null,"to climb a mountain",4,"лізти на гору",null,null,"to climb a mountain",4,"лізти на гору","to go fishing",null,null,null,"to go fishing",null,null,null,null,"to play badminton",null,null,null,null,"to climb a mountain"]
[null,"to boat",5,"палатка",null,null,"to boat",5,"палатка","to play badminton",null,null,null,"to play badminton",null,null,null,null,"to sunbathe",null,null,null,null,"to go fishing"]
[null,"tent",6,"плавати на човні",null,null,"tent",6,"плавати на човні","to sunbathe",null,null,null,"to sunbathe",null,null,null,null,null,null,null,null,null,"to play badminton"]
[null,0,7,0,null,null,0,7,0,0,null,null,null,0,null,null,null,null,null,null,null,null,null,"to sunbathe"]
[null,0,8,0,null,null,0,8,0,0,null,null,null,0,null,null,null,null,"choose"]
[null,0,9,0,null,null,0,9,0,"choose",null,null,null,"choose"]
[null,0,10,0,null,null,0,10,0,0,null,null,null,0]
[null,0,11,0,null,null,0,11,0,0,null,null,null,0]
[]
[{"$f":"R1","v":"Form 6"},null,null,null,null,{"$f":"R1","v":"Form 6"},null,null,null,{"$f":"R1","v":"Form 6"},null,null,null,{"$f":"R1","v":"Form 6"}]
["Name  _________________________              Date_______",null,null,null,null,"Name  _________________________              Date_______",null,null,null,"Name  _________________________              Date_______",null,null,null,"Name  _________________________              Date_______"]
[]
[null,{"$f":"B19","v":"to sunbathe"},1,{"$f":"D19","v":"грати в бадмінтон"},null,null,{"$f":"B34","v":"to sunbathe"},1,{"$f":"D34","v":"грати в бадмінтон"},{"$f":"J19","v":"tent"},null,null,null,{"$f":"J34","v":"tent"},null,null,null,null,null,null,"why","[wɛə]","як"]
[null,{"$f":"B20","v":"to play badminton"},2,{"$f":"D20","v":"засмагати"},null,null,{"$f":"B35","v":"to play badminton"},2,{"$f":"D35","v":"засмагати"},{"$f":"J20","v":"to boat"},null,null,null,{"$f":"J35","v":"to boat"},null,null,null,null,null,null,"whose","[wen]","що, який "]
[null,"to go fishing",3,"іти рибалити",null,null,"to go fishing",3,"іти рибалити","to climb a mountain",null,null,null,"to climb a mountain",null,null,null,null,null,null,"who","[huːz]","чому"]
[null,"to climb a mountain",4,"лізти на гору",null,null,"to climb a mountain",4,"лізти на гору","to go fishing",null,null,null,"to go fishing",null,null,null,null,null,null,"where","[huːː ]","чий"]
[null,"to boat",5,"палатка",null,null,"to boat",5,"палатка","to play badminton",null,null,null,"to play badminton",null,null,null,null,null,null,"when","[wɔt]","хто"]
[null,"tent",6,"плавати на човні",null,null,"tent",6,"плавати на човні","to sunbathe",null,null,null,"to sunbathe",null,null,null,null,null,null,"what","[hau]","коли"]
[null,0,7,0,null,null,0,7,0,0,null,null,null,0,null,null,null,null,null,null,"how many","[waɪ]","де, куди"]
[null,0,8,0,null,null,0,8,0,0,null,null,null,0,null,null,null,null,null,null,"how","[hau] [ˈmenɪ]"," скільки ( як бгато)"]
[null,0,9,0,null,null,0,9,0,"choose",null,null,null,"choose"]
[null,0,10,0,null,null,0,10,0,0,null,null,null,0]
[null,0,11,0,null,null,0,11,0,0,null,null,null,0]
[]
[{"$f":"R1","v":"Form 6"},null,null,null,null,null,null,null,null,{"$f":"R1","v":"Form 6"}]
["Name  _________________________              Date_______",null,null,null,null,null,null,null,null,"Name  _________________________              Date_______"]
[]
[null,{"$f":"B34","v":"to sunbathe"},1,{"$f":"D34","v":"грати в бадмінтон"},null,null,{"$f":"B40","v":0},7,{"$f":"D40","v":0},{"$f":"J34","v":"tent"},null,null,null,{"$f":"J40","v":0}]
[null,{"$f":"B35","v":"to play badminton"},2,{"$f":"D35","v":"засмагати"},null,null,{"$f":"B41","v":0},8,{"$f":"D41","v":0},{"$f":"J35","v":"to boat"},null,null,null,{"$f":"J41","v":0}]
[null,"to go fishing",3,"іти рибалити",null,null,{"$f":"B42","v":0},9,{"$f":"D42","v":0},"to climb a mountain",null,null,null,{"$f":"J42","v":"choose"}]
[null,"to climb a mountain",4,"лізти на гору",null,null,{"$f":"B43","v":0},10,{"$f":"D43","v":0},"to go fishing",null,null,null,{"$f":"J43","v":0}]
[null,"to boat",5,"палатка",null,null,{"$f":"B44","v":0},11,{"$f":"D44","v":0},"to play badminton",null,null,null,{"$f":"J44","v":0}]
[null,"tent",6,"плавати на човні",null,null,null,null,null,"to sunbathe"]
[]
[]
[]
[null,7]
[]
[]
[null,null,1,"як"]
[null,null,2,"що, який ",null,null,null,1,"wife"]
[null,null,3,"чому",null,null,null,2,"to laugh"]
[null,null,4,"чий",null,null,null,3,"question"]
[null,null,5,"хто",null,null,null,4,"plump"]
[null,null,6,"коли",null,null,null,5,"pilot"]
[null,null,7,"де, куди",null,null,null,6,"niece"]
[null,null,8," скільки ( як бгато)",null,null,null,7,"curious"]
[null,null,null,null,null,null,null,8,"boring"]
[null,null,null,null,null,null,null,9,"bald"]
[null,null,1,"як",null,null,null,10,"aunt"]
[null,null,2,"що, який "]
[null,null,3,"чому",null,null,null,1,"wife"]
[null,null,4,"чий",null,null,null,2,"to laugh"]
[null,null,5,"хто",null,null,null,3,"question"]
[null,null,6,"коли",null,null,null,4,"plump"]
[null,null,7,"де, куди",null,null,null,5,"pilot"]
[null,null,8," скільки ( як бгато)",null,null,null,6,"niece"]
[null,null,null,null,null,null,null,7,"curious"]
[null,null,null,null,null,null,null,8,"boring"]
[null,null,null,null,null,null,null,9,"bald"]
[null,null,null,null,null,null,null,10,"aunt"]

{"sheet":"Лист38 (11)","index":55,"n_rows":44,"n_cols":17,"rows_kept":44,"cut":false,"hidden":false,"merged":[]}
[{"$f":"J1","v":1},{"$f":"K1","v":"know"},{"$f":"L1","v":"неу"},{"$f":"M1","v":"знати"},null,{"$f":"A1","v":1},{"$f":"B1","v":"know"},{"$f":"C1","v":"неу"},{"$f":"D1","v":"знати"},1,"know","неу","знати"]
[{"$f":"J2","v":2},"there","зее","там",null,{"$f":"A2","v":2},"there","зее","там",2,"there","зее","там"]
[3,"lucky","лакі","щастити",null,3,"lucky","лакі","щастити",3,"lucky","лакі","щастити"]
[4,"more ","мо:","більше",null,4,"more ","мо:","більше",4,"more ","мо:","більше",null,null,null,"weather"]
[5,"than ","зен","ніж",null,5,{"$f":"B5","v":"than "},"зен","ніж",5,"than ","зен","ніж",null,null,null,"warm"]
[6,{"$f":"K6","v":"season"},"сізн","пора року, сезон",null,6,"season","сізн","пора року, сезон",6,"season","сізн","пора року, сезон",null,null,null,"nice"]
[7,"last ","ласт","минулий",null,7,"last ","ласт","минулий",7,"last ","ласт","минулий",null,null,null,"hot"]
[8,0,0,0,null,8,0,0,0,8,null,null,null,null,null,null,"evening"]
[null,null,null,null,null,null,null,null,null,null,null,null,null,null,null,null,"cold"]
[1,{"$f":"B1","v":"know"},"неу","знати",null,1,{"$f":"B10","v":"know"},{"$f":"C10","v":"неу"},{"$f":"D10","v":"знати"}]
[2,"there","зее","там",null,2,{"$f":"B11","v":"there"},"зее","там"]
[3,"lucky","лакі","щастити",null,3,"lucky","лакі","щастити"]
[4,"more ","мо:","більше",null,4,"more ","мо:","більше"]
[5,"than ","зен","ніж",null,5,"than ","зен","ніж"]
[6,"season","сізн","пора року, сезон",null,6,"season","сізн","пора року, сезон"]
[7,"last ","ласт","минулий",null,7,"last ","ласт","минулий"]
[8,0,0,0,null,8,0,0,0]
[]
[1,{"$f":"B10","v":"know"},"неу","знати",null,1,{"$f":"B19","v":"know"},{"$f":"C19","v":"неу"},{"$f":"D19","v":"знати"}]
[2,"there","зее","там",null,2,{"$f":"B20","v":"there"},"зее","там"]
[3,"lucky","лакі","щастити",null,3,"lucky","лакі","щастити"]
[4,"more ","мо:","більше",null,4,"more ","мо:","більше"]
[5,"than ","зен","ніж",null,5,"than ","зен","ніж"]
[6,"season","сізн","пора року, сезон",null,6,"season","сізн","пора року, сезон"]
[7,"last ","ласт","минулий",null,7,"last ","ласт","минулий"]
[8,0,0,0,null,8,0,0,0]
[]
[1,{"$f":"B19","v":"know"},"неу","знати",null,1,{"$f":"B28","v":"know"},{"$f":"C28","v":"неу"},{"$f":"D28","v":"знати"}]
[2,"there","зее","там",null,2,{"$f":"B29","v":"there"},"зее","там"]
[3,"lucky","лакі","щастити",null,3,"lucky","лакі","щастити"]
[4,"more ","мо:","більше",null,4,"more ","мо:","більше"]
[5,"than ","зен","ніж",null,5,"than ","зен","ніж"]
[6,"season","сізн","пора року, сезон",null,6,"season","сізн","пора року, сезон"]
[7,"last ","ласт","минулий",null,7,"last ","ласт","минулий"]
[8,0,0,0,null,8,0,0,0]
[]
[1,{"$f":"B28","v":"know"},"неу","знати",null,1,{"$f":"B37","v":"know"},{"$f":"C37","v":"неу"},{"$f":"D37","v":"знати"}]
[2,"there","зее","там",null,2,{"$f":"B38","v":"there"},"зее","там"]
[3,"lucky","лакі","щастити",null,3,"lucky","лакі","щастити"]
[4,"more ","мо:","більше",null,4,"more ","мо:","більше"]
[5,"than ","зен","ніж",null,5,"than ","зен","ніж"]
[6,"season","сізн","пора року, сезон",null,6,"season","сізн","пора року, сезон"]
[7,"last ","ласт","минулий",null,7,"last ","ласт","минулий"]
[8,0,0,0,null,8,0,0,0]

{"sheet":"Лист40","index":56,"n_rows":0,"n_cols":0,"rows_kept":0,"cut":false,"hidden":false,"merged":[]}

{"sheet":"Лист42","index":57,"n_rows":0,"n_cols":0,"rows_kept":0,"cut":false,"hidden":false,"merged":[]}

{"sheet":"Лист38 (3)","index":58,"n_rows":43,"n_cols":14,"rows_kept":43,"cut":false,"hidden":false,"merged":[]}
[{"$f":"J1","v":1},{"$f":"K1","v":"playing the piano "},{"$f":"L1","v":0},{"$f":"M1","v":"грати на піаніно"},null,{"$f":"A1","v":1},{"$f":"B1","v":"playing the piano "},{"$f":"C1","v":0},{"$f":"D1","v":"грати на піаніно"},1,"playing the piano ",null,"грати на піаніно"]
[{"$f":"J2","v":2},"painting",0,"малювання",null,{"$f":"A2","v":2},"painting",0,"малювання",2,"painting",null,"малювання"]
[3,"cooking",0,"готування їжі",null,3,"cooking",0,"готування їжі",3,"cooking",null,"готування їжі"]
[4,"dancing",0,"танцювати",null,4,"dancing",0,"танцювати",4,"dancing",null,"танцювати"]
[5,"collecting stamps",0,"збирати марки",null,5,"collecting stamps",0,"збирати марки",5,"collecting stamps",null,"збирати марки"]
[6,{"$f":"K6","v":"listening to music"},0,"слухати музику",null,6,"listening to music",0,"слухати музику",6,"listening to music",null,"слухати музику"]
[7,"playing a computer game",0,"грати в комп'ютерні ігри",null,7,"playing a computer game",0,"грати в комп'ютерні ігри",7,"playing a computer game",null,"грати в комп'ютерні ігри"]
[8,"watching TV",0,"дивитися ТБ",null,8,"watching TV",0,"дивитися ТБ",8,"watching TV",null,"дивитися ТБ"]
[9,0,0,0,null,9,0,0,0,9]
[10,0,0,0,null,10,0,0,0,10]
[]
[1,{"$f":"B1","v":"playing the piano "},0,"грати на піаніно",null,1,{"$f":"B12","v":"playing the piano "},{"$f":"C12","v":0},{"$f":"D12","v":"грати на піаніно"},null,null,null,null,"shop assistant "]
[2,"painting",0,"малювання",null,2,{"$f":"B13","v":"painting"},0,"малювання",null,null,null,null,"customer "]
[3,"cooking",0,"готування їжі",null,3,"cooking",0,"готування їжі",null,null,null,null,"sweet shop"]
[4,"dancing",0,"танцювати",null,4,"dancing",0,"танцювати",null,null,null,null,"bookshop "]
[5,"collecting stamps",0,"збирати марки",null,5,"collecting stamps",0,"збирати марки",null,null,null,null,"clothes shop "]
[6,"listening to music",0,"слухати музику",null,6,"listening to music",0,"слухати музику",null,null,null,null,"shoe shop"]
[7,"playing a computer game",0,"грати в комп'ютерні ігри",null,7,"playing a computer game",0,"грати в комп'ютерні ігри",null,null,null,null,"toy shop "]
[8,"watching TV",0,"дивитися ТБ",null,8,"watching TV",0,"дивитися ТБ",null,null,null,null,"to sell "]
[9,0,0,0,null,9,0,0,0,null,null,null,null,"to buy"]
[10,0,0,0,null,10,0,0,0]
[]
[1,{"$f":"B12","v":"playing the piano "},0,"грати на піаніно",null,1,{"$f":"B23","v":"playing the piano "},{"$f":"C23","v":0},{"$f":"D23","v":"грати на піаніно"}]
[2,"painting",0,"малювання",null,2,{"$f":"B24","v":"painting"},0,"малювання"]
[3,"cooking",0,"готування їжі",null,3,"cooking",0,"готування їжі"]
[4,"dancing",0,"танцювати",null,4,"dancing",0,"танцювати"]
[5,"collecting stamps",0,"збирати марки",null,5,"collecting stamps",0,"збирати марки"]
[6,"listening to music",0,"слухати музику",null,6,"listening to music",0,"слухати музику"]
[7,"playing a computer game",0,"грати в комп'ютерні ігри",null,7,"playing a computer game",0,"грати в комп'ютерні ігри"]
[8,"watching TV",0,"дивитися ТБ",null,8,"watching TV",0,"дивитися ТБ"]
[9,0,0,0,null,9,0,0,0]
[10,0,0,0,null,10,0,0,0]
[]
[1,{"$f":"B23","v":"playing the piano "},0,"грати на піаніно",null,1,{"$f":"B34","v":"playing the piano "},{"$f":"C34","v":0},{"$f":"D34","v":"грати на піаніно"}]
[2,"painting",0,"малювання",null,2,{"$f":"B35","v":"painting"},0,"малювання"]
[3,"cooking",0,"готування їжі",null,3,"cooking",0,"готування їжі"]
[4,"dancing",0,"танцювати",null,4,"dancing",0,"танцювати"]
[5,"collecting stamps",0,"збирати марки",null,5,"collecting stamps",0,"збирати марки"]
[6,"listening to music",0,"слухати музику",null,6,"listening to music",0,"слухати музику"]
[7,"playing a computer game",0,"грати в комп'ютерні ігри",null,7,"playing a computer game",0,"грати в комп'ютерні ігри"]
[8,"watching TV",0,"дивитися ТБ",null,8,"watching TV",0,"дивитися ТБ"]
[9,0,0,0,null,9,0,0,0]
[10,0,0,0,null,10,0,0,0]

{"sheet":"Лист45","index":59,"n_rows":52,"n_cols":7,"rows_kept":52,"cut":false,"hidden":false,"merged":[]}
["where","вее","де, куди",{"$f":"M1","v":0},"where","вее","де, куди"]
["there","зее","там, туди",{"$f":"M2","v":0},"there","зее","там, туди"]
["want","вонт","хотіти",0,"want","вонт","хотіти"]
["comfortable","камфетбл","комфортабельний, зручний",0,"comfortable","камфетбл","комфортабельний, зручний"]
["sea","сі:","море",0,"sea","сі:","море"]
["see","сі:","бачити",0,"see","сі:","бачити"]
["night","найт","ніч",null,"night","найт","ніч"]
[]
["nice","найс","гарно",null,"nice","найс","гарно"]
["warm","вом","тепло",null,"warm","вом","тепло"]
["cold","колд","холодний",null,"cold","колд","холодний"]
["weather","везе","погода",null,"weather","везе","погода"]
["hot","хот","жарко",null,"hot","хот","жарко"]
["evening","івнін","вечір",null,"evening","івнін","вечір"]
[]
["where","вее","де, куди",null,"where","вее","де, куди"]
["there","зее","там, туди",null,"there","зее","там, туди"]
["want","вонт","хотіти",null,"want","вонт","хотіти"]
["comfortable","камфетбл","комфортабельний, зручний",null,"comfortable","камфетбл","комфортабельний, зручний"]
["sea","сі:","море",null,"sea","сі:","море"]
["see","сі:","бачити",null,"see","сі:","бачити"]
["night","найт","ніч",null,"night","найт","ніч"]
[]
["nice","найс","гарно",null,"nice","найс","гарно"]
["warm","вом","тепло",null,"warm","вом","тепло"]
["cold","колд","холодний",null,"cold","колд","холодний"]
["weather","везе","погода",null,"weather","везе","погода"]
["hot","хот","жарко",null,"hot","хот","жарко"]
["evening","івнін","вечір",null,"evening","івнін","вечір"]
[]
["where","вее","де, куди",null,"where","вее","де, куди"]
["there","зее","там, туди",null,"there","зее","там, туди"]
["want","вонт","хотіти",null,"want","вонт","хотіти"]
["comfortable","камфетбл","комфортабельний, зручний",null,"comfortable","камфетбл","комфортабельний, зручний"]
["sea","сі:","море",null,"sea","сі:","море"]
["see","сі:","бачити",null,"see","сі:","бачити"]
["night","найт","ніч",null,"night","найт","ніч"]
[]
["nice","найс","гарно",null,"nice","найс","гарно"]
["warm","вом","тепло",null,"warm","вом","тепло"]
["cold","колд","холодний",null,"cold","колд","холодний"]
["weather","везе","погода",null,"weather","везе","погода"]
["hot","хот","жарко",null,"hot","хот","жарко"]
["evening","івнін","вечір",null,"evening","івнін","вечір"]
[]
["where","вее","де, куди",null,"nice","найс","гарно"]
["there","зее","там, туди",null,"warm","вом","тепло"]
["want","вонт","хотіти",null,"cold","колд","холодний"]
["comfortable","камфетбл","комфортабельний, зручний",null,"weather","везе","погода"]
["sea","сі:","море",null,"hot","хот","жарко"]
["see","сі:","бачити",null,"evening","івнін","вечір"]
["night","найт","ніч"]

{"sheet":"Лист46","index":60,"n_rows":0,"n_cols":0,"rows_kept":0,"cut":false,"hidden":false,"merged":[]}

{"sheet":"самос (7)","index":61,"n_rows":82,"n_cols":26,"rows_kept":82,"cut":false,"hidden":false,"merged":[]}
[{"$f":"R1","v":"Form 6"},null,null,null,null,{"$f":"R1","v":"Form 6"},null,null,null,{"$f":"R1","v":"Form 6"},null,null,null,{"$f":"R1","v":"Form 6"},null,null,null,"Form 6"]
["Name  _________________________              Date_______",null,null,null,null,"Name  _________________________              Date_______",null,null,null,"Name  _________________________              Date_______",null,null,null,"Name  _________________________              Date_______"]
[]
[null,{"$f":"S4","v":"watching TV"},1,{"$f":"V4","v":"готування їжі"},null,null,{"$f":"S4","v":"watching TV"},1,{"$f":"V4","v":"готування їжі"},{"$f":"S18","v":"collecting stamps"},null,null,null,{"$f":"J4","v":"collecting stamps"},null,null,null,null,"watching TV",null,1,"готування їжі"]
[null,"playing the piano ",2,"грати в комп'ютерні ігри",null,null,{"$f":"S5","v":"playing the piano "},2,{"$f":"V5","v":"грати в комп'ютерні ігри"},{"$f":"S19","v":"cooking"},null,null,null,{"$f":"J5","v":"cooking"},null,null,null,null,"playing the piano ",null,2,"грати в комп'ютерні ігри"]
[null,"playing a computer game",3,"грати на піаніно",null,null,"playing a computer game",3,"грати на піаніно","dancing",null,null,null,"dancing",null,null,null,null,"playing a computer game",null,3,"грати на піаніно",null,null,null,"готування їжі"]
[null,"painting",4,"дивитися ТБ",null,null,"painting",4,"дивитися ТБ","listening to music",null,null,null,"listening to music",null,null,null,null,"painting",null,4,"дивитися ТБ",null,null,null,"грати в комп'ютерні ігри"]
[null,"listening to music",5,"збирати марки",null,null,"listening to music",5,"збирати марки","painting",null,null,null,"painting",null,null,null,null,"listening to music",null,5,"збирати марки",null,null,null,"грати на піаніно"]
[null,"dancing",6,"малювання",null,null,"dancing",6,"малювання","playing a computer game",null,null,null,"playing a computer game",null,null,null,null,"dancing",null,6,"малювання",null,null,null,"дивитися ТБ"]
[null,"cooking",7,"слухати музику",null,null,"cooking",7,"слухати музику","playing the piano ",null,null,null,"playing the piano ",null,null,null,null,"cooking",null,7,"слухати музику",null,null,null,"збирати марки"]
[null,"collecting stamps",8,"танцювати",null,null,"collecting stamps",8,"танцювати","watching TV",null,null,null,"watching TV",null,null,null,null,"collecting stamps",null,8,"танцювати",null,null,null,"малювання"]
[null,0,9,0,null,null,0,9,0,0,null,null,null,0,null,null,null,null,null,null,9,null,null,null,null,"слухати музику"]
[null,0,10,0,null,null,0,10,0,0,null,null,null,0,null,null,null,null,null,null,10,null,null,null,null,"танцювати"]
[null,0,11,0,null,null,0,11,0,0,null,null,null,0,null,null,null,null,null,null,11]
[]
[{"$f":"R1","v":"Form 6"},null,null,null,null,{"$f":"R1","v":"Form 6"},null,null,null,{"$f":"R1","v":"Form 6"},null,null,null,{"$f":"R1","v":"Form 6"}]
["Name  _________________________              Date_______",null,null,null,null,"Name  _________________________              Date_______",null,null,null,"Name  _________________________              Date_______",null,null,null,"Name  _________________________              Date_______"]
[null,null,null,null,null,null,null,null,null,null,null,null,null,null,null,null,null,null,"collecting stamps"]
[null,{"$f":"S4","v":"watching TV"},1,{"$f":"V4","v":"готування їжі"},null,null,{"$f":"B19","v":"watching TV"},1,{"$f":"D19","v":"готування їжі"},{"$f":"J4","v":"collecting stamps"},null,null,null,{"$f":"J19","v":"collecting stamps"},null,null,null,null,"cooking"]
[null,{"$f":"S5","v":"playing the piano "},2,{"$f":"V5","v":"грати в комп'ютерні ігри"},null,null,{"$f":"B20","v":"playing the piano "},2,{"$f":"D20","v":"грати в комп'ютерні ігри"},{"$f":"J5","v":"cooking"},null,null,null,{"$f":"J20","v":"cooking"},null,null,null,null,"dancing",null,null,null,null,"collecting stamps"]
[null,"playing a computer game",3,"грати на піаніно",null,null,"playing a computer game",3,"грати на піаніно","dancing",null,null,null,"dancing",null,null,null,null,"listening to music",null,null,null,null,"cooking"]
[null,"painting",4,"дивитися ТБ",null,null,"painting",4,"дивитися ТБ","listening to music",null,null,null,"listening to music",null,null,null,null,"painting",null,null,null,null,"dancing"]
[null,"listening to music",5,"збирати марки",null,null,"listening to music",5,"збирати марки","painting",null,null,null,"painting",null,null,null,null,"playing a computer game",null,null,null,null,"listening to music"]
[null,"dancing",6,"малювання",null,null,"dancing",6,"малювання","playing a computer game",null,null,null,"playing a computer game",null,null,null,null,"playing the piano ",null,null,null,null,"painting"]
[null,"cooking",7,"слухати музику",null,null,"cooking",7,"слухати музику","playing the piano ",null,null,null,"playing the piano ",null,null,null,null,"watching TV",null,null,null,null,"playing a computer game"]
[null,"collecting stamps",8,"танцювати",null,null,"collecting stamps",8,"танцювати","watching TV",null,null,null,"watching TV",null,null,null,null,null,null,null,null,null,"playing the piano "]
[null,0,9,0,null,null,0,9,0,0,null,null,null,0,null,null,null,null,null,null,null,null,null,"watching TV"]
[null,0,10,0,null,null,0,10,0,0,null,null,null,0]
[null,0,11,0,null,null,0,11,0,0,null,null,null,0]
[]
[{"$f":"R1","v":"Form 6"},null,null,null,null,{"$f":"R1","v":"Form 6"},null,null,null,{"$f":"R1","v":"Form 6"},null,null,null,{"$f":"R1","v":"Form 6"}]
["Name  _________________________              Date_______",null,null,null,null,"Name  _________________________              Date_______",null,null,null,"Name  _________________________              Date_______",null,null,null,"Name  _________________________              Date_______"]
[]
[null,{"$f":"B19","v":"watching TV"},1,{"$f":"D19","v":"готування їжі"},null,null,{"$f":"B34","v":"watching TV"},1,{"$f":"D34","v":"готування їжі"},{"$f":"J19","v":"collecting stamps"},null,null,null,{"$f":"J34","v":"collecting stamps"},null,null,null,null,null,null,"why","[wɛə]","як"]
[null,{"$f":"B20","v":"playing the piano "},2,{"$f":"D20","v":"грати в комп'ютерні ігри"},null,null,{"$f":"B35","v":"playing the piano "},2,{"$f":"D35","v":"грати в комп'ютерні ігри"},{"$f":"J20","v":"cooking"},null,null,null,{"$f":"J35","v":"cooking"},null,null,null,null,null,null,"whose","[wen]","що, який "]
[null,"playing a computer game",3,"грати на піаніно",null,null,"playing a computer game",3,"грати на піаніно","dancing",null,null,null,"dancing",null,null,null,null,null,null,"who","[huːz]","чому"]
[null,"painting",4,"дивитися ТБ",null,null,"painting",4,"дивитися ТБ","listening to music",null,null,null,"listening to music",null,null,null,null,null,null,"where","[huːː ]","чий"]
[null,"listening to music",5,"збирати марки",null,null,"listening to music",5,"збирати марки","painting",null,null,null,"painting",null,null,null,null,null,null,"when","[wɔt]","хто"]
[null,"dancing",6,"малювання",null,null,"dancing",6,"малювання","playing a computer game",null,null,null,"playing a computer game",null,null,null,null,null,null,"what","[hau]","коли"]
[null,"cooking",7,"слухати музику",null,null,"cooking",7,"слухати музику","playing the piano ",null,null,null,"playing the piano ",null,null,null,null,null,null,"how many","[waɪ]","де, куди"]
[null,"collecting stamps",8,"танцювати",null,null,"collecting stamps",8,"танцювати","watching TV",null,null,null,"watching TV",null,null,null,null,null,null,"how","[hau] [ˈmenɪ]"," скільки ( як бгато)"]
[null,0,9,0,null,null,0,9,0,0,null,null,null,0]
[null,0,10,0,null,null,0,10,0,0,null,null,null,0]
[null,0,11,0,null,null,0,11,0,0,null,null,null,0]
[]
[{"$f":"R1","v":"Form 6"},null,null,null,null,null,null,null,null,{"$f":"R1","v":"Form 6"}]
["Name  _________________________              Date_______",null,null,null,null,null,null,null,null,"Name  _________________________              Date_______"]
[]
[null,{"$f":"B34","v":"watching TV"},1,{"$f":"D34","v":"готування їжі"},null,null,{"$f":"B40","v":"cooking"},7,{"$f":"D40","v":"слухати музику"},{"$f":"J34","v":"collecting stamps"},null,null,null,{"$f":"J40","v":"playing the piano "}]
[null,{"$f":"B35","v":"playing the piano "},2,{"$f":"D35","v":"грати в комп'ютерні ігри"},null,null,{"$f":"B41","v":"collecting stamps"},8,{"$f":"D41","v":"танцювати"},{"$f":"J35","v":"cooking"},null,null,null,{"$f":"J41","v":"watching TV"}]
[null,"playing a computer game",3,"грати на піаніно",null,null,{"$f":"B42","v":0},9,{"$f":"D42","v":0},"dancing",null,null,null,{"$f":"J42","v":0}]
[null,"painting",4,"дивитися ТБ",null,null,{"$f":"B43","v":0},10,{"$f":"D43","v":0},"listening to music",null,null,null,{"$f":"J43","v":0}]
[null,"listening to music",5,"збирати марки",null,null,{"$f":"B44","v":0},11,{"$f":"D44","v":0},"painting",null,null,null,{"$f":"J44","v":0}]
[null,"dancing",6,"малювання",null,null,null,null,null,"playing a computer game"]
[]
[]
[]
[null,7]
[]
[]
[null,null,1,"як"]
[null,null,2,"що, який ",null,null,null,1,"wife"]
[null,null,3,"чому",null,null,null,2,"to laugh"]
[null,null,4,"чий",null,null,null,3,"question"]
[null,null,5,"хто",null,null,null,4,"plump"]
[null,null,6,"коли",null,null,null,5,"pilot"]
[null,null,7,"де, куди",null,null,null,6,"niece"]
[null,null,8," скільки ( як бгато)",null,null,null,7,"curious"]
[null,null,null,null,null,null,null,8,"boring"]
[null,null,null,null,null,null,null,9,"bald"]
[null,null,1,"як",null,null,null,10,"aunt"]
[null,null,2,"що, який "]
[null,null,3,"чому",null,null,null,1,"wife"]
[null,null,4,"чий",null,null,null,2,"to laugh"]
[null,null,5,"хто",null,null,null,3,"question"]
[null,null,6,"коли",null,null,null,4,"plump"]
[null,null,7,"де, куди",null,null,null,5,"pilot"]
[null,null,8," скільки ( як бгато)",null,null,null,6,"niece"]
[null,null,null,null,null,null,null,7,"curious"]
[null,null,null,null,null,null,null,8,"boring"]
[null,null,null,null,null,null,null,9,"bald"]
[null,null,null,null,null,null,null,10,"aunt"]

{"sheet":"Лист38 (12)","index":62,"n_rows":44,"n_cols":13,"rows_kept":44,"cut":false,"hidden":false,"merged":[]}
[{"$f":"J1","v":1},{"$f":"K1","v":"mountain"},{"$f":"L1","v":"маунтін"},{"$f":"M1","v":"гора"},null,{"$f":"A1","v":1},{"$f":"B1","v":"mountain"},{"$f":"C1","v":"маунтін"},{"$f":"D1","v":"гора"},1,"mountain","маунтін","гора"]
[{"$f":"J2","v":2},"forest","форіст","ліс",null,{"$f":"A2","v":2},"forest","форіст","ліс",2,"forest","форіст","ліс"]
[3,"island","айленд","острів",null,3,"island","айленд","острів",3,"island","айленд","острів"]
[4,"desert","дезет","пустеля",null,4,"desert","дезет","пустеля",4,"desert","дезет","пустеля"]
[5,"lake","лейк","озеро",null,5,{"$f":"B5","v":"lake"},"лейк","озеро",5,"lake","лейк","озеро"]
[6,{"$f":"K6","v":"ocean"},"еушен","океан",null,6,"ocean","еушен","океан",6,"ocean","еушен","океан"]
[7,{"$f":"K7","v":"jungle"},"джангл","джунглі",null,7,"jungle","джангл","джунглі",7,"jungle","джангл","джунглі"]
[8,0,0,0,null,8,0,0,0,8]
[]
[1,{"$f":"B1","v":"mountain"},"маунтін","гора",null,1,{"$f":"B10","v":"mountain"},{"$f":"C10","v":"маунтін"},{"$f":"D10","v":"гора"}]
[2,"forest","форіст","ліс",null,2,{"$f":"B11","v":"forest"},"форіст","ліс"]
[3,"island","айленд","острів",null,3,"island","айленд","острів"]
[4,"desert","дезет","пустеля",null,4,"desert","дезет","пустеля"]
[5,"lake","лейк","озеро",null,5,"lake","лейк","озеро"]
[6,"ocean","еушен","океан",null,6,"ocean","еушен","океан"]
[7,"jungle","джангл","джунглі",null,7,"jungle","джангл","джунглі"]
[8,0,0,0,null,8,0,0,0]
[]
[1,{"$f":"B10","v":"mountain"},"маунтін","гора",null,1,{"$f":"B19","v":"mountain"},{"$f":"C19","v":"маунтін"},{"$f":"D19","v":"гора"}]
[2,"forest","форіст","ліс",null,2,{"$f":"B20","v":"forest"},"форіст","ліс"]
[3,"island","айленд","острів",null,3,"island","айленд","острів"]
[4,"desert","дезет","пустеля",null,4,"desert","дезет","пустеля"]
[5,"lake","лейк","озеро",null,5,"lake","лейк","озеро"]
[6,"ocean","еушен","океан",null,6,"ocean","еушен","океан"]
[7,"jungle","джангл","джунглі",null,7,"jungle","джангл","джунглі"]
[8,0,0,0,null,8,0,0,0]
[]
[1,{"$f":"B19","v":"mountain"},"маунтін","гора",null,1,{"$f":"B28","v":"mountain"},{"$f":"C28","v":"маунтін"},{"$f":"D28","v":"гора"}]
[2,"forest","форіст","ліс",null,2,{"$f":"B29","v":"forest"},"форіст","ліс"]
[3,"island","айленд","острів",null,3,"island","айленд","острів"]
[4,"desert","дезет","пустеля",null,4,"desert","дезет","пустеля"]
[5,"lake","лейк","озеро",null,5,"lake","лейк","озеро"]
[6,"ocean","еушен","океан",null,6,"ocean","еушен","океан"]
[7,"jungle","джангл","джунглі",null,7,"jungle","джангл","джунглі"]
[8,0,0,0,null,8,0,0,0]
[]
[1,{"$f":"B28","v":"mountain"},"маунтін","гора",null,1,{"$f":"B37","v":"mountain"},{"$f":"C37","v":"маунтін"},{"$f":"D37","v":"гора"}]
[2,"forest","форіст","ліс",null,2,{"$f":"B38","v":"forest"},"форіст","ліс"]
[3,"island","айленд","острів",null,3,"island","айленд","острів"]
[4,"desert","дезет","пустеля",null,4,"desert","дезет","пустеля"]
[5,"lake","лейк","озеро",null,5,"lake","лейк","озеро"]
[6,"ocean","еушен","океан",null,6,"ocean","еушен","океан"]
[7,"jungle","джангл","джунглі",null,7,"jungle","джангл","джунглі"]
[8,0,0,0,null,8,0,0,0]

{"sheet":"самос (8)","index":63,"n_rows":82,"n_cols":26,"rows_kept":82,"cut":false,"hidden":false,"merged":[]}
[{"$f":"R1","v":"Form 6"},null,null,null,null,{"$f":"R1","v":"Form 6"},null,null,null,{"$f":"R1","v":"Form 6"},null,null,null,{"$f":"R1","v":"Form 6"},null,null,null,"Form 6"]
["Name  _________________________              Date_______",null,null,null,null,"Name  _________________________              Date_______",null,null,null,"Name  _________________________              Date_______",null,null,null,"Name  _________________________              Date_______"]
[]
[null,{"$f":"S4","v":"ocean"},1,{"$f":"V4","v":"пустеля"},null,null,{"$f":"S4","v":"ocean"},1,{"$f":"V4","v":"пустеля"},{"$f":"S18","v":"desert"},null,null,null,{"$f":"J4","v":"desert"},null,null,null,null,"ocean",null,1,"пустеля"]
[null,"mountain",2,"острів",null,null,{"$f":"S5","v":"mountain"},2,{"$f":"V5","v":"острів"},{"$f":"S19","v":"forest"},null,null,null,{"$f":"J5","v":"forest"},null,null,null,null,"mountain",null,2,"острів"]
[null,"lake",3,"океан",null,null,"lake",3,"океан","island",null,null,null,"island",null,null,null,null,"lake",null,3,"океан",null,null,null,"готування їжі"]
[null,"jungle",4,"озеро",null,null,"jungle",4,"озеро","jungle",null,null,null,"jungle",null,null,null,null,"jungle",null,4,"озеро",null,null,null,"грати в комп'ютерні ігри"]
[null,"island",5,"ліс",null,null,"island",5,"ліс","lake",null,null,null,"lake",null,null,null,null,"island",null,5,"ліс",null,null,null,"грати на піаніно"]
[null,"forest",6,"джунглі",null,null,"forest",6,"джунглі","mountain",null,null,null,"mountain",null,null,null,null,"forest",null,6,"джунглі",null,null,null,"дивитися ТБ"]
[null,"desert",7,"гора",null,null,"desert",7,"гора","ocean",null,null,null,"ocean",null,null,null,null,"desert",null,7,"гора",null,null,null,"збирати марки"]
[null,0,8,0,null,null,0,8,0,0,null,null,null,0,null,null,null,null,null,null,8,null,null,null,null,"малювання"]
[null,0,9,0,null,null,0,9,0,0,null,null,null,0,null,null,null,null,null,null,9,null,null,null,null,"слухати музику"]
[null,0,10,0,null,null,0,10,0,0,null,null,null,0,null,null,null,null,null,null,10,null,null,null,null,"танцювати"]
[null,0,11,0,null,null,0,11,0,0,null,null,null,0,null,null,null,null,null,null,11]
[]
[{"$f":"R1","v":"Form 6"},null,null,null,null,{"$f":"R1","v":"Form 6"},null,null,null,{"$f":"R1","v":"Form 6"},null,null,null,{"$f":"R1","v":"Form 6"}]
["Name  _________________________              Date_______",null,null,null,null,"Name  _________________________              Date_______",null,null,null,"Name  _________________________              Date_______",null,null,null,"Name  _________________________              Date_______"]
[null,null,null,null,null,null,null,null,null,null,null,null,null,null,null,null,null,null,"desert"]
[null,{"$f":"S4","v":"ocean"},1,{"$f":"V4","v":"пустеля"},null,null,{"$f":"B19","v":"ocean"},1,{"$f":"D19","v":"пустеля"},{"$f":"J4","v":"desert"},null,null,null,{"$f":"J19","v":"desert"},null,null,null,null,"forest"]
[null,{"$f":"S5","v":"mountain"},2,{"$f":"V5","v":"острів"},null,null,{"$f":"B20","v":"mountain"},2,{"$f":"D20","v":"острів"},{"$f":"J5","v":"forest"},null,null,null,{"$f":"J20","v":"forest"},null,null,null,null,"island",null,null,null,null,"пустеля"]
[null,"lake",3,"океан",null,null,"lake",3,"океан","island",null,null,null,"island",null,null,null,null,"jungle",null,null,null,null,"острів"]
[null,"jungle",4,"озеро",null,null,"jungle",4,"озеро","jungle",null,null,null,"jungle",null,null,null,null,"lake",null,null,null,null,"океан"]
[null,"island",5,"ліс",null,null,"island",5,"ліс","lake",null,null,null,"lake",null,null,null,null,"mountain",null,null,null,null,"озеро"]
[null,"forest",6,"джунглі",null,null,"forest",6,"джунглі","mountain",null,null,null,"mountain",null,null,null,null,"ocean",null,null,null,null,"ліс"]
[null,"desert",7,"гора",null,null,"desert",7,"гора","ocean",null,null,null,"ocean",null,null,null,null,null,null,null,null,null,"джунглі"]
[null,0,8,0,null,null,0,8,0,0,null,null,null,0,null,null,null,null,null,null,null,null,null,"гора"]
[null,0,9,0,null,null,0,9,0,0,null,null,null,0]
[null,0,10,0,null,null,0,10,0,0,null,null,null,0]
[null,0,11,0,null,null,0,11,0,0,null,null,null,0]
[]
[{"$f":"R1","v":"Form 6"},null,null,null,null,{"$f":"R1","v":"Form 6"},null,null,null,{"$f":"R1","v":"Form 6"},null,null,null,{"$f":"R1","v":"Form 6"}]
["Name  _________________________              Date_______",null,null,null,null,"Name  _________________________              Date_______",null,null,null,"Name  _________________________              Date_______",null,null,null,"Name  _________________________              Date_______"]
[]
[null,{"$f":"B19","v":"ocean"},1,{"$f":"D19","v":"пустеля"},null,null,{"$f":"B34","v":"ocean"},1,{"$f":"D34","v":"пустеля"},{"$f":"J19","v":"desert"},null,null,null,{"$f":"J34","v":"desert"},null,null,null,null,null,null,"why","[wɛə]","як"]
[null,{"$f":"B20","v":"mountain"},2,{"$f":"D20","v":"острів"},null,null,{"$f":"B35","v":"mountain"},2,{"$f":"D35","v":"острів"},{"$f":"J20","v":"forest"},null,null,null,{"$f":"J35","v":"forest"},null,null,null,null,null,null,"whose","[wen]","що, який "]
[null,"lake",3,"океан",null,null,"lake",3,"океан","island",null,null,null,"island",null,null,null,null,null,null,"who","[huːz]","чому"]
[null,"jungle",4,"озеро",null,null,"jungle",4,"озеро","jungle",null,null,null,"jungle",null,null,null,null,null,null,"where","[huːː ]","чий"]
[null,"island",5,"ліс",null,null,"island",5,"ліс","lake",null,null,null,"lake",null,null,null,null,null,null,"when","[wɔt]","хто"]
[null,"forest",6,"джунглі",null,null,"forest",6,"джунглі","mountain",null,null,null,"mountain",null,null,null,null,null,null,"what","[hau]","коли"]
[null,"desert",7,"гора",null,null,"desert",7,"гора","ocean",null,null,null,"ocean",null,null,null,null,null,null,"how many","[waɪ]","де, куди"]
[null,0,8,0,null,null,0,8,0,0,null,null,null,0,null,null,null,null,null,null,"how","[hau] [ˈmenɪ]"," скільки ( як бгато)"]
[null,0,9,0,null,null,0,9,0,0,null,null,null,0]
[null,0,10,0,null,null,0,10,0,0,null,null,null,0]
[null,0,11,0,null,null,0,11,0,0,null,null,null,0]
[]
[{"$f":"R1","v":"Form 6"},null,null,null,null,null,null,null,null,{"$f":"R1","v":"Form 6"}]
["Name  _________________________              Date_______",null,null,null,null,null,null,null,null,"Name  _________________________              Date_______"]
[]
[null,{"$f":"B34","v":"ocean"},1,{"$f":"D34","v":"пустеля"},null,null,{"$f":"B40","v":"desert"},7,{"$f":"D40","v":"гора"},{"$f":"J34","v":"desert"},null,null,null,{"$f":"J40","v":"ocean"}]
[null,{"$f":"B35","v":"mountain"},2,{"$f":"D35","v":"острів"},null,null,{"$f":"B41","v":0},8,{"$f":"D41","v":0},{"$f":"J35","v":"forest"},null,null,null,{"$f":"J41","v":0}]
[null,"lake",3,"океан",null,null,{"$f":"B42","v":0},9,{"$f":"D42","v":0},"island",null,null,null,{"$f":"J42","v":0}]
[null,"jungle",4,"озеро",null,null,{"$f":"B43","v":0},10,{"$f":"D43","v":0},"jungle",null,null,null,{"$f":"J43","v":0}]
[null,"island",5,"ліс",null,null,{"$f":"B44","v":0},11,{"$f":"D44","v":0},"lake",null,null,null,{"$f":"J44","v":0}]
[null,"forest",6,"джунглі",null,null,null,null,null,"mountain"]
[]
[]
[]
[null,7]
[]
[]
[null,null,1,"як"]
[null,null,2,"що, який ",null,null,null,1,"wife"]
[null,null,3,"чому",null,null,null,2,"to laugh"]
[null,null,4,"чий",null,null,null,3,"question"]
[null,null,5,"хто",null,null,null,4,"plump"]
[null,null,6,"коли",null,null,null,5,"pilot"]
[null,null,7,"де, куди",null,null,null,6,"niece"]
[null,null,8," скільки ( як бгато)",null,null,null,7,"curious"]
[null,null,null,null,null,null,null,8,"boring"]
[null,null,null,null,null,null,null,9,"bald"]
[null,null,1,"як",null,null,null,10,"aunt"]
[null,null,2,"що, який "]
[null,null,3,"чому",null,null,null,1,"wife"]
[null,null,4,"чий",null,null,null,2,"to laugh"]
[null,null,5,"хто",null,null,null,3,"question"]
[null,null,6,"коли",null,null,null,4,"plump"]
[null,null,7,"де, куди",null,null,null,5,"pilot"]
[null,null,8," скільки ( як бгато)",null,null,null,6,"niece"]
[null,null,null,null,null,null,null,7,"curious"]
[null,null,null,null,null,null,null,8,"boring"]
[null,null,null,null,null,null,null,9,"bald"]
[null,null,null,null,null,null,null,10,"aunt"]